{"text_format":"1","workbook":"xlsx","n_sheets":5,"sheets":["Table","Certification","Value","certificatnew","Sheet1"],"not_rendered":{"charts":0,"images":8,"macros":1,"external_links":0,"defined_names":9,"comments":0,"pivot_tables":0},"unopened":[],"bounds":{"document_bytes":16777216,"sheet_cells":100000,"rows_first":2000,"rows_last":500,"rows_between":2000,"halvings":0,"cell_chars":16384,"cell_head_chars":4096},"cells_cut":0,"cells_raw":0,"read":"whole","date_system":"1900"}

{"sheet":"Table","index":0,"n_rows":70,"n_cols":100,"rows_kept":70,"cut":false,"hidden":false,"merged":[[3,45,4,47],[5,45,9,45],[9,88,9,89],[9,72,9,73],[9,74,9,75],[9,76,9,77],[9,78,9,79],[7,29,8,29],[9,86,9,87],[9,61,9,63],[9,66,9,68],[9,84,9,85],[9,80,9,81],[9,82,9,83],[7,50,9,50],[6,52,9,52],[7,51,9,51],[6,46,6,51],[5,7,6,9],[5,4,6,6],[0,55,0,58],[5,34,6,36],[5,46,5,54],[6,54,9,54],[7,46,9,46],[8,55,8,58],[0,0,2,54],[3,10,4,13],[5,25,6,27],[5,43,9,43],[3,21,4,23],[3,24,4,32],[5,22,6,24],[3,33,4,44],[7,23,8,23],[7,28,8,28],[7,37,8,37],[7,22,8,22],[5,31,6,33],[7,39,8,39],[3,48,4,53],[3,54,4,54],[5,16,6,18],[3,0,3,4],[5,0,9,0],[7,15,8,15],[7,7,8,7],[7,10,8,10],[7,5,9,5],[5,3,9,3],[7,8,8,8],[3,14,4,17],[3,18,4,20],[5,13,6,15],[3,5,4,9],[4,0,4,4],[5,10,6,12],[7,6,9,6],[7,1,8,1],[7,4,9,4],[5,1,6,1],[7,13,8,13],[5,19,6,21],[7,12,8,12],[7,11,8,11],[5,2,9,2],[69,0,69,4],[69,7,69,10],[67,7,67,10],[65,0,65,6],[67,0,67,4],[68,5,68,6],[68,0,68,4],[69,11,69,13],[68,7,68,10],[67,5,67,6],[66,5,66,6],[7,16,8,16],[7,21,8,21],[7,24,8,24],[7,25,8,25],[66,19,66,22],[69,5,69,6],[66,7,66,10],[68,14,68,16],[7,20,8,20],[7,14,8,14],[7,9,8,9],[67,11,67,13],[68,11,68,13],[7,17,8,17],[66,14,66,16],[66,11,66,13],[69,19,69,22],[69,17,69,18],[69,23,69,25],[69,14,69,16],[5,44,8,44],[67,39,67,44],[68,39,68,44],[5,37,6,39],[7,32,8,32],[68,26,68,28],[7,26,8,26],[7,27,8,27],[66,17,66,18],[7,18,8,18],[66,26,66,28],[67,26,67,28],[68,23,68,25],[68,17,68,18],[68,19,68,22],[67,23,67,25],[67,19,67,22],[7,19,8,19],[67,14,67,16],[67,17,67,18],[66,23,66,25],[5,40,6,42],[7,40,8,40],[7,41,8,41],[7,35,8,35],[7,36,8,36],[7,34,8,34],[66,29,69,38],[7,38,8,38],[69,26,69,28],[69,48,69,53],[66,45,66,47],[67,45,67,47],[67,48,67,53],[66,48,66,53],[5,28,6,30],[7,30,8,30],[7,42,8,42],[7,31,8,31],[7,33,8,33],[7,49,9,49],[7,48,9,48],[68,48,68,53],[6,53,9,53],[7,47,9,47],[69,45,69,47],[65,43,65,46],[66,39,66,44],[69,39,69,44],[68,45,68,47]]}
[" جدول العلامات المدرسية للصفين الثامن والتاسع الأساسي للعام الدراسي2020/2019",null,null,null,null,null,null,null,null,null,null,null,null,null,null,null,null,null,null,null,null,null,null,null,null,null,null,null,null,null,null,null,null,null,null,null,null,null,null,null,null,null,null,null,null,null,null,null,null,null,null,null,null,null,null,"مربوا الصفوف"]
[null,null,null,null,null,null,null,null,null,null,null,null,null,null,null,null,null,null,null,null,null,null,null,null,null,null,null,null,null,null,null,null,null,null,null,null,null,null,null,null,null,null,null,null,null,null,null,null,null,null,null,null,null,null,null,"اياد عبد الحليم ابو حميدان","عاصم ابو سلطان","احمد طه اسماعيل","احمد سليمان الزاملي"]
[null,null,null,null,null,null,null,null,null,null,null,null,null,null,null,null,null,null,null,null,null,null,null,null,null,null,null,null,null,null,null,null,null,null,null,null,null,null,null,null,null,null,null,null,null,null,null,null,null,null,null,null,null,null,null,"عادل اسماعيل ابو حميدان","مجاهد الشريدة","عمر عبد الحميد حسين"]
["وكالة الامم المتحدة لإغاثة وتشغيل اللاجئين الفلسطينيين في الشرق الادنى",null,null,null,null,"المنطقــة التعليمية :",null,null,null,null,"شمال عمان",null,null,null,"البلـدة/المـخيـم:",null,null,null,"البقعة",null,null,"المـدرسـة:",null,null,"ذكور البقعة الاعدادية الرابعة",null,null,null,null,null,null,null,null,"  الصــف :",null,null,null,null,null,null,null,null,null,null,null,"(  الثامن  ) ",null,null,"الـشعـبـة :",null,null,null,null,null," (  ج  ) ","علاء اسماعيل العزة","صهيب خليل بنات","غسان احمد سبيتان"]
["دائرة التربية والتعليم",null,null,null,null,null,null,null,null,null,null,null,null,null,null,null,null,null,null,null,null,null,null,null,null,null,null,null,null,null,null,null,null,null,null,null,null,null,null,null,null,null,null,null,null,null,null,null,null,null,null,null,null,null,null,"رائد حسين ابو عوض","زهير يوسف ابو جخيدب","مروان عودة ابو جويعد"]
["الرقم  المتسلسل","إســم الطـالــب","الجنـسيـة"," مكـان الـولادة","تاريخ الولادة",null,null,"التربية الاسلامية",null,null,"اللغة العربية",null,null,"اللغة الانجليزية",null,null,"الرياضيات",null,null,"التربية الاجتماعية والوطنية",null,null,"العلـــوم",null,null,"التربية الفنية",null,null,"التربية الرياضية",null,null,"الموسيقا والاناشيد",null,null,"التربية المهنية",null,null,"الحاسوب",null,null,"الثقافة المالية",null,null,"إحترام النظام","عدد أيام الغياب من","الصف/الصفوف التي اعادها الطالب","( تعبأ المعلومات المطلوبة الواردة في هذه الحقول في نهاية العام الدراسي )",null,null,null,null,null,null,null,null,"سالم سليمان ابو رجل","عودة مفلح العمرو","سليم محمد ابو رفيع"]
[null,null,null,null,null,null,null,null,null,null,null,null,null,null,null,null,null,null,null,null,null,null,null,null,null,null,null,null,null,null,null,null,null,null,null,null,null,null,null,null,null,null,null,null,null,null,"النتيجة بعد تأدية اختبارات الاكمال",null,null,null,null,null,"المجموع العام","المعدل العام المئوي"," النتيجة السنوية","جمال محمد غنيم","محمد عبد الفتاح ابو الخيل","مصطفى حمدو عليان"]
[null,"من اربع مقاطع",null,null,"الـيـوم","الـشـهـر","الــسـنـة","الفصل الاول","الفصل الثاني","المـعـدل","الفصل الاول","الفصل الثاني","المـعـدل","الفصل الاول","الفصل الثاني","المـعـدل","الفصل الاول","الفصل الثاني","المـعـدل","الفصل الاول","الفصل الثاني","المـعـدل","الفصل الاول","الفصل الثاني","المـعـدل","الفصل الاول","الفصل الثاني","المـعـدل","الفصل الاول","الفصل الثاني","المـعـدل","الفصل الاول","الفصل الثاني","المـعـدل","الفصل الاول","الفصل الثاني","المـعـدل","الفصل الاول","الفصل الثاني","المـعـدل","الفصل الاول","الفصل الثاني","المـعـدل",null,null,null,"المادة الدراسية","العلامة","المادة الدراسية","العلامة","المادة الدراسية","العلامة"]
[null,null,null,null,null,null,null,null,null,null,null,null,null,null,null,null,null,null,null,null,null,null,null,null,null,null,null,null,null,null,null,null,null,null,null,null,null,null,null,null,null,null,null,null,null,null,null,null,null,null,null,null,null,null,null,"بيانات اضافية لشهادات الكرتون"]
[null,"\"حسب شهادة الميلاد\"",null,null,null,null,null,200,200,200,300,300,300,200,200,200,200,200,200,200,200,200,200,200,200,100,100,100,100,100,100,100,100,100,100,100,100,100,100,100,100,100,100,null,199,null,null,null,null,null,null,null,null,null,null,"الرقم الوطني للطالب","العنوان","غياب الفصل الاول","البريد الالكتروني","النتيجة السنوية","نتيجة سنوية ف1","الصفوف المعاده",null,null,"ملاحظات ذكور","ملاحظات اناث","ترتيب الاوائل",null,null,"ترك/انتقل","المعدل","مكان وتاريخ الميلاد","التربية الاسلامية",null,"اللعة العربية",null,"اللغة الانجليزية",null,"الرياضيات",null,"التربية الاجتماعية",null,"العلوم",null,"التربية المهنية",null,"الحاسوب",null,"الثقافة المالية",null,null,"عدد الاكمالاات","مواد الاكمال","نتيجة فصل 1 ذكور","نتيجة فصل 1 اناث",null,"النتيجة السنوية","ملاحظات مربي الصف",null,"غياب الفصل الثاني"]
[{"$f":"IF(B11<>\"\",1,\"\")","v":1}," احمد سيف الدين ابراهيم ابو عجور","الأردنية","السلط",8,4,2007,112,115,114,124,196,160,105,121,113,90,110,100,122,144,133,108,107,108,77,84,81,85,87,86,null,null,null,75,55,65,51,64,58,76,55,66,"ممتاز","-","-",null,null,null,null,null,null,917,57.310001373291016,"ناجح و يرفع  لـ الصف التاسع",null,null,null,null,"ناجح و يرفع  لـ الصف التاسع",{"$f":"IF(Value!$F$31=\"1\",CP11,CQ11)","v":"مكمل في  :   اللعة العربية    الرياضيات          "},"-",null,null,null,{"$f":"IF(BS11=\"\",\"\",IF(BS11=0,\"\",IF(BS11>90,\"مؤدبة وخلوقة ومجتهدة ، هنيئاً لوالديك هذا التفوق المميز\",IF(BS11>=80,\"خلوقة ومتعاونة وفعّالة ، أجمل التهاني لك ولوالديك\",IF(BS11>=70,\"جيدة في دروسها ، أتمنى لها مزيدا من التقدم والنجاح\",IF(BS11>=60,\"يرجى من الوالدين مزيداً من المتابعة\",IF(BS11>=50,\"عليها مضاعفة جهودها والاهتمام أكثر\",IF(BS11<50,\"ضعيفة في دروسها , تحتاج الى بذل مزيد من الجهد\",\"\"))))))))","v":"خلوقة ومتعاونة وفعّالة ، أجمل التهاني لك ولوالديك"}," احمد سيف الدين ابراهيم ابو عجور",57.310001373291016,917,null,88,{"$f":"Table!$D11&\"    \"&Table!$E11&\" / \"&Table!$F11&\" \"&\"/ \" & Table!$G11","v":"السلط    8 / 4 / 2007"},{"$f":"IF(H11=0,\"\",IF(H11>=($H$10/2),0,1))","v":0},{"$f":"IF(BU11=1,$BU$10,\"\")","v":""},{"$f":"IF(K11=0,\"\",IF(K11>=($K$10/2),0,1))","v":1},{"$f":"IF(BW11=1,$BW$10,\"\")","v":"اللعة العربية"},{"$f":"IF(N11=0,\"\",IF(N11>=($N$10/2),0,1))","v":0},{"$f":"IF(BY11=1,$BY$10,\"\")","v":""},{"$f":"IF(Q11=0,\"\",IF(Q11>=($Q$10/2),0,1))","v":1},{"$f":"IF(CA11=1,$CA$10,\"\")","v":"الرياضيات"},{"$f":"IF(T11=0,\"\",IF(T11>=($T$10/2),0,1))","v":0},{"$f":"IF(CC11=1,$CC$10,\"\")","v":""},{"$f":"IF(W11=0,\"\",IF(W11>=($W$10/2),0,1))","v":0},{"$f":"IF(CE11=1,$CE$10,\"\")","v":""},{"$f":"IF(AI11=0,\"\",IF(AI11>=($AI$10/2),0,1))","v":0},{"$f":"IF(CG11=1,$CG$10,\"\")","v":""},{"$f":"IF(AL11=0,\"\",IF(AL11>=($AL$10/2),0,1))","v":0},{"$f":"IF(CI11=1,$CI$10,\"\")","v":""},{"$f":"IF(AO11=0,\"\",IF(AO11>=($AO$10/2),0,1))","v":0},{"$f":"IF(CK11=1,$CK$10,\"\")","v":""},null,{"$f":"COUNTIF(BU11:CL11,1)","v":2},{"$f":"CONCATENATE(BV11,\"  \",BX11,\"  \",BZ11,\"  \",CB11,\"  \",CD11,\"  \",CF11,\"  \",CH11,\"  \",CJ11,\"  \",CL11)","v":"  اللعة العربية    الرياضيات          "},{"$f":"IF(CN11=0,\"ناجح في مواد الفصل الاول\",\"مكمل في  : \"&CO11)","v":"مكمل في  :   اللعة العربية    الرياضيات          "},{"$f":"IF(CN11=0,\"ناجحة في مواد الفصل الاول\",\"مكملـة في  : \"&CO11)","v":"مكملـة في  :   اللعة العربية    الرياضيات          "},null,{"$f":"IF(Value!$F$33=\"1\",Table!BI11,Table!BH11)","v":"ناجح و يرفع  لـ الصف التاسع"},{"$f":"IF(Value!$F$31=\"1\",Table!BM11,Table!BN11)","v":0},null,{"$f":"IF(AS11=\"-\",\"-\",AS11-BF11)","v":"-"}]
[{"$f":"IF(AND(B12<>\"\",A11<>\"\"),A11+1,\"\")","v":2}," احمد هاني محمد ابو سلمان","الأردنية","السلط",2,11,2005,108,123,116,110,190,150,99,116,108,90,112,101,84,126,105,110,113,112,72,86,79,87,89,88,null,null,null,73,70,72,51,61,56,72,70,71,"ممتاز","-","الرابع",null,null,null,null,null,null,891,55.689998626708984,"ناجح و يرفع  لـ الصف التاسع",null,null,null,null,"ناجح و يرفع  لـ الصف التاسع",{"$f":"IF(Value!$F$31=\"1\",CP12,CQ12)","v":"مكمل في  :   اللعة العربية  اللغة الانجليزية  الرياضيات  التربية الاجتماعية        "},"-",null,null,null,{"$f":"IF(BS12=\"\",\"\",IF(BS12=0,\"\",IF(BS12>90,\"مؤدبة وخلوقة ومجتهدة ، هنيئاً لوالديك هذا التفوق المميز\",IF(BS12>=80,\"خلوقة ومتعاونة وفعّالة ، أجمل التهاني لك ولوالديك\",IF(BS12>=70,\"جيدة في دروسها ، أتمنى لها مزيدا من التقدم والنجاح\",IF(BS12>=60,\"يرجى من الوالدين مزيداً من المتابعة\",IF(BS12>=50,\"عليها مضاعفة جهودها والاهتمام أكثر\",IF(BS12<50,\"ضعيفة في دروسها , تحتاج الى بذل مزيد من الجهد\",\"\"))))))))","v":"يرجى من الوالدين مزيداً من المتابعة"}," احمد هاني محمد ابو سلمان",55.689998626708984,891,null,64,{"$f":"Table!$D12&\"    \"&Table!$E12&\" / \"&Table!$F12&\" \"&\"/ \" & Table!$G12","v":"السلط    2 / 11 / 2005"},0,{"$f":"IF(BU12=1,$BU$10,\"\")","v":""},1,{"$f":"IF(BW12=1,$BW$10,\"\")","v":"اللعة العربية"},1,{"$f":"IF(BY12=1,$BY$10,\"\")","v":"اللغة الانجليزية"},1,{"$f":"IF(CA12=1,$CA$10,\"\")","v":"الرياضيات"},1,{"$f":"IF(CC12=1,$CC$10,\"\")","v":"التربية الاجتماعية"},0,{"$f":"IF(CE12=1,$CE$10,\"\")","v":""},0,{"$f":"IF(CG12=1,$CG$10,\"\")","v":""},0,{"$f":"IF(CI12=1,$CI$10,\"\")","v":""},0,{"$f":"IF(CK12=1,$CK$10,\"\")","v":""},null,{"$f":"COUNTIF(BU12:CL12,1)","v":4},{"$f":"CONCATENATE(BV12,\"  \",BX12,\"  \",BZ12,\"  \",CB12,\"  \",CD12,\"  \",CF12,\"  \",CH12,\"  \",CJ12,\"  \",CL12)","v":"  اللعة العربية  اللغة الانجليزية  الرياضيات  التربية الاجتماعية        "},{"$f":"IF(CN12=0,\"ناجح في مواد الفصل الاول\",\"مكمل في  : \"&CO12)","v":"مكمل في  :   اللعة العربية  اللغة الانجليزية  الرياضيات  التربية الاجتماعية        "},{"$f":"IF(CN12=0,\"ناجحة في مواد الفصل الاول\",\"مكملـة في  : \"&CO12)","v":"مكملـة في  :   اللعة العربية  اللغة الانجليزية  الرياضيات  التربية الاجتماعية        "},null,{"$f":"IF(Value!$F$33=\"1\",Table!BI12,Table!BH12)","v":"ناجح و يرفع  لـ الصف التاسع"},{"$f":"IF(Value!$F$31=\"1\",Table!BM12,Table!BN12)","v":0},null,"-"]
[{"$f":"IF(AND(B13<>\"\",A12<>\"\"),A12+1,\"\")","v":3}," اسامه وائل عبد الفتاح الاخرس","الأردنية","السلط",18,8,2007,109,127,118,116,196,156,149,143,146,93,119,106,126,140,133,105,115,110,80,88,84,89,87,88,null,null,null,78,76,77,63,65,64,83,76,80,"ممتاز","-","-",null,null,null,null,null,null,990,61.880001068115234,"ناجح و يرفع  لـ الصف التاسع",null,null,null,null,"ناجح و يرفع  لـ الصف التاسع",{"$f":"IF(Value!$F$31=\"1\",CP13,CQ13)","v":"مكمل في  :   اللعة العربية    الرياضيات          "},"-",null,null,null,"خلوقة ومتعاونة وفعّالة ، أجمل التهاني لك ولوالديك"," اسامه وائل عبد الفتاح الاخرس",61.880001068115234,990,null,82.4,{"$f":"Table!$D13&\"    \"&Table!$E13&\" / \"&Table!$F13&\" \"&\"/ \" & Table!$G13","v":"السلط    18 / 8 / 2007"},0,"",1,"اللعة العربية",0,"",1,"الرياضيات",0,"",0,"",0,"",0,"",0,"",null,2,"  اللعة العربية    الرياضيات          ","مكمل في  :   اللعة العربية    الرياضيات          ","مكملـة في  :   اللعة العربية    الرياضيات          ",null,{"$f":"IF(Value!$F$33=\"1\",Table!BI13,Table!BH13)","v":"ناجح و يرفع  لـ الصف التاسع"},{"$f":"IF(Value!$F$31=\"1\",Table!BM13,Table!BN13)","v":0},null,"-"]
[4," البراء احمد محمد الشيش","الأردنية","السلط",30,1,2007,123,105,114,220,198,209,115,123,119,104,129,117,156,158,157,129,112,121,90,92,91,85,88,87,null,null,null,89,78,84,57,55,56,92,78,85,"ممتاز","-","-",null,null,null,null,null,null,1062,66.379997253417969,"ناجح و يرفع  لـ الصف التاسع",null,null,null,null,"ناجح و يرفع  لـ الصف التاسع",{"$f":"IF(Value!$F$31=\"1\",CP14,CQ14)","v":"ناجح في مواد الفصل الاول"},"-",null,null,null,"عليها مضاعفة جهودها والاهتمام أكثر"," البراء احمد محمد الشيش",66.379997253417969,1062,null,50.1,{"$f":"Table!$D14&\"    \"&Table!$E14&\" / \"&Table!$F14&\" \"&\"/ \" & Table!$G14","v":"السلط    30 / 1 / 2007"},0,"",0,"",0,"",0,"",0,"",0,"",0,"",0,"",0,"",null,0,"                ","ناجح في مواد الفصل الاول","ناجحة في مواد الفصل الاول",null,{"$f":"IF(Value!$F$33=\"1\",Table!BI14,Table!BH14)","v":"ناجح و يرفع  لـ الصف التاسع"},{"$f":"IF(Value!$F$31=\"1\",Table!BM14,Table!BN14)","v":0},null,"-"]
[5," انس مهنا نمر حسن","الأردنية","السلط",30,9,2007,143,147,145,159,194,177,121,126,124,103,138,121,148,158,153,111,152,132,88,88,88,88,88,88,null,null,null,95,96,96,67,76,72,93,96,95,"ممتاز","-","-",null,null,null,null,null,null,1115,69.69000244140625,"ناجح و يرفع  لـ الصف التاسع",null,null,null,null,"ناجح و يرفع  لـ الصف التاسع",{"$f":"IF(Value!$F$31=\"1\",CP15,CQ15)","v":"ناجح في مواد الفصل الاول"},"الثامن",null,"الصف","الثامن","ضعيفة في دروسها , تحتاج الى بذل مزيد من الجهد"," انس مهنا نمر حسن",69.69000244140625,1115,null,44.9,{"$f":"Table!$D15&\"    \"&Table!$E15&\" / \"&Table!$F15&\" \"&\"/ \" & Table!$G15","v":"السلط    30 / 9 / 2007"},0,"",0,"",0,"",0,"",0,"",0,"",0,"",0,"",0,"",null,0,"                ","ناجح في مواد الفصل الاول","ناجحة في مواد الفصل الاول",null,{"$f":"IF(Value!$F$33=\"1\",Table!BI15,Table!BH15)","v":"ناجح و يرفع  لـ الصف التاسع"},{"$f":"IF(Value!$F$31=\"1\",Table!BM15,Table!BN15)","v":"الثامن"},null,"-"]
[6," ايهم احمد سليمان الزاملي","الفلسطينية","عمان",9,6,2007,191,190,191,258,283,271,162,171,167,197,199,198,182,182,182,182,196,189,98,97,98,96,94,95,null,null,null,98,98,98,86,86,86,97,98,98,"ممتاز","-","-",null,null,null,null,null,null,1480,92.5,"ناجح و يرفع  لـ الصف التاسع",null,null,null,null,"ناجح و يرفع  لـ الصف التاسع",{"$f":"IF(Value!$F$31=\"1\",CP16,CQ16)","v":"ناجح في مواد الفصل الاول"},"-",null,null,null,"جيدة في دروسها ، أتمنى لها مزيدا من التقدم والنجاح"," ايهم احمد سليمان الزاملي",92.5,1480,null,74.7,{"$f":"Table!$D16&\"    \"&Table!$E16&\" / \"&Table!$F16&\" \"&\"/ \" & Table!$G16","v":"عمان    9 / 6 / 2007"},0,"",0,"",0,"",0,"",0,"",0,"",0,"",0,"",0,"",null,0,"                ","ناجح في مواد الفصل الاول","ناجحة في مواد الفصل الاول",null,{"$f":"IF(Value!$F$33=\"1\",Table!BI16,Table!BH16)","v":"ناجح و يرفع  لـ الصف التاسع"},{"$f":"IF(Value!$F$31=\"1\",Table!BM16,Table!BN16)","v":0},null,"-"]
[7," ايهم ايمن محمد خليل","الأردنية","السلط",2,5,2007,136,113,125,204,185,195,105,121,113,100,139,120,144,160,152,120,119,120,80,90,85,85,88,87,null,null,null,82,88,85,84,82,83,83,88,86,"ممتاز","-","-",null,null,null,null,null,null,1079,67.44000244140625,"ناجح و يرفع  لـ الصف التاسع",null,null,null,null,"ناجح و يرفع  لـ الصف التاسع",{"$f":"IF(Value!$F$31=\"1\",CP17,CQ17)","v":"ناجح في مواد الفصل الاول"},"-",null,null,null,"عليها مضاعفة جهودها والاهتمام أكثر"," ايهم ايمن محمد خليل",67.44000244140625,1079,null,50.8,{"$f":"Table!$D17&\"    \"&Table!$E17&\" / \"&Table!$F17&\" \"&\"/ \" & Table!$G17","v":"السلط    2 / 5 / 2007"},0,"",0,"",0,"",0,"",0,"",0,"",0,"",0,"",0,"",null,0,"                ","ناجح في مواد الفصل الاول","ناجحة في مواد الفصل الاول",null,{"$f":"IF(Value!$F$33=\"1\",Table!BI17,Table!BH17)","v":"ناجح و يرفع  لـ الصف التاسع"},{"$f":"IF(Value!$F$31=\"1\",Table!BM17,Table!BN17)","v":0},null,"-"]
[8," براء فادي ابراهيم الاسمر","الأردنية","عمان",4,10,2007,153,139,146,189,226,208,101,124,113,106,144,125,178,184,181,154,135,145,81,87,84,87,87,87,null,null,null,85,98,92,61,70,66,81,98,90,"ممتاز","-","-",null,null,null,null,null,null,1166,72.879997253417969,"ناجح و يرفع  لـ الصف التاسع",null,null,null,null,"ناجح و يرفع  لـ الصف التاسع",{"$f":"IF(Value!$F$31=\"1\",CP18,CQ18)","v":"ناجح في مواد الفصل الاول"},"-",null,null,null,"عليها مضاعفة جهودها والاهتمام أكثر"," براء فادي ابراهيم الاسمر",72.879997253417969,1166,null,55.1,{"$f":"Table!$D18&\"    \"&Table!$E18&\" / \"&Table!$F18&\" \"&\"/ \" & Table!$G18","v":"عمان    4 / 10 / 2007"},0,"",0,"",0,"",0,"",0,"",0,"",0,"",0,"",0,"",null,0,"                ","ناجح في مواد الفصل الاول","ناجحة في مواد الفصل الاول",null,{"$f":"IF(Value!$F$33=\"1\",Table!BI18,Table!BH18)","v":"ناجح و يرفع  لـ الصف التاسع"},{"$f":"IF(Value!$F$31=\"1\",Table!BM18,Table!BN18)","v":0},null,"-"]
[9," ثائر موسى مصطفى ابو سليم","الأردنية","عمان",31,7,2007,138,127,133,134,186,160,143,150,147,100,114,107,156,152,154,110,109,110,77,90,84,87,89,88,null,null,null,79,82,81,69,60,65,81,82,82,"ممتاز","-","-",null,null,null,null,null,null,1039,64.94000244140625,"ناجح و يرفع  لـ الصف التاسع",null,null,null,null,"ناجح و يرفع  لـ الصف التاسع",{"$f":"IF(Value!$F$31=\"1\",CP19,CQ19)","v":"مكمل في  :   اللعة العربية              "},"-",null,null,null,"عليها مضاعفة جهودها والاهتمام أكثر"," ثائر موسى مصطفى ابو سليم",64.94000244140625,1039,null,50.6,{"$f":"Table!$D19&\"    \"&Table!$E19&\" / \"&Table!$F19&\" \"&\"/ \" & Table!$G19","v":"عمان    31 / 7 / 2007"},0,"",1,"اللعة العربية",0,"",0,"",0,"",0,"",0,"",0,"",0,"",null,1,"  اللعة العربية              ","مكمل في  :   اللعة العربية              ","مكملـة في  :   اللعة العربية              ",null,{"$f":"IF(Value!$F$33=\"1\",Table!BI19,Table!BH19)","v":"ناجح و يرفع  لـ الصف التاسع"},{"$f":"IF(Value!$F$31=\"1\",Table!BM19,Table!BN19)","v":0},null,"-"]
[10," جواد احمد محمود ابو اصبع","الأردنية","معدي",6,8,2007,94,107,101,105,195,150,127,135,131,90,111,101,80,134,107,101,116,109,82,87,85,89,87,88,null,null,null,78,55,67,47,53,50,80,55,68,"ممتاز","-","-",null,null,null,null,null,null,884,55.25,"ناجح و يرفع  لـ الصف التاسع",null,null,null,null,"ناجح و يرفع  لـ الصف التاسع",{"$f":"IF(Value!$F$31=\"1\",CP20,CQ20)","v":"مكمل في  : التربية الاسلامية  اللعة العربية    الرياضيات  التربية الاجتماعية      الحاسوب  "},"-",null,null,null,"ضعيفة في دروسها , تحتاج الى بذل مزيد من الجهد"," جواد احمد محمود ابو اصبع",55.25,884,null,42.1,{"$f":"Table!$D20&\"    \"&Table!$E20&\" / \"&Table!$F20&\" \"&\"/ \" & Table!$G20","v":"معدي    6 / 8 / 2007"},1,"التربية الاسلامية",1,"اللعة العربية",0,"",1,"الرياضيات",1,"التربية الاجتماعية",0,"",0,"",1,"الحاسوب",0,"",null,5,"التربية الاسلامية  اللعة العربية    الرياضيات  التربية الاجتماعية      الحاسوب  ","مكمل في  : التربية الاسلامية  اللعة العربية    الرياضيات  التربية الاجتماعية      الحاسوب  ","مكملـة في  : التربية الاسلامية  اللعة العربية    الرياضيات  التربية الاجتماعية      الحاسوب  ",null,{"$f":"IF(Value!$F$33=\"1\",Table!BI20,Table!BH20)","v":"ناجح و يرفع  لـ الصف التاسع"},{"$f":"IF(Value!$F$31=\"1\",Table!BM20,Table!BN20)","v":0},null,"-"]
[11," حمزه محمود عبد الرحمن اسريوه","الأردنية","السلط",23,4,2007,152,131,142,240,268,254,166,158,162,188,192,190,192,192,192,166,152,159,98,95,97,91,93,92,null,null,null,96,100,98,94,91,93,97,100,99,"ممتاز","-","-",null,null,null,null,null,null,1389,86.80999755859375,"ناجح و يرفع  لـ الصف التاسع",null,null,null,null,"ناجح و يرفع  لـ الصف التاسع",{"$f":"IF(Value!$F$31=\"1\",CP21,CQ21)","v":"ناجح في مواد الفصل الاول"},"-",null,null,null,"خلوقة ومتعاونة وفعّالة ، أجمل التهاني لك ولوالديك"," حمزه محمود عبد الرحمن اسريوه",86.80999755859375,1389,null,86.9,{"$f":"Table!$D21&\"    \"&Table!$E21&\" / \"&Table!$F21&\" \"&\"/ \" & Table!$G21","v":"السلط    23 / 4 / 2007"},0,"",0,"",0,"",0,"",0,"",0,"",0,"",0,"",0,"",null,0,"                ","ناجح في مواد الفصل الاول","ناجحة في مواد الفصل الاول",null,{"$f":"IF(Value!$F$33=\"1\",Table!BI21,Table!BH21)","v":"ناجح و يرفع  لـ الصف التاسع"},{"$f":"IF(Value!$F$31=\"1\",Table!BM21,Table!BN21)","v":0},null,"-"]
[12," خليل بلال خليل البايض","الأردنية","السلط",5,6,2007,120,113,117,120,180,150,157,157,157,107,121,114,120,118,119,114,143,129,82,90,86,89,86,88,null,null,null,81,72,77,47,53,50,84,72,78,"ممتاز","-","-",null,null,null,null,null,null,991,61.939998626708984,"ناجح و يرفع  لـ الصف التاسع",null,null,null,null,"ناجح و يرفع  لـ الصف التاسع",{"$f":"IF(Value!$F$31=\"1\",CP22,CQ22)","v":"مكمل في  :   اللعة العربية            الحاسوب  "},"-",null,null,null,"مؤدبة وخلوقة ومجتهدة ، هنيئاً لوالديك هذا التفوق المميز"," خليل بلال خليل البايض",61.939998626708984,991,null,96.1,{"$f":"Table!$D22&\"    \"&Table!$E22&\" / \"&Table!$F22&\" \"&\"/ \" & Table!$G22","v":"السلط    5 / 6 / 2007"},0,"",1,"اللعة العربية",0,"",0,"",0,"",0,"",0,"",1,"الحاسوب",0,"",null,2,"  اللعة العربية            الحاسوب  ","مكمل في  :   اللعة العربية            الحاسوب  ","مكملـة في  :   اللعة العربية            الحاسوب  ",null,{"$f":"IF(Value!$F$33=\"1\",Table!BI22,Table!BH22)","v":"ناجح و يرفع  لـ الصف التاسع"},{"$f":"IF(Value!$F$31=\"1\",Table!BM22,Table!BN22)","v":0},null,"-"]
[13," رامي جميل محمد شبراوي","الأردنية","عمان",15,6,2007,113,154,134,140,212,176,105,132,119,114,132,123,122,132,127,110,117,114,88,89,89,89,89,89,null,null,null,92,70,81,56,66,61,91,70,81,"ممتاز","-","-",null,null,null,null,null,null,1016,63.5,"ناجح و يرفع  لـ الصف التاسع",null,null,null,null,"ناجح و يرفع  لـ الصف التاسع",{"$f":"IF(Value!$F$31=\"1\",CP23,CQ23)","v":"مكمل في  :   اللعة العربية              "},"-",null,null,null,"ضعيفة في دروسها , تحتاج الى بذل مزيد من الجهد"," رامي جميل محمد شبراوي",63.5,1016,null,43.2,{"$f":"Table!$D23&\"    \"&Table!$E23&\" / \"&Table!$F23&\" \"&\"/ \" & Table!$G23","v":"عمان    15 / 6 / 2007"},0,"",1,"اللعة العربية",0,"",0,"",0,"",0,"",0,"",0,"",0,"",null,1,"  اللعة العربية              ","مكمل في  :   اللعة العربية              ","مكملـة في  :   اللعة العربية              ",null,{"$f":"IF(Value!$F$33=\"1\",Table!BI23,Table!BH23)","v":"ناجح و يرفع  لـ الصف التاسع"},{"$f":"IF(Value!$F$31=\"1\",Table!BM23,Table!BN23)","v":0},null,"-"]
[14," زياد شادي زياد زياد","الأردنية","السلط",28,1,2007,144,145,145,233,262,248,161,154,158,160,189,175,170,168,169,130,158,144,95,92,94,86,87,87,null,null,null,96,86,91,66,73,70,96,86,91,"ممتاز","-","-",null,null,null,null,null,null,1291,80.69000244140625,"ناجح و يرفع  لـ الصف التاسع",null,null,null,null,"ناجح و يرفع  لـ الصف التاسع",{"$f":"IF(Value!$F$31=\"1\",CP24,CQ24)","v":"ناجح في مواد الفصل الاول"},"-",null,null,null,"يرجى من الوالدين مزيداً من المتابعة"," زياد شادي زياد زياد",80.69000244140625,1291,null,68.900000000000006,{"$f":"Table!$D24&\"    \"&Table!$E24&\" / \"&Table!$F24&\" \"&\"/ \" & Table!$G24","v":"السلط    28 / 1 / 2007"},0,"",0,"",0,"",0,"",0,"",0,"",0,"",0,"",0,"",null,0,"                ","ناجح في مواد الفصل الاول","ناجحة في مواد الفصل الاول",null,{"$f":"IF(Value!$F$33=\"1\",Table!BI24,Table!BH24)","v":"ناجح و يرفع  لـ الصف التاسع"},{"$f":"IF(Value!$F$31=\"1\",Table!BM24,Table!BN24)","v":0},null,"-"]
[15," زيد عصام محمد مسلم","الأردنية","السلط",13,2,2007,122,115,119,188,194,191,125,134,130,132,131,132,168,174,171,136,150,143,97,88,93,87,87,87,null,null,null,99,90,95,79,85,82,97,90,94,"ممتاز","-","-",null,null,null,null,null,null,1157,72.30999755859375,"ناجح و يرفع  لـ الصف التاسع",null,null,null,null,"ناجح و يرفع  لـ الصف التاسع",{"$f":"IF(Value!$F$31=\"1\",CP25,CQ25)","v":"ناجح في مواد الفصل الاول"},"-",null,null,null,"عليها مضاعفة جهودها والاهتمام أكثر"," زيد عصام محمد مسلم",72.30999755859375,1157,null,56.8,{"$f":"Table!$D25&\"    \"&Table!$E25&\" / \"&Table!$F25&\" \"&\"/ \" & Table!$G25","v":"السلط    13 / 2 / 2007"},0,"",0,"",0,"",0,"",0,"",0,"",0,"",0,"",0,"",null,0,"                ","ناجح في مواد الفصل الاول","ناجحة في مواد الفصل الاول",null,{"$f":"IF(Value!$F$33=\"1\",Table!BI25,Table!BH25)","v":"ناجح و يرفع  لـ الصف التاسع"},{"$f":"IF(Value!$F$31=\"1\",Table!BM25,Table!BN25)","v":0},null,"-"]
[16," زيد علي سعد دعاس","الأردنية","عمان",13,4,2007,150,131,141,157,189,173,138,144,141,125,156,141,168,168,168,162,157,160,90,93,92,88,89,89,null,null,null,100,73,87,61,70,66,95,73,84,"ممتاز","-","-",null,null,null,null,null,null,1161,72.55999755859375,"ناجح و يرفع  لـ الصف التاسع",null,null,null,null,"ناجح و يرفع  لـ الصف التاسع",{"$f":"IF(Value!$F$31=\"1\",CP26,CQ26)","v":"ناجح في مواد الفصل الاول"},"-",null,null,null,"جيدة في دروسها ، أتمنى لها مزيدا من التقدم والنجاح"," زيد علي سعد دعاس",72.55999755859375,1161,null,72.7,{"$f":"Table!$D26&\"    \"&Table!$E26&\" / \"&Table!$F26&\" \"&\"/ \" & Table!$G26","v":"عمان    13 / 4 / 2007"},0,"",0,"",0,"",0,"",0,"",0,"",0,"",0,"",0,"",null,0,"                ","ناجح في مواد الفصل الاول","ناجحة في مواد الفصل الاول",null,{"$f":"IF(Value!$F$33=\"1\",Table!BI26,Table!BH26)","v":"ناجح و يرفع  لـ الصف التاسع"},{"$f":"IF(Value!$F$31=\"1\",Table!BM26,Table!BN26)","v":0},null,"-"]
[17," زيد ماجد ربيع ابو ربيع","الأردنية","السلط",9,6,2007,94,113,104,105,195,150,100,119,110,90,109,100,82,134,108,101,116,109,60,87,74,85,88,87,null,null,null,75,55,65,47,53,50,77,55,66,"ممتاز","-","-",null,null,null,null,null,null,862,53.880001068115234,"ناجح و يرفع  لـ الصف التاسع",null,null,null,null,"ناجح و يرفع  لـ الصف التاسع",{"$f":"IF(Value!$F$31=\"1\",CP27,CQ27)","v":"مكمل في  : التربية الاسلامية  اللعة العربية    الرياضيات  التربية الاجتماعية      الحاسوب  "},"-",null,null,null,"يرجى من الوالدين مزيداً من المتابعة"," زيد ماجد ربيع ابو ربيع",53.880001068115234,862,null,66.2,{"$f":"Table!$D27&\"    \"&Table!$E27&\" / \"&Table!$F27&\" \"&\"/ \" & Table!$G27","v":"السلط    9 / 6 / 2007"},1,"التربية الاسلامية",1,"اللعة العربية",0,"",1,"الرياضيات",1,"التربية الاجتماعية",0,"",0,"",1,"الحاسوب",0,"",null,5,"التربية الاسلامية  اللعة العربية    الرياضيات  التربية الاجتماعية      الحاسوب  ","مكمل في  : التربية الاسلامية  اللعة العربية    الرياضيات  التربية الاجتماعية      الحاسوب  ","مكملـة في  : التربية الاسلامية  اللعة العربية    الرياضيات  التربية الاجتماعية      الحاسوب  ",null,{"$f":"IF(Value!$F$33=\"1\",Table!BI27,Table!BH27)","v":"ناجح و يرفع  لـ الصف التاسع"},{"$f":"IF(Value!$F$31=\"1\",Table!BM27,Table!BN27)","v":0},null,"-"]
[18," زيد محمد عمر عايش","الأردنية","عمان",3,5,2007,158,163,161,169,209,189,141,146,144,123,159,141,156,150,153,178,137,158,88,85,87,89,87,88,null,null,null,82,96,89,80,70,75,82,96,89,"ممتاز","-","-",null,null,null,null,null,null,1199,74.94000244140625,"ناجح و يرفع  لـ الصف التاسع",null,null,null,null,"ناجح و يرفع  لـ الصف التاسع",{"$f":"IF(Value!$F$31=\"1\",CP28,CQ28)","v":"ناجح في مواد الفصل الاول"},"-",null,null,null,"جيدة في دروسها ، أتمنى لها مزيدا من التقدم والنجاح"," زيد محمد عمر عايش",74.94000244140625,1199,null,71.599999999999994,{"$f":"Table!$D28&\"    \"&Table!$E28&\" / \"&Table!$F28&\" \"&\"/ \" & Table!$G28","v":"عمان    3 / 5 / 2007"},0,"",0,"",0,"",0,"",0,"",0,"",0,"",0,"",0,"",null,0,"                ","ناجح في مواد الفصل الاول","ناجحة في مواد الفصل الاول",null,{"$f":"IF(Value!$F$33=\"1\",Table!BI28,Table!BH28)","v":"ناجح و يرفع  لـ الصف التاسع"},{"$f":"IF(Value!$F$31=\"1\",Table!BM28,Table!BN28)","v":0},null,"-"]
[19," سامي انور يوسف بنات","الأردنية","ماركا",28,5,2007,160,140,150,194,217,206,148,147,148,177,167,172,176,176,176,136,181,159,96,93,95,86,88,87,null,null,null,95,84,90,95,82,89,95,84,90,"ممتاز","-","-",null,null,null,null,null,null,1280,80,"ناجح و يرفع  لـ الصف التاسع",null,null,null,null,"ناجح و يرفع  لـ الصف التاسع",{"$f":"IF(Value!$F$31=\"1\",CP29,CQ29)","v":"ناجح في مواد الفصل الاول"},"-",null,null,null,"جيدة في دروسها ، أتمنى لها مزيدا من التقدم والنجاح"," سامي انور يوسف بنات",80,1280,null,73.8,{"$f":"Table!$D29&\"    \"&Table!$E29&\" / \"&Table!$F29&\" \"&\"/ \" & Table!$G29","v":"ماركا    28 / 5 / 2007"},0,"",0,"",0,"",0,"",0,"",0,"",0,"",0,"",0,"",null,0,"                ","ناجح في مواد الفصل الاول","ناجحة في مواد الفصل الاول",null,{"$f":"IF(Value!$F$33=\"1\",Table!BI29,Table!BH29)","v":"ناجح و يرفع  لـ الصف التاسع"},{"$f":"IF(Value!$F$31=\"1\",Table!BM29,Table!BN29)","v":0},null,"-"]
[20," سعيد عوض سلامه اسعد","الأردنية","السلط",11,12,2007,141,134,138,182,154,168,111,125,118,122,127,125,174,174,174,146,139,143,80,86,83,88,87,88,null,null,null,82,94,88,72,52,62,77,94,86,"ممتاز","-","-",null,null,null,null,null,null,1102,68.879997253417969,"ناجح و يرفع  لـ الصف التاسع",null,null,null,null,"ناجح و يرفع  لـ الصف التاسع",{"$f":"IF(Value!$F$31=\"1\",CP30,CQ30)","v":"ناجح في مواد الفصل الاول"},"-",null,null,null,"ضعيفة في دروسها , تحتاج الى بذل مزيد من الجهد"," سعيد عوض سلامه اسعد",68.879997253417969,1102,null,49.6,{"$f":"Table!$D30&\"    \"&Table!$E30&\" / \"&Table!$F30&\" \"&\"/ \" & Table!$G30","v":"السلط    11 / 12 / 2007"},0,"",0,"",0,"",0,"",0,"",0,"",0,"",0,"",0,"",null,0,"                ","ناجح في مواد الفصل الاول","ناجحة في مواد الفصل الاول",null,{"$f":"IF(Value!$F$33=\"1\",Table!BI30,Table!BH30)","v":"ناجح و يرفع  لـ الصف التاسع"},{"$f":"IF(Value!$F$31=\"1\",Table!BM30,Table!BN30)","v":0},null,"-"]
[21," عباده غسان سعيد بدران","الأردنية","السلط",26,3,2007,132,125,129,126,219,173,112,121,117,100,135,118,162,160,161,104,139,122,79,83,81,86,88,87,null,null,null,80,72,76,61,60,61,77,72,75,"ممتاز","-","-",null,null,null,null,null,null,1032,64.5,"ناجح و يرفع  لـ الصف التاسع",null,null,null,null,"ناجح و يرفع  لـ الصف التاسع",{"$f":"IF(Value!$F$31=\"1\",CP31,CQ31)","v":"مكمل في  :   اللعة العربية              "},"-",null,null,null,"جيدة في دروسها ، أتمنى لها مزيدا من التقدم والنجاح"," عباده غسان سعيد بدران",64.5,1032,null,73.3,{"$f":"Table!$D31&\"    \"&Table!$E31&\" / \"&Table!$F31&\" \"&\"/ \" & Table!$G31","v":"السلط    26 / 3 / 2007"},0,"",1,"اللعة العربية",0,"",0,"",0,"",0,"",0,"",0,"",0,"",null,1,"  اللعة العربية              ","مكمل في  :   اللعة العربية              ","مكملـة في  :   اللعة العربية              ",null,{"$f":"IF(Value!$F$33=\"1\",Table!BI31,Table!BH31)","v":"ناجح و يرفع  لـ الصف التاسع"},{"$f":"IF(Value!$F$31=\"1\",Table!BM31,Table!BN31)","v":0},null,"-"]
[22," عبد الله بسام محمد رضوان","الأردنية","السلط",14,11,2007,174,183,179,146,208,177,113,121,117,182,176,179,190,192,191,144,169,157,98,93,96,88,88,88,null,null,null,99,94,97,83,75,79,96,94,95,"ممتاز","-","-",null,null,null,null,null,null,1271,79.44000244140625,"ناجح و يرفع  لـ الصف التاسع",null,null,null,null,"ناجح و يرفع  لـ الصف التاسع",{"$f":"IF(Value!$F$31=\"1\",CP32,CQ32)","v":"مكمل في  :   اللعة العربية              "},"-",null,null,null,"عليها مضاعفة جهودها والاهتمام أكثر"," عبد الله بسام محمد رضوان",79.44000244140625,1271,null,51.3,{"$f":"Table!$D32&\"    \"&Table!$E32&\" / \"&Table!$F32&\" \"&\"/ \" & Table!$G32","v":"السلط    14 / 11 / 2007"},0,"",1,"اللعة العربية",0,"",0,"",0,"",0,"",0,"",0,"",0,"",null,1,"  اللعة العربية              ","مكمل في  :   اللعة العربية              ","مكملـة في  :   اللعة العربية              ",null,{"$f":"IF(Value!$F$33=\"1\",Table!BI32,Table!BH32)","v":"ناجح و يرفع  لـ الصف التاسع"},{"$f":"IF(Value!$F$31=\"1\",Table!BM32,Table!BN32)","v":0},null,"-"]
[23," عبد الله خالد عبد الله العبادي","الأردنية","السلط",8,12,2006,109,116,113,125,175,150,104,121,113,100,120,110,110,130,120,104,115,110,84,88,86,88,90,89,null,null,null,84,82,83,47,53,50,76,82,79,"ممتاز","-","السابع",null,null,null,null,null,null,928,58,"ناجح و يرفع  لـ الصف التاسع",null,null,null,null,"ناجح و يرفع  لـ الصف التاسع",{"$f":"IF(Value!$F$31=\"1\",CP33,CQ33)","v":"مكمل في  :   اللعة العربية            الحاسوب  "},"-",null,null,null,"عليها مضاعفة جهودها والاهتمام أكثر"," عبد الله خالد عبد الله العبادي",58,928,null,51.4,{"$f":"Table!$D33&\"    \"&Table!$E33&\" / \"&Table!$F33&\" \"&\"/ \" & Table!$G33","v":"السلط    8 / 12 / 2006"},0,"",1,"اللعة العربية",0,"",0,"",0,"",0,"",0,"",1,"الحاسوب",0,"",null,2,"  اللعة العربية            الحاسوب  ","مكمل في  :   اللعة العربية            الحاسوب  ","مكملـة في  :   اللعة العربية            الحاسوب  ",null,{"$f":"IF(Value!$F$33=\"1\",Table!BI33,Table!BH33)","v":"ناجح و يرفع  لـ الصف التاسع"},{"$f":"IF(Value!$F$31=\"1\",Table!BM33,Table!BN33)","v":0},null,"-"]
[24," عبد الله عبد الرحمن محمد الملع","الأردنية","السلط",31,10,2007,159,163,161,176,183,180,150,153,152,136,128,132,190,186,188,158,150,154,90,89,90,87,88,88,null,null,null,90,90,90,84,79,82,88,90,89,"ممتاز","-","-",null,null,null,null,null,null,1228,76.75,"ناجح و يرفع  لـ الصف التاسع",null,null,null,null,"ناجح و يرفع  لـ الصف التاسع",{"$f":"IF(Value!$F$31=\"1\",CP34,CQ34)","v":"ناجح في مواد الفصل الاول"},"-",null,null,null,"عليها مضاعفة جهودها والاهتمام أكثر"," عبد الله عبد الرحمن محمد الملع",76.75,1228,null,51.7,{"$f":"Table!$D34&\"    \"&Table!$E34&\" / \"&Table!$F34&\" \"&\"/ \" & Table!$G34","v":"السلط    31 / 10 / 2007"},0,"",0,"",0,"",0,"",0,"",0,"",0,"",0,"",0,"",null,0,"                ","ناجح في مواد الفصل الاول","ناجحة في مواد الفصل الاول",null,{"$f":"IF(Value!$F$33=\"1\",Table!BI34,Table!BH34)","v":"ناجح و يرفع  لـ الصف التاسع"},{"$f":"IF(Value!$F$31=\"1\",Table!BM34,Table!BN34)","v":0},null,"-"]
[25," عبد الله ناصر يونس بدران","الأردنية","السلط",10,2,2007,135,144,140,154,201,178,108,118,113,103,126,115,176,178,177,138,117,128,80,88,84,88,88,88,null,null,null,87,92,90,76,80,78,77,92,85,"ممتاز","-","-",null,null,null,null,null,null,1104,69,"ناجح و يرفع  لـ الصف التاسع",null,null,null,null,"ناجح و يرفع  لـ الصف التاسع",{"$f":"IF(Value!$F$31=\"1\",CP35,CQ35)","v":"ناجح في مواد الفصل الاول"},"-",null,null,null,"عليها مضاعفة جهودها والاهتمام أكثر"," عبد الله ناصر يونس بدران",69,1104,null,50.3,{"$f":"Table!$D35&\"    \"&Table!$E35&\" / \"&Table!$F35&\" \"&\"/ \" & Table!$G35","v":"السلط    10 / 2 / 2007"},0,"",0,"",0,"",0,"",0,"",0,"",0,"",0,"",0,"",null,0,"                ","ناجح في مواد الفصل الاول","ناجحة في مواد الفصل الاول",null,{"$f":"IF(Value!$F$33=\"1\",Table!BI35,Table!BH35)","v":"ناجح و يرفع  لـ الصف التاسع"},{"$f":"IF(Value!$F$31=\"1\",Table!BM35,Table!BN35)","v":0},null,"-"]
[26," عدي فادي سعيد شبراوي","الأردنية","السلط",9,9,2007,180,139,160,168,200,184,101,124,113,144,148,146,184,182,183,184,179,182,94,91,93,88,86,87,null,null,null,94,82,88,87,80,84,91,82,87,"ممتاز","-","-",null,null,null,null,null,null,1227,76.69000244140625,"ناجح و يرفع  لـ الصف التاسع",null,null,null,null,"ناجح و يرفع  لـ الصف التاسع",{"$f":"IF(Value!$F$31=\"1\",CP36,CQ36)","v":"ناجح في مواد الفصل الاول"},"-",null,null,null,"عليها مضاعفة جهودها والاهتمام أكثر"," عدي فادي سعيد شبراوي",76.69000244140625,1227,null,57.3,{"$f":"Table!$D36&\"    \"&Table!$E36&\" / \"&Table!$F36&\" \"&\"/ \" & Table!$G36","v":"السلط    9 / 9 / 2007"},0,"",0,"",0,"",0,"",0,"",0,"",0,"",0,"",0,"",null,0,"                ","ناجح في مواد الفصل الاول","ناجحة في مواد الفصل الاول",null,{"$f":"IF(Value!$F$33=\"1\",Table!BI36,Table!BH36)","v":"ناجح و يرفع  لـ الصف التاسع"},{"$f":"IF(Value!$F$31=\"1\",Table!BM36,Table!BN36)","v":0},null,"-"]
[27," علاء وسام محمد الفيومي","الأردنية","السلط",28,9,2007,144,134,139,197,224,211,111,122,117,143,162,153,176,182,179,178,140,159,89,91,90,90,88,89,null,null,null,88,84,86,83,81,82,86,84,85,"ممتاز","-","-",null,null,null,null,null,null,1211,75.69000244140625,"ناجح و يرفع  لـ الصف التاسع",null,null,null,null,"ناجح و يرفع  لـ الصف التاسع",{"$f":"IF(Value!$F$31=\"1\",CP37,CQ37)","v":"ناجح في مواد الفصل الاول"},"-",null,null,null,"يرجى من الوالدين مزيداً من المتابعة"," علاء وسام محمد الفيومي",75.69000244140625,1211,null,61.9,{"$f":"Table!$D37&\"    \"&Table!$E37&\" / \"&Table!$F37&\" \"&\"/ \" & Table!$G37","v":"السلط    28 / 9 / 2007"},0,"",0,"",0,"",0,"",0,"",0,"",0,"",0,"",0,"",null,0,"                ","ناجح في مواد الفصل الاول","ناجحة في مواد الفصل الاول",null,{"$f":"IF(Value!$F$33=\"1\",Table!BI37,Table!BH37)","v":"ناجح و يرفع  لـ الصف التاسع"},{"$f":"IF(Value!$F$31=\"1\",Table!BM37,Table!BN37)","v":0},null,"-"]
[28," عمر احمد سليمان العمايره","الأردنية","السلط",8,4,2007,161,140,151,267,253,260,176,173,175,161,162,162,190,190,190,154,175,165,95,93,94,88,88,88,null,null,null,96,90,93,93,90,92,96,90,93,"ممتاز","-","-",null,null,null,null,null,null,1381,86.30999755859375,"ناجح و يرفع  لـ الصف التاسع",null,null,null,null,"ناجح و يرفع  لـ الصف التاسع",{"$f":"IF(Value!$F$31=\"1\",CP38,CQ38)","v":"ناجح في مواد الفصل الاول"},"-",null,null,null,"يرجى من الوالدين مزيداً من المتابعة"," عمر احمد سليمان العمايره",86.30999755859375,1381,null,60.9,{"$f":"Table!$D38&\"    \"&Table!$E38&\" / \"&Table!$F38&\" \"&\"/ \" & Table!$G38","v":"السلط    8 / 4 / 2007"},0,"",0,"",0,"",0,"",0,"",0,"",0,"",0,"",0,"",null,0,"                ","ناجح في مواد الفصل الاول","ناجحة في مواد الفصل الاول",null,{"$f":"IF(Value!$F$33=\"1\",Table!BI38,Table!BH38)","v":"ناجح و يرفع  لـ الصف التاسع"},{"$f":"IF(Value!$F$31=\"1\",Table!BM38,Table!BN38)","v":0},null,"-"]
[29," عمر خالد محمد ابو فضه","الأردنية","عمان",29,9,2007,180,160,170,247,233,240,182,173,178,193,191,192,180,182,181,188,180,184,99,96,98,93,94,94,null,null,null,99,96,98,88,87,88,99,96,98,"ممتاز","-","-",null,null,null,null,null,null,1429,89.30999755859375,"ناجح و يرفع  لـ الصف التاسع",null,null,null,null,"ناجح و يرفع  لـ الصف التاسع",{"$f":"IF(Value!$F$31=\"1\",CP39,CQ39)","v":"ناجح في مواد الفصل الاول"},"-",null,null,null,"يرجى من الوالدين مزيداً من المتابعة"," عمر خالد محمد ابو فضه",89.30999755859375,1429,null,61.4,{"$f":"Table!$D39&\"    \"&Table!$E39&\" / \"&Table!$F39&\" \"&\"/ \" & Table!$G39","v":"عمان    29 / 9 / 2007"},0,"",0,"",0,"",0,"",0,"",0,"",0,"",0,"",0,"",null,0,"                ","ناجح في مواد الفصل الاول","ناجحة في مواد الفصل الاول",null,{"$f":"IF(Value!$F$33=\"1\",Table!BI39,Table!BH39)","v":"ناجح و يرفع  لـ الصف التاسع"},{"$f":"IF(Value!$F$31=\"1\",Table!BM39,Table!BN39)","v":0},null,"-"]
[30," فارس غسان محمد رضوان","الأردنية","السلط",19,9,2007,136,122,129,175,197,186,162,164,163,116,124,120,180,158,169,138,127,133,84,90,87,88,89,89,null,null,null,82,74,78,77,72,75,84,74,79,"ممتاز","-","-",null,null,null,null,null,null,1132,70.75,"ناجح و يرفع  لـ الصف التاسع",null,null,null,null,"ناجح و يرفع  لـ الصف التاسع",{"$f":"IF(Value!$F$31=\"1\",CP40,CQ40)","v":"ناجح في مواد الفصل الاول"},"الخامس",null,null,null,"ضعيفة في دروسها , تحتاج الى بذل مزيد من الجهد"," فارس غسان محمد رضوان",70.75,1132,null,43.3,{"$f":"Table!$D40&\"    \"&Table!$E40&\" / \"&Table!$F40&\" \"&\"/ \" & Table!$G40","v":"السلط    19 / 9 / 2007"},0,"",0,"",0,"",0,"",0,"",0,"",0,"",0,"",0,"",null,0,"                ","ناجح في مواد الفصل الاول","ناجحة في مواد الفصل الاول",null,{"$f":"IF(Value!$F$33=\"1\",Table!BI40,Table!BH40)","v":"ناجح و يرفع  لـ الصف التاسع"},{"$f":"IF(Value!$F$31=\"1\",Table!BM40,Table!BN40)","v":0},null,"-"]
[31," فراس فضل عبد الرازق سعادة","الأردنية","عمان",16,8,2007,142,144,143,185,170,178,99,122,111,151,153,152,182,192,187,164,140,152,92,89,91,87,89,88,null,null,null,93,86,90,74,73,74,89,86,88,"ممتاز","-","-",null,null,null,null,null,null,1175,73.44000244140625,"ناجح و يرفع  لـ الصف التاسع",null,null,null,null,"ناجح و يرفع  لـ الصف التاسع",{"$f":"IF(Value!$F$31=\"1\",CP41,CQ41)","v":"مكمل في  :     اللغة الانجليزية            "},"-",null,null,null,"يرجى من الوالدين مزيداً من المتابعة"," فراس فضل عبد الرازق سعادة",73.44000244140625,1175,null,68.400000000000006,{"$f":"Table!$D41&\"    \"&Table!$E41&\" / \"&Table!$F41&\" \"&\"/ \" & Table!$G41","v":"عمان    16 / 8 / 2007"},0,"",0,"",1,"اللغة الانجليزية",0,"",0,"",0,"",0,"",0,"",0,"",null,1,"    اللغة الانجليزية            ","مكمل في  :     اللغة الانجليزية            ","مكملـة في  :     اللغة الانجليزية            ",null,{"$f":"IF(Value!$F$33=\"1\",Table!BI41,Table!BH41)","v":"ناجح و يرفع  لـ الصف التاسع"},{"$f":"IF(Value!$F$31=\"1\",Table!BM41,Table!BN41)","v":0},null,"-"]
[32," لؤي بسام عبد الرحمن عامر","الأردنية","اربد",3,12,2007,186,193,190,288,293,291,189,174,182,192,198,195,186,180,183,195,183,189,99,97,98,93,91,92,null,null,null,99,100,100,100,96,98,99,100,100,"ممتاز","-","-",null,null,null,null,null,null,1528,95.5,"ناجح و يرفع  لـ الصف التاسع",null,null,null,null,"ناجح و يرفع  لـ الصف التاسع",{"$f":"IF(Value!$F$31=\"1\",CP42,CQ42)","v":"ناجح في مواد الفصل الاول"},"-",null,null,null,"عليها مضاعفة جهودها والاهتمام أكثر"," لؤي بسام عبد الرحمن عامر",95.5,1528,null,50.6,{"$f":"Table!$D42&\"    \"&Table!$E42&\" / \"&Table!$F42&\" \"&\"/ \" & Table!$G42","v":"اربد    3 / 12 / 2007"},0,"",0,"",0,"",0,"",0,"",0,"",0,"",0,"",0,"",null,0,"                ","ناجح في مواد الفصل الاول","ناجحة في مواد الفصل الاول",null,{"$f":"IF(Value!$F$33=\"1\",Table!BI42,Table!BH42)","v":"ناجح و يرفع  لـ الصف التاسع"},{"$f":"IF(Value!$F$31=\"1\",Table!BM42,Table!BN42)","v":0},null,"-"]
[33," ليث عبد الرحيم عبد المنعم قنديل","الأردنية","السلط",21,8,2006,162,128,145,142,198,170,101,121,111,100,128,114,166,172,169,119,139,129,85,91,88,85,90,88,null,null,null,84,90,87,61,69,65,87,90,89,"ممتاز","-","الثالث",null,null,null,null,null,null,1079,67.44000244140625,"ناجح و يرفع  لـ الصف التاسع",null,null,null,null,"ناجح و يرفع  لـ الصف التاسع",{"$f":"IF(Value!$F$31=\"1\",CP43,CQ43)","v":"مكمل في  :   اللعة العربية              "},"الرابع",null,null,null,"ضعيفة في دروسها , تحتاج الى بذل مزيد من الجهد"," ليث عبد الرحيم عبد المنعم قنديل",67.44000244140625,1079,null,48.5,{"$f":"Table!$D43&\"    \"&Table!$E43&\" / \"&Table!$F43&\" \"&\"/ \" & Table!$G43","v":"السلط    21 / 8 / 2006"},{"$f":"IF(H43=0,\"\",IF(H43>=($H$10/2),0,1))","v":0},"",{"$f":"IF(K43=0,\"\",IF(K43>=($K$10/2),0,1))","v":1},"اللعة العربية",{"$f":"IF(N43=0,\"\",IF(N43>=($N$10/2),0,1))","v":0},"",{"$f":"IF(Q43=0,\"\",IF(Q43>=($Q$10/2),0,1))","v":0},"",{"$f":"IF(T43=0,\"\",IF(T43>=($T$10/2),0,1))","v":0},"",{"$f":"IF(W43=0,\"\",IF(W43>=($W$10/2),0,1))","v":0},"",{"$f":"IF(AI43=0,\"\",IF(AI43>=($AI$10/2),0,1))","v":0},"",{"$f":"IF(AL43=0,\"\",IF(AL43>=($AL$10/2),0,1))","v":0},"",{"$f":"IF(AO43=0,\"\",IF(AO43>=($AO$10/2),0,1))","v":0},"",null,1,"  اللعة العربية              ","مكمل في  :   اللعة العربية              ","مكملـة في  :   اللعة العربية              ",null,{"$f":"IF(Value!$F$33=\"1\",Table!BI43,Table!BH43)","v":"ناجح و يرفع  لـ الصف التاسع"},{"$f":"IF(Value!$F$31=\"1\",Table!BM43,Table!BN43)","v":0},null,{"$f":"IF(AS43=\"-\",\"-\",AS43-BF43)","v":"-"}]
[34," محمد احمد خليل ابو صفيه","الفلسطينية","فلسطين",5,10,2006,130,106,118,105,195,150,99,125,112,90,109,100,148,156,152,105,112,109,75,88,82,89,88,89,null,null,null,73,55,64,66,59,63,76,55,66,"ممتاز","-","الصف السادس",null,null,null,null,null,null,934,58.380001068115234,"ناجح و يرفع  لـ الصف التاسع",null,null,null,null,"ناجح و يرفع  لـ الصف التاسع",{"$f":"IF(Value!$F$31=\"1\",CP44,CQ44)","v":"مكمل في  :   اللعة العربية  اللغة الانجليزية  الرياضيات          "},"-",null,null,null,"يرجى من الوالدين مزيداً من المتابعة"," محمد احمد خليل ابو صفيه",58.380001068115234,934,null,68.8,{"$f":"Table!$D44&\"    \"&Table!$E44&\" / \"&Table!$F44&\" \"&\"/ \" & Table!$G44","v":"فلسطين    5 / 10 / 2006"},0,"",1,"اللعة العربية",1,"اللغة الانجليزية",1,"الرياضيات",0,"",0,"",0,"",0,"",0,"",null,3,"  اللعة العربية  اللغة الانجليزية  الرياضيات          ","مكمل في  :   اللعة العربية  اللغة الانجليزية  الرياضيات          ","مكملـة في  :   اللعة العربية  اللغة الانجليزية  الرياضيات          ",null,{"$f":"IF(Value!$F$33=\"1\",Table!BI44,Table!BH44)","v":"ناجح و يرفع  لـ الصف التاسع"},{"$f":"IF(Value!$F$31=\"1\",Table!BM44,Table!BN44)","v":0},null,"-"]
[35," محمد احمد محمود عشيش","الأردنية","السلط",13,5,2007,101,106,104,105,195,150,102,123,113,90,113,102,114,146,130,105,122,114,77,88,83,87,89,88,null,null,null,75,76,76,54,51,53,66,76,71,"ممتاز","-","-",null,null,null,null,null,null,913,57.060001373291016,"ناجح و يرفع  لـ الصف التاسع",null,null,null,null,"ناجح و يرفع  لـ الصف التاسع",{"$f":"IF(Value!$F$31=\"1\",CP45,CQ45)","v":"مكمل في  :   اللعة العربية    الرياضيات          "},"-",null,null,null,"عليها مضاعفة جهودها والاهتمام أكثر"," محمد احمد محمود عشيش",57.060001373291016,913,null,54.3,{"$f":"Table!$D45&\"    \"&Table!$E45&\" / \"&Table!$F45&\" \"&\"/ \" & Table!$G45","v":"السلط    13 / 5 / 2007"},0,"",1,"اللعة العربية",0,"",1,"الرياضيات",0,"",0,"",0,"",0,"",0,"",null,2,"  اللعة العربية    الرياضيات          ","مكمل في  :   اللعة العربية    الرياضيات          ","مكملـة في  :   اللعة العربية    الرياضيات          ",null,{"$f":"IF(Value!$F$33=\"1\",Table!BI45,Table!BH45)","v":"ناجح و يرفع  لـ الصف التاسع"},{"$f":"IF(Value!$F$31=\"1\",Table!BM45,Table!BN45)","v":0},null,"-"]
[36," محمد اسامه حمزه ابو زعنونه","الأردنية","السلط",4,12,2007,159,155,157,183,198,191,159,149,154,172,148,160,178,190,184,177,112,145,93,91,92,85,88,87,null,null,null,89,90,90,73,64,69,91,90,91,"ممتاز","-","-",null,null,null,null,null,null,1241,77.55999755859375,"ناجح و يرفع  لـ الصف التاسع",null,null,null,null,"ناجح و يرفع  لـ الصف التاسع",{"$f":"IF(Value!$F$31=\"1\",CP46,CQ46)","v":"ناجح في مواد الفصل الاول"},"-",null,null,null,"مؤدبة وخلوقة ومجتهدة ، هنيئاً لوالديك هذا التفوق المميز"," محمد اسامه حمزه ابو زعنونه",77.55999755859375,1241,null,94.4,{"$f":"Table!$D46&\"    \"&Table!$E46&\" / \"&Table!$F46&\" \"&\"/ \" & Table!$G46","v":"السلط    4 / 12 / 2007"},0,"",0,"",0,"",0,"",0,"",0,"",0,"",0,"",0,"",null,0,"                ","ناجح في مواد الفصل الاول","ناجحة في مواد الفصل الاول",null,{"$f":"IF(Value!$F$33=\"1\",Table!BI46,Table!BH46)","v":"ناجح و يرفع  لـ الصف التاسع"},{"$f":"IF(Value!$F$31=\"1\",Table!BM46,Table!BN46)","v":0},null,"-"]
[37," محمد جلال عوض عبد القادر","الأردنية","السلط",23,6,2007,148,160,154,161,181,171,156,156,156,130,143,137,136,146,141,169,176,173,86,89,88,84,88,86,null,null,null,89,92,91,75,66,71,82,92,87,"ممتاز","-","-",null,null,null,null,null,null,1181,73.80999755859375,"ناجح و يرفع  لـ الصف التاسع",null,null,null,null,"ناجح و يرفع  لـ الصف التاسع",{"$f":"IF(Value!$F$31=\"1\",CP47,CQ47)","v":"ناجح في مواد الفصل الاول"},"-",null,null,null,"خلوقة ومتعاونة وفعّالة ، أجمل التهاني لك ولوالديك"," محمد جلال عوض عبد القادر",73.80999755859375,1181,null,82.1,{"$f":"Table!$D47&\"    \"&Table!$E47&\" / \"&Table!$F47&\" \"&\"/ \" & Table!$G47","v":"السلط    23 / 6 / 2007"},0,"",0,"",0,"",0,"",0,"",0,"",0,"",0,"",0,"",null,0,"                ","ناجح في مواد الفصل الاول","ناجحة في مواد الفصل الاول",null,{"$f":"IF(Value!$F$33=\"1\",Table!BI47,Table!BH47)","v":"ناجح و يرفع  لـ الصف التاسع"},{"$f":"IF(Value!$F$31=\"1\",Table!BM47,Table!BN47)","v":0},null,"-"]
[38," محمد خالد وصفي عبد اللطيف","الأردنية","السلط",14,10,2007,146,146,146,179,183,181,115,123,119,102,133,118,188,184,186,147,137,142,79,90,85,89,90,90,null,null,null,90,90,90,81,65,73,86,90,88,"ممتاز","-","-",null,null,null,null,null,null,1143,71.44000244140625,"ناجح و يرفع  لـ الصف التاسع",null,null,null,null,"ناجح و يرفع  لـ الصف التاسع",{"$f":"IF(Value!$F$31=\"1\",CP48,CQ48)","v":"ناجح في مواد الفصل الاول"},"-",null,null,null,"يرجى من الوالدين مزيداً من المتابعة"," محمد خالد وصفي عبد اللطيف",71.44000244140625,1143,null,61.4,{"$f":"Table!$D48&\"    \"&Table!$E48&\" / \"&Table!$F48&\" \"&\"/ \" & Table!$G48","v":"السلط    14 / 10 / 2007"},0,"",0,"",0,"",0,"",0,"",0,"",0,"",0,"",0,"",null,0,"                ","ناجح في مواد الفصل الاول","ناجحة في مواد الفصل الاول",null,{"$f":"IF(Value!$F$33=\"1\",Table!BI48,Table!BH48)","v":"ناجح و يرفع  لـ الصف التاسع"},{"$f":"IF(Value!$F$31=\"1\",Table!BM48,Table!BN48)","v":0},null,"-"]
[39," محمد عمر محمد يوسف","الأردنية","السلط",3,9,2007,94,120,107,105,217,161,114,124,119,90,123,107,80,130,105,105,132,119,75,91,83,88,86,87,null,null,null,80,90,85,47,60,54,80,90,85,"ممتاز","-","-",null,null,null,null,null,null,942,58.880001068115234,"ناجح و يرفع  لـ الصف التاسع",null,null,null,null,"ناجح و يرفع  لـ الصف التاسع",{"$f":"IF(Value!$F$31=\"1\",CP49,CQ49)","v":"مكمل في  : التربية الاسلامية  اللعة العربية    الرياضيات  التربية الاجتماعية      الحاسوب  "},"-",null,null,null,"جيدة في دروسها ، أتمنى لها مزيدا من التقدم والنجاح"," محمد عمر محمد يوسف",58.880001068115234,942,null,77.8,{"$f":"Table!$D49&\"    \"&Table!$E49&\" / \"&Table!$F49&\" \"&\"/ \" & Table!$G49","v":"السلط    3 / 9 / 2007"},1,"التربية الاسلامية",1,"اللعة العربية",0,"",1,"الرياضيات",1,"التربية الاجتماعية",0,"",0,"",1,"الحاسوب",0,"",null,5,"التربية الاسلامية  اللعة العربية    الرياضيات  التربية الاجتماعية      الحاسوب  ","مكمل في  : التربية الاسلامية  اللعة العربية    الرياضيات  التربية الاجتماعية      الحاسوب  ","مكملـة في  : التربية الاسلامية  اللعة العربية    الرياضيات  التربية الاجتماعية      الحاسوب  ",null,{"$f":"IF(Value!$F$33=\"1\",Table!BI49,Table!BH49)","v":"ناجح و يرفع  لـ الصف التاسع"},{"$f":"IF(Value!$F$31=\"1\",Table!BM49,Table!BN49)","v":0},null,"-"]
[40," محمود علي محمود ابو ديه","الأردنية","عمان",12,11,2007,140,172,156,171,206,189,102,126,114,158,154,156,184,178,181,146,134,140,92,90,91,89,89,89,null,null,null,93,76,85,70,72,71,96,76,86,"ممتاز","-","-",null,null,null,null,null,null,1178,73.629997253417969,"ناجح و يرفع  لـ الصف التاسع",null,null,null,null,"ناجح و يرفع  لـ الصف التاسع",{"$f":"IF(Value!$F$31=\"1\",CP50,CQ50)","v":"ناجح في مواد الفصل الاول"},"-",null,null,null,"عليها مضاعفة جهودها والاهتمام أكثر"," محمود علي محمود ابو ديه",73.629997253417969,1178,null,56.6,{"$f":"Table!$D50&\"    \"&Table!$E50&\" / \"&Table!$F50&\" \"&\"/ \" & Table!$G50","v":"عمان    12 / 11 / 2007"},0,"",0,"",0,"",0,"",0,"",0,"",0,"",0,"",0,"",null,0,"                ","ناجح في مواد الفصل الاول","ناجحة في مواد الفصل الاول",null,{"$f":"IF(Value!$F$33=\"1\",Table!BI50,Table!BH50)","v":"ناجح و يرفع  لـ الصف التاسع"},{"$f":"IF(Value!$F$31=\"1\",Table!BM50,Table!BN50)","v":0},null,"-"]
[41," مصلح عمر مصلح الجوابره","الأردنية","السلط",28,4,2007,120,142,131,192,172,182,102,127,115,122,122,122,128,130,129,114,141,128,88,90,89,86,87,87,null,null,null,91,63,77,47,62,55,87,63,75,"ممتاز","-","-",null,null,null,null,null,null,1014,63.380001068115234,"ناجح و يرفع  لـ الصف التاسع",null,null,null,null,"ناجح و يرفع  لـ الصف التاسع",{"$f":"IF(Value!$F$31=\"1\",CP51,CQ51)","v":"مكمل في  :               الحاسوب  "},"-",null,null,null,"جيدة في دروسها ، أتمنى لها مزيدا من التقدم والنجاح"," مصلح عمر مصلح الجوابره",63.380001068115234,1014,null,72.5,{"$f":"Table!$D51&\"    \"&Table!$E51&\" / \"&Table!$F51&\" \"&\"/ \" & Table!$G51","v":"السلط    28 / 4 / 2007"},0,"",0,"",0,"",0,"",0,"",0,"",0,"",1,"الحاسوب",0,"",null,1,"              الحاسوب  ","مكمل في  :               الحاسوب  ","مكملـة في  :               الحاسوب  ",null,{"$f":"IF(Value!$F$33=\"1\",Table!BI51,Table!BH51)","v":"ناجح و يرفع  لـ الصف التاسع"},{"$f":"IF(Value!$F$31=\"1\",Table!BM51,Table!BN51)","v":0},null,"-"]
[42," مهند ابراهيم داود الشطرات","الأردنية","عمان",17,12,2007,94,138,116,105,229,167,101,124,113,90,137,114,82,134,108,105,168,137,76,91,84,88,89,89,null,null,null,82,84,83,47,60,54,79,84,82,"ممتاز","-","-",null,null,null,null,null,null,974,60.880001068115234,"ناجح و يرفع  لـ الصف التاسع",null,null,null,null,"ناجح و يرفع  لـ الصف التاسع",{"$f":"IF(Value!$F$31=\"1\",CP52,CQ52)","v":"مكمل في  : التربية الاسلامية  اللعة العربية    الرياضيات  التربية الاجتماعية      الحاسوب  "},null,null,null,null,""," مهند ابراهيم داود الشطرات",60.880001068115234,974,null,0,{"$f":"Table!$D52&\"    \"&Table!$E52&\" / \"&Table!$F52&\" \"&\"/ \" & Table!$G52","v":"عمان    17 / 12 / 2007"},1,"التربية الاسلامية",1,"اللعة العربية",0,"",1,"الرياضيات",1,"التربية الاجتماعية",0,"",0,"",1,"الحاسوب",0,"",null,5,"التربية الاسلامية  اللعة العربية    الرياضيات  التربية الاجتماعية      الحاسوب  ","مكمل في  : التربية الاسلامية  اللعة العربية    الرياضيات  التربية الاجتماعية      الحاسوب  ","مكملـة في  : التربية الاسلامية  اللعة العربية    الرياضيات  التربية الاجتماعية      الحاسوب  ",null,{"$f":"IF(Value!$F$33=\"1\",Table!BI52,Table!BH52)","v":"ناجح و يرفع  لـ الصف التاسع"},{"$f":"IF(Value!$F$31=\"1\",Table!BM52,Table!BN52)","v":0},null,"-"]
[43," مهند زياد ابراهيم ابو شعيرة","الأردنية","السلط",31,10,2007,94,133,114,105,207,156,101,124,113,90,113,102,82,134,108,105,116,111,77,88,83,86,90,88,null,null,null,84,72,78,54,49,52,77,72,75,"ممتاز","-","-",null,null,null,null,null,null,909,56.810001373291016,"ناجح و يرفع  لـ الصف التاسع",null,null,null,null,"ناجح و يرفع  لـ الصف التاسع",{"$f":"IF(Value!$F$31=\"1\",CP53,CQ53)","v":"مكمل في  : التربية الاسلامية  اللعة العربية    الرياضيات  التربية الاجتماعية        "},null,null,null,null,""," مهند زياد ابراهيم ابو شعيرة",56.810001373291016,909,null,0,{"$f":"Table!$D53&\"    \"&Table!$E53&\" / \"&Table!$F53&\" \"&\"/ \" & Table!$G53","v":"السلط    31 / 10 / 2007"},1,"التربية الاسلامية",1,"اللعة العربية",0,"",1,"الرياضيات",1,"التربية الاجتماعية",0,"",0,"",0,"",0,"",null,4,"التربية الاسلامية  اللعة العربية    الرياضيات  التربية الاجتماعية        ","مكمل في  : التربية الاسلامية  اللعة العربية    الرياضيات  التربية الاجتماعية        ","مكملـة في  : التربية الاسلامية  اللعة العربية    الرياضيات  التربية الاجتماعية        ",null,{"$f":"IF(Value!$F$33=\"1\",Table!BI53,Table!BH53)","v":"ناجح و يرفع  لـ الصف التاسع"},{"$f":"IF(Value!$F$31=\"1\",Table!BM53,Table!BN53)","v":0},null,"-"]
[44," مؤمن مهنا نمر حسن","الأردنية","السلط",30,9,2007,159,159,159,166,176,171,98,127,113,102,141,122,140,148,144,136,148,142,92,92,92,87,89,88,null,null,null,90,94,92,66,76,71,87,94,91,"ممتاز","-","-",null,null,null,null,null,null,1105,69.05999755859375,"ناجح و يرفع  لـ الصف التاسع",null,null,null,null,"ناجح و يرفع  لـ الصف التاسع",{"$f":"IF(Value!$F$31=\"1\",CP54,CQ54)","v":"مكمل في  :     اللغة الانجليزية            "},null,null,null,null,""," مؤمن مهنا نمر حسن",69.05999755859375,1105,null,0,{"$f":"Table!$D54&\"    \"&Table!$E54&\" / \"&Table!$F54&\" \"&\"/ \" & Table!$G54","v":"السلط    30 / 9 / 2007"},0,"",0,"",1,"اللغة الانجليزية",0,"",0,"",0,"",0,"",0,"",0,"",null,1,"    اللغة الانجليزية            ","مكمل في  :     اللغة الانجليزية            ","مكملـة في  :     اللغة الانجليزية            ",null,{"$f":"IF(Value!$F$33=\"1\",Table!BI54,Table!BH54)","v":"ناجح و يرفع  لـ الصف التاسع"},{"$f":"IF(Value!$F$31=\"1\",Table!BM54,Table!BN54)","v":0},null,"-"]
[45," ياسين يوسف عبد الخالق العايدي","الأردنية","السلط",7,6,2007,109,120,115,105,215,160,161,165,163,90,118,104,98,146,122,108,114,111,79,89,84,89,86,88,null,null,null,82,70,76,58,47,53,74,70,72,"ممتاز","-","-",null,null,null,null,null,null,976,61,"ناجح و يرفع  لـ الصف التاسع",null,null,null,null,"ناجح و يرفع  لـ الصف التاسع",{"$f":"IF(Value!$F$31=\"1\",CP55,CQ55)","v":"مكمل في  :   اللعة العربية    الرياضيات  التربية الاجتماعية        "},null,null,null,null,""," ياسين يوسف عبد الخالق العايدي",61,976,null,0,{"$f":"Table!$D55&\"    \"&Table!$E55&\" / \"&Table!$F55&\" \"&\"/ \" & Table!$G55","v":"السلط    7 / 6 / 2007"},0,"",1,"اللعة العربية",0,"",1,"الرياضيات",1,"التربية الاجتماعية",0,"",0,"",0,"",0,"",null,3,"  اللعة العربية    الرياضيات  التربية الاجتماعية        ","مكمل في  :   اللعة العربية    الرياضيات  التربية الاجتماعية        ","مكملـة في  :   اللعة العربية    الرياضيات  التربية الاجتماعية        ",null,{"$f":"IF(Value!$F$33=\"1\",Table!BI55,Table!BH55)","v":"ناجح و يرفع  لـ الصف التاسع"},{"$f":"IF(Value!$F$31=\"1\",Table!BM55,Table!BN55)","v":0},null,"-"]
[46," يزيد يوسف موسى بنات","الأردنية","عمان",19,7,2007,156,163,160,207,250,229,165,167,166,157,156,157,194,194,194,164,165,165,95,92,94,92,91,92,null,null,null,95,92,94,94,90,92,93,92,93,"ممتاز","-","-",null,null,null,null,null,null,1350,84.379997253417969,"ناجح و يرفع  لـ الصف التاسع",null,null,null,null,"ناجح و يرفع  لـ الصف التاسع",{"$f":"IF(Value!$F$31=\"1\",CP56,CQ56)","v":"ناجح في مواد الفصل الاول"},null,null,null,null,""," يزيد يوسف موسى بنات",84.379997253417969,1350,null,0,{"$f":"Table!$D56&\"    \"&Table!$E56&\" / \"&Table!$F56&\" \"&\"/ \" & Table!$G56","v":"عمان    19 / 7 / 2007"},0,"",0,"",0,"",0,"",0,"",0,"",0,"",0,"",0,"",null,0,"                ","ناجح في مواد الفصل الاول","ناجحة في مواد الفصل الاول",null,{"$f":"IF(Value!$F$33=\"1\",Table!BI56,Table!BH56)","v":"ناجح و يرفع  لـ الصف التاسع"},{"$f":"IF(Value!$F$31=\"1\",Table!BM56,Table!BN56)","v":0},null,"-"]
[47," يعقوب عايد جميل ابوسمره","الأردنية","السلط",14,5,2007,129,111,120,146,194,170,107,132,120,112,131,122,104,144,124,130,117,124,82,89,86,89,88,89,null,null,null,81,82,82,52,61,57,75,82,79,"ممتاز","-","-",null,null,null,null,null,null,998,62.380001068115234,"ناجح و يرفع  لـ الصف التاسع",null,null,null,null,"ناجح و يرفع  لـ الصف التاسع",{"$f":"IF(Value!$F$31=\"1\",CP57,CQ57)","v":"مكمل في  :   اللعة العربية              "},null,null,null,null,""," يعقوب عايد جميل ابوسمره",62.380001068115234,998,null,0,{"$f":"Table!$D57&\"    \"&Table!$E57&\" / \"&Table!$F57&\" \"&\"/ \" & Table!$G57","v":"السلط    14 / 5 / 2007"},0,"",1,"اللعة العربية",0,"",0,"",0,"",0,"",0,"",0,"",0,"",null,1,"  اللعة العربية              ","مكمل في  :   اللعة العربية              ","مكملـة في  :   اللعة العربية              ",null,{"$f":"IF(Value!$F$33=\"1\",Table!BI57,Table!BH57)","v":"ناجح و يرفع  لـ الصف التاسع"},{"$f":"IF(Value!$F$31=\"1\",Table!BM57,Table!BN57)","v":0},null,"-"]
["",null,null,null,null,null,null,null,null,null,null,null,null,null,null,null,null,null,null,null,null,null,null,null,null,null,null,null,null,null,null,null,null,null,null,null,null,null,null,null,null,null,null,null,null,null,null,null,null,null,null,null,null,null,null,null,null,null,null,null,{"$f":"IF(Value!$F$31=\"1\",CP58,CQ58)","v":"ناجح في مواد الفصل الاول"},null,null,null,null,"",null,null,null,null,0,{"$f":"Table!$D58&\"    \"&Table!$E58&\" / \"&Table!$F58&\" \"&\"/ \" & Table!$G58","v":"     /  / "},"","","","","","","","","","","","","","","","","","",null,0,"                ","ناجح في مواد الفصل الاول","ناجحة في مواد الفصل الاول",null,{"$f":"IF(Value!$F$33=\"1\",Table!BI58,Table!BH58)","v":0},{"$f":"IF(Value!$F$31=\"1\",Table!BM58,Table!BN58)","v":0},null,0]
["",null,null,null,null,null,null,null,null,null,null,null,null,null,null,null,null,null,null,null,null,null,null,null,null,null,null,null,null,null,null,null,null,null,null,null,null,null,null,null,null,null,null,null,null,null,null,null,null,null,null,null,null,null,null,null,null,null,null,null,{"$f":"IF(Value!$F$31=\"1\",CP59,CQ59)","v":"ناجح في مواد الفصل الاول"},null,null,null,null,"",null,null,null,null,0,{"$f":"Table!$D59&\"    \"&Table!$E59&\" / \"&Table!$F59&\" \"&\"/ \" & Table!$G59","v":"     /  / "},"","","","","","","","","","","","","","","","","","",null,0,"                ","ناجح في مواد الفصل الاول","ناجحة في مواد الفصل الاول",null,{"$f":"IF(Value!$F$33=\"1\",Table!BI59,Table!BH59)","v":0},{"$f":"IF(Value!$F$31=\"1\",Table!BM59,Table!BN59)","v":0},null,0]
["",null,null,null,null,null,null,null,null,null,null,null,null,null,null,null,null,null,null,null,null,null,null,null,null,null,null,null,null,null,null,null,null,null,null,null,null,null,null,null,null,null,null,null,null,null,null,null,null,null,null,null,null,null,null,null,null,null,null,null,{"$f":"IF(Value!$F$31=\"1\",CP60,CQ60)","v":"ناجح في مواد الفصل الاول"},null,null,null,null,"",null,null,null,null,0,{"$f":"Table!$D60&\"    \"&Table!$E60&\" / \"&Table!$F60&\" \"&\"/ \" & Table!$G60","v":"     /  / "},"","","","","","","","","","","","","","","","","","",null,0,"                ","ناجح في مواد الفصل الاول","ناجحة في مواد الفصل الاول",null,{"$f":"IF(Value!$F$33=\"1\",Table!BI60,Table!BH60)","v":0},{"$f":"IF(Value!$F$31=\"1\",Table!BM60,Table!BN60)","v":0},null,0]
["",null,null,null,null,null,null,null,null,null,null,null,null,null,null,null,null,null,null,null,null,null,null,null,null,null,null,null,null,null,null,null,null,null,null,null,null,null,null,null,null,null,null,null,null,null,null,null,null,null,null,null,null,null,null,null,null,null,null,null,{"$f":"IF(Value!$F$31=\"1\",CP61,CQ61)","v":"ناجح في مواد الفصل الاول"},null,null,null,null,"",null,null,null,null,0,{"$f":"Table!$D61&\"    \"&Table!$E61&\" / \"&Table!$F61&\" \"&\"/ \" & Table!$G61","v":"     /  / "},"","","","","","","","","","","","","","","","","","",null,0,"                ","ناجح في مواد الفصل الاول","ناجحة في مواد الفصل الاول",null,{"$f":"IF(Value!$F$33=\"1\",Table!BI61,Table!BH61)","v":0},{"$f":"IF(Value!$F$31=\"1\",Table!BM61,Table!BN61)","v":0},null,0]
["",null,null,null,null,null,null,null,null,null,null,null,null,null,null,null,null,null,null,null,null,null,null,null,null,null,null,null,null,null,null,null,null,null,null,null,null,null,null,null,null,null,null,null,null,null,null,null,null,null,null,null,null,null,null,null,null,null,null,null,{"$f":"IF(Value!$F$31=\"1\",CP62,CQ62)","v":"ناجح في مواد الفصل الاول"},null,null,null,null,"",null,null,null,null,0,{"$f":"Table!$D62&\"    \"&Table!$E62&\" / \"&Table!$F62&\" \"&\"/ \" & Table!$G62","v":"     /  / "},"","","","","","","","","","","","","","","","","","",null,0,"                ","ناجح في مواد الفصل الاول","ناجحة في مواد الفصل الاول",null,{"$f":"IF(Value!$F$33=\"1\",Table!BI62,Table!BH62)","v":0},{"$f":"IF(Value!$F$31=\"1\",Table!BM62,Table!BN62)","v":0},null,0]
["",null,null,null,null,null,null,null,null,null,null,null,null,null,null,null,null,null,null,null,null,null,null,null,null,null,null,null,null,null,null,null,null,null,null,null,null,null,null,null,null,null,null,null,null,null,null,null,null,null,null,null,null,null,null,null,null,null,null,null,{"$f":"IF(Value!$F$31=\"1\",CP63,CQ63)","v":"ناجح في مواد الفصل الاول"},null,null,null,null,"",null,null,null,null,0,{"$f":"Table!$D63&\"    \"&Table!$E63&\" / \"&Table!$F63&\" \"&\"/ \" & Table!$G63","v":"     /  / "},"","","","","","","","","","","","","","","","","","",null,0,"                ","ناجح في مواد الفصل الاول","ناجحة في مواد الفصل الاول",null,{"$f":"IF(Value!$F$33=\"1\",Table!BI63,Table!BH63)","v":0},{"$f":"IF(Value!$F$31=\"1\",Table!BM63,Table!BN63)","v":0},null,0]
["",null,null,null,null,null,null,null,null,null,null,null,null,null,null,null,null,null,null,null,null,null,null,null,null,null,null,null,null,null,null,null,null,null,null,null,null,null,null,null,null,null,null,null,null,null,null,null,null,null,null,null,null,null,null,null,null,null,null,null,{"$f":"IF(Value!$F$31=\"1\",CP64,CQ64)","v":"ناجح في مواد الفصل الاول"},null,null,null,null,"",null,null,null,null,0,{"$f":"Table!$D64&\"    \"&Table!$E64&\" / \"&Table!$F64&\" \"&\"/ \" & Table!$G64","v":"     /  / "},"","","","","","","","","","","","","","","","","","",null,0,"                ","ناجح في مواد الفصل الاول","ناجحة في مواد الفصل الاول",null,{"$f":"IF(Value!$F$33=\"1\",Table!BI64,Table!BH64)","v":0},{"$f":"IF(Value!$F$31=\"1\",Table!BM64,Table!BN64)","v":0},null,0]
["",null,null,null,null,null,null,null,null,null,null,null,null,null,null,null,null,null,null,null,null,null,null,null,null,null,null,null,null,null,null,null,null,null,null,null,null,null,null,null,null,null,null,null,null,null,null,null,null,null,null,null,null,null,null,null,null,null,null,null,{"$f":"IF(Value!$F$31=\"1\",CP65,CQ65)","v":"ناجح في مواد الفصل الاول"},null,null,null,null,"",null,null,null,null,0,{"$f":"Table!$D65&\"    \"&Table!$E65&\" / \"&Table!$F65&\" \"&\"/ \" & Table!$G65","v":"     /  / "},"","","","","","","","","","","","","","","","","","",null,0,"                ","ناجح في مواد الفصل الاول","ناجحة في مواد الفصل الاول",null,{"$f":"IF(Value!$F$33=\"1\",Table!BI65,Table!BH65)","v":0},{"$f":"IF(Value!$F$31=\"1\",Table!BM65,Table!BN65)","v":0},null,0]
[" توقيع معلم المادة الدراسية",null,null,null,null,null,null,null,null,null,null,null,null,null,null,null,null,null,null,null,null,null,null,null,null,null,null,null,null,null,null,null,null,null,null,null,null,null,null,null,null,null,null," اسماء وتواقيع لجنة تدقيق ومقابلة الجداول في المنطقة التعليمية :"]
[null,"    ملحوظة :",null,null,null,"الفصل الدراسي",null,"اسم مربي الصف",null,null,null,"التاريخ",null,null,"التوقيع",null,null,"الفصل الدراسي",null,"اسم مدير المدرسة",null,null,null,"التاريخ",null,null,"التوقيع",null,null,"  خاتم المدرسة الرسمي",null,null,null,null,null,null,null,null,null,"الفصل الدراسي",null,null,null,null,null,"مصدق/مدير التربية والتعليم",null,null,"التاريخ",null,null,null,null,null,"التوقيع"]
[" * تكتب بخط أحمر معدل علامتي الفصلين لكل مادة اكمل فيها الطالب  ",null,null,null,null,"الفصل الأول",null,"احمد طه اسماعيل",null,null,null,"2019/2/10",null,null,null,null,null,"الفصل الأول",null,"فتحي محمد ابو فضة",null,null,null,"2019/2/10",null,null,null,null,null,null,null,null,null,null,null,null,null,null,null,"الفصل الأول",null,null,null,null,null,"ايمن فتحي البيطار",null,null,"2019/2/10"]
[" *علامات التربية الفنية والتربية الرياضية والموسيقا تكتب",null,null,null,null,"الفصل الثاني",null,"احمد طه اسماعيل",null,null,null,"2019/6/2",null,null,null,null,null,"الفصل الثاني",null,"فتحي محمد ابو فضة",null,null,null,"2019/6/2",null,null,null,null,null,null,null,null,null,null,null,null,null,null,null,"الفصل الثاني",null,null,null,null,null,"ايمن فتحي البيطار",null,null,"2019/6/2"]
["في الجدول ولا تحسب في المجموع العام والمعدل المئوي",null,null,null,null,"اختبار الإكمال",null,"احمد طه اسماعيل",null,null,null,"2019/6/12",null,null,null,null,null,"اختبار الإكمال",null,"فتحي محمد ابو فضة",null,null,null,"2019/6/12",null,null,null,null,null,null,null,null,null,null,null,null,null,null,null,"اختبار الإكمال",null,null,null,null,null,"ايمن فتحي البيطار",null,null,"2019/6/12"]

{"sheet":"Certification","index":1,"n_rows":45,"n_cols":17,"rows_kept":45,"cut":false,"hidden":true,"merged":[[0,0,1,3],[0,4,1,6],[0,7,1,10],[2,0,3,3],[2,4,4,6],[2,7,3,10],[4,0,4,3],[4,7,4,10],[9,5,9,7],[9,9,9,10],[5,0,6,10],[7,1,7,3],[7,6,7,7],[7,8,7,10],[11,0,11,1],[11,2,11,3],[13,0,15,2],[13,3,15,3],[9,0,9,1],[9,2,9,3],[13,4,13,10],[14,6,14,10],[15,7,15,10],[16,0,16,2],[16,7,16,10],[19,0,19,2],[19,7,19,10],[20,0,20,2],[20,7,20,10],[17,0,17,2],[17,7,17,10],[18,0,18,2],[18,7,18,10],[23,0,23,2],[23,7,23,10],[24,0,24,2],[24,7,24,10],[21,0,21,2],[21,7,21,10],[22,0,22,2],[22,7,22,10],[27,0,27,2],[27,7,27,10],[28,0,28,2],[28,5,28,8],[25,0,25,2],[25,7,25,10],[26,0,26,2],[26,7,26,10],[29,0,30,0],[29,1,30,10],[31,0,32,1],[31,2,32,10],[33,7,34,8],[33,9,34,10],[35,7,36,8],[35,9,36,10],[33,0,34,1],[33,2,34,2],[35,0,36,0],[35,1,36,2],[35,3,36,3],[35,4,36,6],[33,3,34,5],[33,6,34,6],[44,1,44,4],[44,9,44,10],[37,1,37,10],[38,1,38,10],[40,1,40,10],[42,1,42,4],[42,5,42,6],[42,8,42,9]]}
[null,null,null,null,"بسم الله الرحمن الرحيم",null,null,null,null,null,null," "]
[]
["وكالة الأمم المتحدة لإغاثة وتشغيل اللاجئين الفلسطينيين في الشرق الأدنى",null,null,null,null,null,null,"   دائرة التربية والتعليم"]
["اللاجئين الفلسطينيين في الشرق الأدنى"]
[]
[{"$f":"\" النتائج المدرسية  \" & Value!$F$35 & \" الأساسي  للعام الدراسي \" & Value!$F$10","v":" النتائج المدرسية  للصفين الثامن والتاسع الأساسي  للعام الدراسي 2020/2019"}]
[]
["الإســـم :",null,null,null,"الجنسية :",null,"مكان وتاريخ الولاده :"]
[]
["الصف والشعبة : ",null,{"$f":"Value!$F$6 & \" ( \"  &  Value!$F$7  & \" ) \"","v":"الثامن ( ج ) "},null,"المدرسة:",{"$f":"Value!$F$5","v":"ذكور البقعة الاعدادية الرابعة"},null,null,"البلدة/المخيم:",{"$f":"Value!$F$4","v":"البقعة"},null,null,null,0,null,null,{"$f":"Value!$F$13","v":47}]
[]
["المنطقة التعليمية :",null,{"$f":"Value!$F$3","v":"شمال عمان"}]
[]
["المــــادة الدراسيــــة",null,null,"النهاية العظمى","العلامــــة المستحقــــة"]
[null,null,null,null,"الفصل الأول ","الفصل الثاني ","المعــــدل السنــــوي"]
[null,null,null,null,"رقماً","رقماً","بالأرقام","بالحــــروف"]
[{"$f":"Table!$H$6","v":"التربية الاسلامية"},null,null,{"$f":"Table!$J$10","v":200},null,null,null,{"$f":"SpellNumberA(IF(Value!$F$33=\"1\",E17,G17),0,\"علامة\",\"علامتان\",\"علامات\")","v":""}]
[{"$f":"Table!$K$6","v":"اللغة العربية"},null,null,{"$f":"Table!$M$10","v":300},null,null,null,{"$f":"SpellNumberA(IF(Value!$F$33=\"1\",E18,G18),0,\"علامة\",\"علامتان\",\"علامات\")","v":""}]
[{"$f":"Table!$N$6","v":"اللغة الانجليزية"},null,null,{"$f":"Table!$P$10","v":200},null,null,null,{"$f":"SpellNumberA(IF(Value!$F$33=\"1\",E19,G19),0,\"علامة\",\"علامتان\",\"علامات\")","v":""}]
[{"$f":"Table!$Q$6","v":"الرياضيات"},null,null,{"$f":"Table!$S$10","v":200},null,null,null,{"$f":"SpellNumberA(IF(Value!$F$33=\"1\",E20,G20),0,\"علامة\",\"علامتان\",\"علامات\")","v":""}]
[{"$f":"Table!$T$6","v":"التربية الاجتماعية والوطنية"},null,null,{"$f":"Table!$V$10","v":200},null,null,null,{"$f":"SpellNumberA(IF(Value!$F$33=\"1\",E21,G21),0,\"علامة\",\"علامتان\",\"علامات\")","v":""}]
[{"$f":"Table!$W$6","v":"العلـــوم"},null,null,{"$f":"Table!$Y$10","v":200},null,null,null,{"$f":"SpellNumberA(IF(Value!$F$33=\"1\",E22,G22),0,\"علامة\",\"علامتان\",\"علامات\")","v":""}]
[{"$f":"Table!$Z$6","v":"التربية الفنية"},null,null,{"$f":"Table!$AB$10","v":100},null,null,null,{"$f":"SpellNumberA(IF(Value!$F$33=\"1\",E23,G23),0,\"علامة\",\"علامتان\",\"علامات\")","v":""}]
[{"$f":"Table!$AC$6","v":"التربية الرياضية"},null,null,{"$f":"Table!$AE$10","v":100},null,null,null,{"$f":"SpellNumberA(IF(Value!$F$33=\"1\",E24,G24),0,\"علامة\",\"علامتان\",\"علامات\")","v":""}]
[{"$f":"Table!$AF$6","v":"الموسيقا والاناشيد"},null,null,{"$f":"Table!$AH$10","v":100},null,null,null,{"$f":"SpellNumberA(IF(Value!$F$33=\"1\",E25,G25),0,\"علامة\",\"علامتان\",\"علامات\")","v":""}]
[{"$f":"Table!$AI$6","v":"التربية المهنية"},null,null,{"$f":"Table!$AK$10","v":100},null,null,null,{"$f":"SpellNumberA(IF(Value!$F$33=\"1\",E26,G26),0,\"علامة\",\"علامتان\",\"علامات\")","v":""}]
[{"$f":"Table!$AL$6","v":"الحاسوب"},null,null,{"$f":"Table!$AN$10","v":100},null,null,null,{"$f":"SpellNumberA(IF(Value!$F$33=\"1\",E27,G27),0,\"علامة\",\"علامتان\",\"علامات\")","v":""}]
[{"$f":"Table!$AO$6","v":"الثقافة المالية"},null,null,{"$f":"Table!$AQ$10","v":100},null,null,null,{"$f":"SpellNumberA(IF(Value!$F$33=\"1\",E28,G28),0,\"علامة\",\"علامتان\",\"علامات\")","v":""}]
["المعدل المئوي بالأرقام  :",null,null,null,"بالحروف :",{"$f":"IF(D29<>\"-\",SpellNumberA(D29,0,\"علامة\",\"علامتان\",\"علامات\"),\"\")","v":""}]
["النتيجة :"]
[]
["ملحوظات مربي الصف :"]
[]
["عدد أيام غياب الطالب",null,null,"عدد أيام الدوام الرسمي الكامل :",null,null,{"$f":"Table!$AS$10","v":199},"اسم وتوقيع مربي الصف:",null,{"$f":"Value!$F$8","v":"احمد طه اسماعيل"}]
[]
["التاريخ :",{"$f":"IF(Value!$F$33=\"2\",Value!$F$14,Value!$F$25)","v":"2019/6/2"},null,"خاتم المدرسة :",null,null,"اسم وتوقيع مدير المدرسة :","اسم وتوقيع مدير المدرسة :",null,{"$f":"Value!$F$9","v":"فتحي محمد ابو فضة"}]
[]
["ملحوظات"]
["1 )"," تقدير العلامات: مــن 90-100 % ممتاز، 80-89 %جيد جدا ً، 70-79 % جيـد، 60-69 % متوسط، 50-59 % مقبول، 49 % فما دون مقصر"]
[]
["2 )","يكتب في النتيجة أحد الآتية : يرفع إلى الصف    ،  مكمل في     ,   يعيد صفه"]
[]
["3 )","تعقد اختبارات الإكمال في المدرسة  يوم",null,null,null,{"$f":"IF(Value!$F$33=\"1\",\"\",DATE(YEAR(Value!$F$22),MONTH(Value!$F$22),DAY(Value!$F$22)))","v":"2019-06-12"},null,"الموافق",{"$f":"IF(Value!$F$33=\"2\",Value!$F$22,\"\")","v":"2019/6/12"}]
[]
["4 )","يبدأ دوام الطلبة في الفصل الدراسي الأول  للعام الدراسي",null,null,null,{"$f":"IF(Value!$F$33=\"2\",Value!$F$26,\"\")","v":"2022/2021"},"يوم",{"$f":"IF(Value!$F$33=\"1\",\"\",DATE(YEAR(Value!$F$23),MONTH(Value!$F$23),DAY(Value!$F$23)))","v":"2019-09-01"},"الموافق",{"$f":"IF(Value!$F$33=\"2\",Value!$F$23,\"\")","v":"2019/9/1"}]

{"sheet":"Value","index":2,"n_rows":218,"n_cols":11,"rows_kept":218,"cut":false,"hidden":true,"merged":[[97,1,97,4],[97,5,97,9],[96,1,96,4],[96,5,96,9],[94,1,94,4],[94,5,94,9],[101,1,101,4],[101,5,101,9],[98,1,98,4],[98,5,98,9],[99,1,99,4],[99,5,99,9],[100,1,100,4],[100,5,100,9],[92,1,92,4],[92,5,92,9],[87,1,87,4],[87,5,87,9],[93,1,93,4],[93,5,93,9],[91,1,91,4],[91,5,91,9],[95,1,95,4],[95,5,95,9],[85,1,85,4],[85,5,85,9],[82,1,82,4],[82,5,82,9],[86,1,86,4],[86,5,86,9],[83,1,83,4],[83,5,83,9],[90,1,90,4],[90,5,90,9],[88,1,88,4],[88,5,88,9],[89,1,89,4],[89,5,89,9],[77,5,77,9],[78,1,78,4],[78,5,78,9],[79,1,79,4],[79,5,79,9],[80,1,80,4],[80,5,80,9],[84,1,84,4],[84,5,84,9],[46,1,46,4],[46,5,46,9],[47,1,47,4],[47,5,47,9],[48,1,48,4],[48,5,48,9],[57,5,57,9],[58,1,58,4],[58,5,58,9],[53,1,53,4],[57,1,57,4],[52,5,52,9],[49,1,49,4],[50,5,50,9],[51,1,51,4],[51,5,51,9],[53,5,53,9],[49,5,49,9],[50,1,50,4],[52,1,52,4],[54,1,54,4],[54,5,54,9],[103,4,103,6],[55,1,55,4],[55,5,55,9],[71,1,71,4],[68,1,68,4],[68,5,68,9],[69,1,69,4],[69,5,69,9],[72,5,72,9],[70,5,70,9],[61,5,61,9],[59,1,59,4],[59,5,59,9],[64,5,64,9],[63,1,63,4],[62,1,62,4],[60,1,60,4],[60,5,60,9],[71,5,71,9],[70,1,70,4],[62,5,62,9],[63,5,63,9],[0,3,1,7],[45,0,45,1],[45,2,45,3],[44,4,44,6],[45,4,45,6],[45,7,45,8],[108,1,108,4],[108,5,108,9],[109,1,109,4],[104,0,104,1],[104,4,104,6],[105,4,105,6],[105,7,105,8],[107,1,107,4],[61,1,61,4],[104,2,104,3],[104,7,104,8],[66,1,66,4],[66,5,66,9],[67,1,67,4],[67,5,67,9],[72,1,72,4],[65,1,65,4],[65,5,65,9],[115,5,115,9],[110,1,110,4],[105,0,105,1],[105,2,105,3],[117,5,117,9],[56,1,56,4],[56,5,56,9],[114,5,114,9],[110,5,110,9],[109,5,109,9],[112,1,112,4],[112,5,112,9],[64,1,64,4],[73,1,73,4],[76,1,76,4],[76,5,76,9],[75,1,75,4],[75,5,75,9],[81,1,81,4],[81,5,81,9],[73,5,73,9],[74,1,74,4],[74,5,74,9],[77,1,77,4],[123,1,123,4],[123,5,123,9],[124,1,124,4],[124,5,124,9],[121,1,121,4],[121,5,121,9],[122,1,122,4],[122,5,122,9],[107,5,107,9],[119,1,119,4],[119,5,119,9],[120,1,120,4],[120,5,120,9],[117,1,117,4],[118,1,118,4],[118,5,118,9],[111,1,111,4],[111,5,111,9],[116,1,116,4],[116,5,116,9],[113,1,113,4],[113,5,113,9],[114,1,114,4],[115,1,115,4],[127,1,127,4],[127,5,127,9],[128,1,128,4],[128,5,128,9],[129,1,129,4],[129,5,129,9],[130,1,130,4],[130,5,130,9],[125,1,125,4],[125,5,125,9],[126,1,126,4],[126,5,126,9],[135,4,135,6],[150,1,150,3],[147,1,147,3],[148,1,148,3],[145,1,145,3],[146,1,146,3],[139,1,139,3],[131,1,131,4],[131,5,131,9],[136,7,136,8],[141,1,141,3],[142,1,142,3],[140,1,140,3],[133,1,133,4],[133,5,133,9],[136,0,136,1],[136,2,136,3],[132,1,132,4],[132,5,132,9],[136,4,136,6],[176,0,177,9],[182,6,182,7],[181,1,181,2],[143,1,143,3],[144,1,144,3],[153,1,153,3],[154,1,154,3],[151,1,151,3],[152,1,152,3],[137,0,138,0],[137,1,138,3],[137,4,137,9],[155,1,155,3],[156,1,156,3],[163,1,163,3],[164,1,164,3],[161,1,161,3],[149,1,149,3],[159,1,159,3],[160,1,160,3],[157,1,157,3],[158,1,158,3],[162,1,162,3],[167,1,167,3],[168,1,168,3],[172,1,172,3],[178,1,178,2],[173,1,173,3],[171,1,171,3],[165,1,165,3],[166,1,166,3],[169,1,169,3],[170,1,170,3],[217,1,217,3],[212,6,212,8],[213,6,213,8],[214,6,214,8],[215,6,215,8],[217,6,217,8],[216,1,216,3],[215,1,215,3],[214,1,214,3],[216,6,216,8],[212,1,212,3],[213,1,213,3],[178,6,178,7],[179,1,179,2],[182,1,182,2],[189,1,189,2],[186,6,186,7],[187,1,187,2],[187,6,187,7],[188,1,188,2],[184,6,184,7],[180,6,180,7],[179,6,179,7],[183,6,183,7],[184,1,184,2],[185,1,185,2],[211,6,211,9],[211,1,211,4],[181,6,181,7],[191,6,191,7],[192,6,192,7],[193,1,193,2],[193,6,193,7],[188,6,188,7],[199,6,199,7],[200,1,200,2],[200,6,200,7],[202,1,202,2],[202,6,202,7],[201,6,201,7],[199,1,199,2],[201,1,201,2],[186,1,186,2],[180,1,180,2],[185,6,185,7],[190,6,190,7],[189,6,189,7],[190,1,190,2],[183,1,183,2],[191,1,191,2],[192,1,192,2],[194,6,194,7],[197,1,197,2],[197,6,197,7],[198,1,198,2],[198,6,198,7],[195,1,195,2],[195,6,195,7],[196,1,196,2],[196,6,196,7],[194,1,194,2],[209,1,209,2],[209,6,209,7],[206,1,206,2],[206,6,206,7],[207,1,207,2],[207,6,207,7],[208,1,208,2],[208,6,208,7],[203,1,203,2],[203,6,203,7],[205,1,205,2],[205,6,205,7],[204,1,204,2],[204,6,204,7]]}
[null,null,null,"الثوابت"]
[]
[null," ",null,null,"المنطقـة التعليمية","شمال عمان","إختر"]
[null,null,null,null,"البلـدة / المخيـم","البقعة","ممتاز"]
[null,null,null,null,"اسـم المدرسـة","ذكور البقعة الاعدادية الرابعة","جيد جدا"]
[null,null,null,null,"الصـف","الثامن","جيد"]
[null,null,null,null,"الشعبة","ج","مقبول"]
[null,null,null,null,"مربي الصف","احمد طه اسماعيل",{"$f":"G16&\"/\"&G15","v":"2020/2019"}]
[null,null,null,null,"مدير المدرسة","فتحي محمد ابو فضة",{"$f":"G17&\"/\"&G16","v":"2021/2020"}]
[null,null,null,null,"العام الدراسـي الحالي","2020/2019",{"$f":"G18&\"/\"&G17","v":"2022/2021"}]
[null,null,null,1,"عدد أيام الدوام الرسمي الكامل",199,{"$f":"G19&\"/\"&G18","v":"2023/2022"}]
[null,null,null,2,"النسبة المئوية للحد الاقصى للغياب",20]
[null,null,null,3,"عدد طلاب الصف",47,{"$f":"COUNTA(Table!B11:B65)","v":47}]
[null,null,null,4,"  تاريـخ الجدول/الشهادة الفصل الثاني",{"$f":"H24&\"/\"&H23&\"/\"&H22","v":"2019/6/2"},{"$f":"TODAY()","v":"2021-07-06"},10]
[null,null,null,5,null,null,{"$f":"G17-2","v":2019},2]
[null,null,null,6,null,null,{"$f":"G17-1","v":2020},2019]
[null,null,null,7,"اذا كان ناجحـاً"," يرفع إلى الصف التاسع الأساسي",{"$f":"YEAR(G14)","v":2021}]
[null,null,null,8,"اذا كان راسبـاً","يعيد صفه",{"$f":"G17+1","v":2022},1]
[null,null,null,9,"اذا تجاوز غيابه النسبة المقـررة","يعيد صفه بسبب تجاوزه نسبة الغياب",{"$f":"G17+2","v":2023},9]
[null,null,null,10,null,null,null,2019]
[null,null,null,11,"اذا تكرر رسوبه في صفه","يرفع تلقائيا لتكرار رسوبه في صفه","أ"]
[null,null,null,12,"تاريخ الإكمال من",{"$f":"H32&\"/\"&H31&\"/\"&H30","v":"2019/6/12"},"ب",2]
[null,null,null,13,"تاريخ بدء العام الدراسي",{"$f":"H20&\"/\"&H19&\"/\"&H18","v":"2019/9/1"},"ج",6]
[null,null,null,14,"هل الموسيقى مادة دراسية","لا","د",2019]
["",null,null,15,"تاريخ الجدول الفصل الاول",{"$f":"H16&\"/\"&H15&\"/\"&H14","v":"2019/2/10"},"هـ"]
[null,null,null,16,"العام الجديد","2022/2021","و",1]
[null,null,null,17,"اسم مدير التعليـــــــــــــــــــــــــــــــــم","ايمن فتحي البيطار","ز",9]
[null,null,null,18,"جنس الطلبة","ذكر",null,2019]
[null,null,null,19,"رقم الصف",{"$f":"IF($F$6=\"السابع\",\"2\",(IF($F$6=\"الثامن\",\"3\",(IF($F$6=\"التاسع\",\"4\",(IF($F$6=\"العاشر\",\"5\",\"1\")))))))","v":"3"}]
[null,null,null,20,"الرقم المقسوم عليه في المعدل",{"$f":"IF($F$29=\"5\",\"17\",(IF($F$29=\"4\",\"18\",(IF($F$29=\"3\",\"16\",(IF($F$29=\"2\",\"9\",(IF($F$34=\"1\",\"6\",\"7\")))))))))","v":"16"},null,12]
[null,null,null,21,"رقم جنس الطالب",{"$f":"IF($F$28=\"ذكر\",\"1\",\"2\")","v":"1"},"الأول",6]
[null,null,null,22,"الفصل الدراسي","الفصل الثاني","الثاني",2019]
[null,null,null,23,"رقم الفصل الاول",{"$f":"IF($F$32=\"الفصل الأول\",\"1\",\"2\")","v":"2"},"الثالث"]
[null,null,null,24,"رقم الصف",{"$f":"IF($F$6=\"الأول\",\"1\",(IF($F$6=\"الثاني\",\"1\",(IF($F$6=\"الثالث\",\"1\",(IF($F$6=\"الرابع\",\"2\",(IF($F$6=\"الخامس\",\"2\",(IF($F$6=\"السادس\",\"2\",\"3\")))))))))))","v":"3"},"الرابع"]
[null,null,null,25,"الترويسه للجدول",{"$f":"IF($F$29=\"5\",\"للصف العاشر\",(IF($F$29=\"4\",\"للصفين الثامن والتاسع\",(IF($F$29=\"3\",\"للصفين الثامن والتاسع\",\"للصفوف من الأول الى السابع\")))))","v":"للصفين الثامن والتاسع"},"الخامس"]
[null,null,null,26,"الرقم الوطني للمدرسة ",160184,"السادس"]
[null,null,null,27,"رقم الهاتف :",4725453,"السابع"]
[null,null,null,28,"عدد غياب الفصل الاول",97,"الثامن"]
[null,null,null,29,"رمز المديرية",45,"التاسع"]
[null,null,null,30,"الموقع الالكتروني للمدرسة","unrwa54786@unrwa.org","العاشر"]
[null,null,null,31,"تاريخ الاكمال الى",{"$f":"H32&\"/\"&(H31)&\"/\"&(H30+2)","v":"2019/6/14"}]
[null,null,null,null,"تاريخ تسليم الكتب من",{"$f":"H28&\"/\"&H27&\"/\"&H26","v":"2019/9/1"}]
[null,null,null,null,"تاريخ تسليم الكتب الى",{"$f":"H28&\"/\"&H27&\"/\"&(H26+2)","v":"2019/9/3"}]
[null,null,null,null,"هل ترغب بكتابة النتيجة السنوية","نعم"]
[null,null,null,null,"قائمة الطلبة الناجحين والمكملين"]
["مربي الصف :",null,{"$f":"F8","v":"احمد طه اسماعيل"},null,{"$f":"F5","v":"ذكور البقعة الاعدادية الرابعة"},null,null,"الصف والشعبة :",null,{"$f":"F6 & \" ( \" & F7 & \" )\"","v":"الثامن ( ج )"}]
["الرقم","اسم الطالب",null,null,null,"ملاحظات"]
[{"$f":"IF(B48<>\"\",1,\"\")","v":1}," احمد عماد حسين نهنوش",null,null,null," يرفع إلى الصف التاسع الأساسي",null,null,null,null,{"$f":"COUNTA(B48:E102)","v":36}]
[{"$f":"IF(AND(B49<>\"\",A48<>\"\"),A48+1,\"\")","v":2}," احمد نصر محمد ابو شرار",null,null,null," يرفع إلى الصف التاسع الأساسي"]
[{"$f":"IF(AND(B50<>\"\",A49<>\"\"),A49+1,\"\")","v":3}," المعتصم بالله فيصل حسن القيسي",null,null,null," يرفع إلى الصف التاسع الأساسي"]
[4," ايهم جهاد حسن عياش",null,null,null,"مكمل"]
[5," ايهم يوسف نزهان النصيرات",null,null,null," يرفع إلى الصف التاسع الأساسي"]
[6," جمال خضر حسن عياش",null,null,null,"مكمل"]
[7," جهاد موسى حسان ابو جرار",null,null,null," يرفع إلى الصف التاسع الأساسي"]
[8," حمزه سامي زهدي الراعي",null,null,null,"مكمل"]
[9," زيد خالد اسعد فروانه",null,null,null," يرفع إلى الصف التاسع الأساسي"]
[10," زيد مصطفى فرج ابو الفول",null,null,null," يرفع إلى الصف التاسع الأساسي"]
[11," ضياء اياد محمد ابو حميدان",null,null,null," يرفع إلى الصف التاسع الأساسي"]
[12," طارق جميل محمد شبراوي",null,null,null," يرفع إلى الصف التاسع الأساسي"]
[13," طارق عبد الله محمود المصري",null,null,null," يرفع إلى الصف التاسع الأساسي"]
[14," عباده عماد خليل العليمي",null,null,null," يرفع إلى الصف التاسع الأساسي"]
[15," عبد الرحمن باسم عبد الرحمن عامر",null,null,null," يرفع إلى الصف التاسع الأساسي"]
[16," عبد الرحمن خالد حسن حمد",null,null,null," يرفع إلى الصف التاسع الأساسي"]
[17," عبد الفتاح وائل عبد الفتاح الاخرس",null,null,null,"مكمل"]
[18," عبد الله محمد كمال منصور",null,null,null," يرفع إلى الصف التاسع الأساسي"]
[19," عبد المجيد محمد عبد المجيد القناص",null,null,null,"مكمل"]
[20," عبد الوهاب نديم عبد الغني سيف",null,null,null,"مكمل"]
[21," علي علاء الدين علي العمايره",null,null,null,"مكمل"]
[22," عمر ابراهيم زهدي الراعي",null,null,null,"مكمل"]
[23," عمر محمود سلامة الشطرات",null,null,null," يرفع إلى الصف التاسع الأساسي"]
[24," قصي فايز محمد الزبيدي",null,null,null," يرفع إلى الصف التاسع الأساسي"]
[25," قيس علي محمد العمايره",null,null,null,"مكمل"]
[26," قيس فايز محمد الزبيدي",null,null,null," يرفع إلى الصف التاسع الأساسي"]
[27," محمد حسن اسماعيل الجواهره",null,null,null," يرفع إلى الصف التاسع الأساسي"]
[28," محمد خالد عطا احمد",null,null,null,"مكمل"]
[29," محمد زياد عبد الفتاح لافي",null,null,null," يرفع إلى الصف التاسع الأساسي"]
[30," محمد مصطفى محمود ابو عجور",null,null,null," يرفع إلى الصف التاسع الأساسي"]
[31," محمد وليد حسين عقل",null,null,null," يرفع إلى الصف التاسع الأساسي"]
[32," محمد ياسر محمود ابو جمعه",null,null,null," يرفع إلى الصف التاسع الأساسي"]
[33," محمود سالم جبالي الغروف",null,null,null," يرفع إلى الصف التاسع الأساسي"]
[34," معتصم محمد عبد الرحمن سلامه",null,null,null," يرفع إلى الصف التاسع الأساسي"]
[35," مهيب فايز محمد الزبيدي",null,null,null," يرفع إلى الصف التاسع الأساسي"]
[36," نور الدين رضوان محمد العناتي",null,null,null," يرفع إلى الصف التاسع الأساسي"]
[""]
[""]
[""]
[""]
[""]
[""]
[""]
[""]
[""]
[""]
[""]
[""]
[""]
[""]
[""]
[""]
[""]
[""]
[""]
[]
[null,null,null,null,"قائمة الطلبة االمعيدين"]
[]
["مربي الصف :",null,{"$f":"F8","v":"احمد طه اسماعيل"},null,{"$f":"F5","v":"ذكور البقعة الاعدادية الرابعة"},null,null,"الصف والشعبة :",null,{"$f":"F6& \" ( \" & F7 & \" )\"","v":"الثامن ( ج )"}]
[]
["الرقم","اسم الطالب",null,null,null,"ملاحظات"]
[{"$f":"IF(B109<>\"\",1,\"\")","v":1}," ايهم خليل ابراهيم الصادق",null,null,null,"يعيد صفه بسبب تجاوزه نسبة الغياب",null,null,null,null,{"$f":"COUNTA(B109:E134)","v":5}]
[{"$f":"IF(AND(B110<>\"\",A109<>\"\"),A109+1,\"\")","v":2}," خليل الرحمن محمد خليل العواطله",null,null,null,"يعيد صفه"]
[{"$f":"IF(AND(B111<>\"\",A110<>\"\"),A110+1,\"\")","v":3}," سلمان ابراهيم صالح سليمان",null,null,null,"يعيد صفه"]
[4," محمد احمد عبد الله عليان",null,null,null,"يعيد صفه"]
[5," محمد خير تحسين الخطيب",null,null,null,"يعيد صفه"]
[""]
[""]
[""]
[""]
[""]
[""]
[""]
[""]
[""]
[""]
[""]
[""]
[""]
[""]
[""]
[""]
[""]
[""]
[""]
[""]
[""]
[]
[null,null,null,null,"قائمة مباحث الاكمال"]
["مربي الصف :",null,{"$f":"F8","v":"احمد طه اسماعيل"},null,{"$f":"F5","v":"ذكور البقعة الاعدادية الرابعة"},null,null,"الصف والشعبة :",null,{"$f":"F6 & \" ( \" & F7& \" )\"","v":"الثامن ( ج )"}]
["الرقم","اسم الطالب",null,null,"مباحث الاكمال"]
[null,null,null,null,"الاول","العلامة","الثاني","العلامة","الثالث","العلامة"]
[{"$f":"IF(B140<>\"\",1,\"\")","v":1}," ايهم جهاد حسن عياش",null,null,"اللغة العربية",null,null,null,null,null,{"$f":"COUNTA(B140:D174)","v":10}]
[{"$f":"IF(AND(B141<>\"\",A140<>\"\"),A140+1,\"\")","v":2}," جمال خضر حسن عياش",null,null,"اللغة العربية"]
[{"$f":"IF(AND(B142<>\"\",A141<>\"\"),A141+1,\"\")","v":3}," حمزه سامي زهدي الراعي",null,null,"الرياضيات"]
[4," عبد الفتاح وائل عبد الفتاح الاخرس",null,null,"اللغة العربية",null,"الرياضيات"]
[5," عبد المجيد محمد عبد المجيد القناص",null,null,"اللغة العربية"]
[6," عبد الوهاب نديم عبد الغني سيف",null,null,"اللغة الإنجليزية"]
[7," علي علاء الدين علي العمايره",null,null,"العلوم"]
[8," عمر ابراهيم زهدي الراعي",null,null,"العلوم"]
[9," قيس علي محمد العمايره",null,null,"العلوم"]
[10," محمد خالد عطا احمد",null,null,"اللغة الإنجليزية",null,"العلوم"]
[""]
[""]
[""]
[""]
[""]
[""]
[""]
[""]
[""]
[""]
[""]
[""]
[""]
[""]
[""]
[""]
[""]
[""]
[""]
[""]
[""]
[""]
[""]
[""]
[""]
[""]
[]
[{"$f":"\" قائمة معدلات طلبة الصف \"&F6& \" ( \" & F7 & \" )\"&\" مرتبه تنازليا \"","v":" قائمة معدلات طلبة الصف الثامن ( ج ) مرتبه تنازليا "}]
[]
["الترتيب","اسم الطالب",null,"المعدل","مجموع العلامات","الترتيب","اسم الطالب",null,"المعدل","مجموع العلامات"]
[{"$f":"Table!A11","v":1},{"$f":"Table!BO11","v":" احمد سيف الدين ابراهيم ابو عجور"},null,{"$f":"Table!BP11","v":57.310001373291016},{"$f":"Table!BQ11","v":917},{"$f":"Table!A39","v":29},{"$f":"Table!BO39","v":" عمر خالد محمد ابو فضه"},null,{"$f":"Table!BP39","v":89.30999755859375},{"$f":"Table!BQ39","v":1429}]
[{"$f":"Table!A12","v":2},{"$f":"Table!BO12","v":" احمد هاني محمد ابو سلمان"},null,{"$f":"Table!BP12","v":55.689998626708984},{"$f":"Table!BQ12","v":891},{"$f":"Table!A40","v":30},{"$f":"Table!BO40","v":" فارس غسان محمد رضوان"},null,{"$f":"Table!BP40","v":70.75},{"$f":"Table!BQ40","v":1132}]
[{"$f":"Table!A13","v":3},{"$f":"Table!BO13","v":" اسامه وائل عبد الفتاح الاخرس"},null,{"$f":"Table!BP13","v":61.880001068115234},{"$f":"Table!BQ13","v":990},{"$f":"Table!A41","v":31},{"$f":"Table!BO41","v":" فراس فضل عبد الرازق سعادة"},null,{"$f":"Table!BP41","v":73.44000244140625},{"$f":"Table!BQ41","v":1175}]
[{"$f":"Table!A14","v":4},{"$f":"Table!BO14","v":" البراء احمد محمد الشيش"},null,{"$f":"Table!BP14","v":66.379997253417969},{"$f":"Table!BQ14","v":1062},{"$f":"Table!A42","v":32},{"$f":"Table!BO42","v":" لؤي بسام عبد الرحمن عامر"},null,{"$f":"Table!BP42","v":95.5},{"$f":"Table!BQ42","v":1528}]
[{"$f":"Table!A15","v":5},{"$f":"Table!BO15","v":" انس مهنا نمر حسن"},null,{"$f":"Table!BP15","v":69.69000244140625},{"$f":"Table!BQ15","v":1115},{"$f":"Table!A43","v":33},{"$f":"Table!BO43","v":" ليث عبد الرحيم عبد المنعم قنديل"},null,{"$f":"Table!BP43","v":67.44000244140625},{"$f":"Table!BQ43","v":1079}]
[{"$f":"Table!A16","v":6},{"$f":"Table!BO16","v":" ايهم احمد سليمان الزاملي"},null,{"$f":"Table!BP16","v":92.5},{"$f":"Table!BQ16","v":1480},{"$f":"Table!A44","v":34},{"$f":"Table!BO44","v":" محمد احمد خليل ابو صفيه"},null,{"$f":"Table!BP44","v":58.380001068115234},{"$f":"Table!BQ44","v":934}]
[{"$f":"Table!A17","v":7},{"$f":"Table!BO17","v":" ايهم ايمن محمد خليل"},null,{"$f":"Table!BP17","v":67.44000244140625},{"$f":"Table!BQ17","v":1079},{"$f":"Table!A45","v":35},{"$f":"Table!BO45","v":" محمد احمد محمود عشيش"},null,{"$f":"Table!BP45","v":57.060001373291016},{"$f":"Table!BQ45","v":913}]
[{"$f":"Table!A18","v":8},{"$f":"Table!BO18","v":" براء فادي ابراهيم الاسمر"},null,{"$f":"Table!BP18","v":72.879997253417969},{"$f":"Table!BQ18","v":1166},{"$f":"Table!A46","v":36},{"$f":"Table!BO46","v":" محمد اسامه حمزه ابو زعنونه"},null,{"$f":"Table!BP46","v":77.55999755859375},{"$f":"Table!BQ46","v":1241}]
[{"$f":"Table!A19","v":9},{"$f":"Table!BO19","v":" ثائر موسى مصطفى ابو سليم"},null,{"$f":"Table!BP19","v":64.94000244140625},{"$f":"Table!BQ19","v":1039},{"$f":"Table!A47","v":37},{"$f":"Table!BO47","v":" محمد جلال عوض عبد القادر"},null,{"$f":"Table!BP47","v":73.80999755859375},{"$f":"Table!BQ47","v":1181}]
[{"$f":"Table!A20","v":10},{"$f":"Table!BO20","v":" جواد احمد محمود ابو اصبع"},null,{"$f":"Table!BP20","v":55.25},{"$f":"Table!BQ20","v":884},{"$f":"Table!A48","v":38},{"$f":"Table!BO48","v":" محمد خالد وصفي عبد اللطيف"},null,{"$f":"Table!BP48","v":71.44000244140625},{"$f":"Table!BQ48","v":1143}]
[{"$f":"Table!A21","v":11},{"$f":"Table!BO21","v":" حمزه محمود عبد الرحمن اسريوه"},null,{"$f":"Table!BP21","v":86.80999755859375},{"$f":"Table!BQ21","v":1389},{"$f":"Table!A49","v":39},{"$f":"Table!BO49","v":" محمد عمر محمد يوسف"},null,{"$f":"Table!BP49","v":58.880001068115234},{"$f":"Table!BQ49","v":942}]
[{"$f":"Table!A22","v":12},{"$f":"Table!BO22","v":" خليل بلال خليل البايض"},null,{"$f":"Table!BP22","v":61.939998626708984},{"$f":"Table!BQ22","v":991},{"$f":"Table!A50","v":40},{"$f":"Table!BO50","v":" محمود علي محمود ابو ديه"},null,{"$f":"Table!BP50","v":73.629997253417969},{"$f":"Table!BQ50","v":1178}]
[{"$f":"Table!A23","v":13},{"$f":"Table!BO23","v":" رامي جميل محمد شبراوي"},null,{"$f":"Table!BP23","v":63.5},{"$f":"Table!BQ23","v":1016},{"$f":"Table!A51","v":41},{"$f":"Table!BO51","v":" مصلح عمر مصلح الجوابره"},null,{"$f":"Table!BP51","v":63.380001068115234},{"$f":"Table!BQ51","v":1014}]
[{"$f":"Table!A24","v":14},{"$f":"Table!BO24","v":" زياد شادي زياد زياد"},null,{"$f":"Table!BP24","v":80.69000244140625},{"$f":"Table!BQ24","v":1291},{"$f":"Table!A52","v":42},{"$f":"Table!BO52","v":" مهند ابراهيم داود الشطرات"},null,{"$f":"Table!BP52","v":60.880001068115234},{"$f":"Table!BQ52","v":974}]
[{"$f":"Table!A25","v":15},{"$f":"Table!BO25","v":" زيد عصام محمد مسلم"},null,{"$f":"Table!BP25","v":72.30999755859375},{"$f":"Table!BQ25","v":1157},{"$f":"Table!A53","v":43},{"$f":"Table!BO53","v":" مهند زياد ابراهيم ابو شعيرة"},null,{"$f":"Table!BP53","v":56.810001373291016},{"$f":"Table!BQ53","v":909}]
[{"$f":"Table!A26","v":16},{"$f":"Table!BO26","v":" زيد علي سعد دعاس"},null,{"$f":"Table!BP26","v":72.55999755859375},{"$f":"Table!BQ26","v":1161},{"$f":"Table!A54","v":44},{"$f":"Table!BO54","v":" مؤمن مهنا نمر حسن"},null,{"$f":"Table!BP54","v":69.05999755859375},{"$f":"Table!BQ54","v":1105}]
[{"$f":"Table!A27","v":17},{"$f":"Table!BO27","v":" زيد ماجد ربيع ابو ربيع"},null,{"$f":"Table!BP27","v":53.880001068115234},{"$f":"Table!BQ27","v":862},{"$f":"Table!A55","v":45},{"$f":"Table!BO55","v":" ياسين يوسف عبد الخالق العايدي"},null,{"$f":"Table!BP55","v":61},{"$f":"Table!BQ55","v":976}]
[{"$f":"Table!A28","v":18},{"$f":"Table!BO28","v":" زيد محمد عمر عايش"},null,{"$f":"Table!BP28","v":74.94000244140625},{"$f":"Table!BQ28","v":1199},{"$f":"Table!A56","v":46},{"$f":"Table!BO56","v":" يزيد يوسف موسى بنات"},null,{"$f":"Table!BP56","v":84.379997253417969},{"$f":"Table!BQ56","v":1350}]
[{"$f":"Table!A29","v":19},{"$f":"Table!BO29","v":" سامي انور يوسف بنات"},null,{"$f":"Table!BP29","v":80},{"$f":"Table!BQ29","v":1280},{"$f":"Table!A57","v":47},{"$f":"Table!BO57","v":" يعقوب عايد جميل ابوسمره"},null,{"$f":"Table!BP57","v":62.380001068115234},{"$f":"Table!BQ57","v":998}]
[{"$f":"Table!A30","v":20},{"$f":"Table!BO30","v":" سعيد عوض سلامه اسعد"},null,{"$f":"Table!BP30","v":68.879997253417969},{"$f":"Table!BQ30","v":1102},{"$f":"Table!A58","v":""},{"$f":"Table!BO58","v":0},null,{"$f":"Table!BP58","v":0},{"$f":"Table!BQ58","v":0}]
[{"$f":"Table!A31","v":21},{"$f":"Table!BO31","v":" عباده غسان سعيد بدران"},null,{"$f":"Table!BP31","v":64.5},{"$f":"Table!BQ31","v":1032},{"$f":"Table!A59","v":""},{"$f":"Table!BO59","v":0},null,{"$f":"Table!BP59","v":0},{"$f":"Table!BQ59","v":0}]
[{"$f":"Table!A32","v":22},{"$f":"Table!BO32","v":" عبد الله بسام محمد رضوان"},null,{"$f":"Table!BP32","v":79.44000244140625},{"$f":"Table!BQ32","v":1271},{"$f":"Table!A60","v":""},{"$f":"Table!BO60","v":0},null,{"$f":"Table!BP60","v":0},{"$f":"Table!BQ60","v":0}]
[{"$f":"Table!A33","v":23},{"$f":"Table!BO33","v":" عبد الله خالد عبد الله العبادي"},null,{"$f":"Table!BP33","v":58},{"$f":"Table!BQ33","v":928},{"$f":"Table!A61","v":""},{"$f":"Table!BO61","v":0},null,{"$f":"Table!BP61","v":0},{"$f":"Table!BQ61","v":0}]
[{"$f":"Table!A34","v":24},{"$f":"Table!BO34","v":" عبد الله عبد الرحمن محمد الملع"},null,{"$f":"Table!BP34","v":76.75},{"$f":"Table!BQ34","v":1228},{"$f":"Table!A62","v":""},{"$f":"Table!BO62","v":0},null,{"$f":"Table!BP62","v":0},{"$f":"Table!BQ62","v":0}]
[{"$f":"Table!A35","v":25},{"$f":"Table!BO35","v":" عبد الله ناصر يونس بدران"},null,{"$f":"Table!BP35","v":69},{"$f":"Table!BQ35","v":1104},{"$f":"Table!A63","v":""},{"$f":"Table!BO63","v":0},null,{"$f":"Table!BP63","v":0},{"$f":"Table!BQ63","v":0}]
[{"$f":"Table!A36","v":26},{"$f":"Table!BO36","v":" عدي فادي سعيد شبراوي"},null,{"$f":"Table!BP36","v":76.69000244140625},{"$f":"Table!BQ36","v":1227},{"$f":"Table!A64","v":""},{"$f":"Table!BO64","v":0},null,{"$f":"Table!BP64","v":0},{"$f":"Table!BQ64","v":0}]
[{"$f":"Table!A37","v":27},{"$f":"Table!BO37","v":" علاء وسام محمد الفيومي"},null,{"$f":"Table!BP37","v":75.69000244140625},{"$f":"Table!BQ37","v":1211},{"$f":"Table!A65","v":""},{"$f":"Table!BO65","v":0},null,{"$f":"Table!BP65","v":0},{"$f":"Table!BQ65","v":0}]
[{"$f":"Table!A38","v":28},{"$f":"Table!BO38","v":" عمر احمد سليمان العمايره"},null,{"$f":"Table!BP38","v":86.30999755859375},{"$f":"Table!BQ38","v":1381}]
[null,null,null,null,null,null,null,null,{"$f":"Table!BP67","v":0},{"$f":"Table!BQ67","v":0}]
[]
[]
[]
[null,"ملخص جدول",null,null,null,null,"ملخص جدول"]
[null,"الصف",null,null,{"$f":"F6","v":"الثامن"},null,"الصف",null,null,{"$f":"E213","v":"الثامن"}]
[null,"الشعبة",null,null,{"$f":"F7","v":"ج"},null,"الشعبة",null,null,"ج"]
[null,"عدد طلاب الصف",null,null,{"$f":"COUNTA(B48:E102,B109:E134)","v":41},null,"عدد طلاب الصف",null,null,41]
[null,"عدد الطلبة الناجحين والمكملين",null,null,{"$f":"COUNTA(B48:E102)","v":36},null,"عدد الطلبة الناجحين والمكملين",null,null,36]
[null,"عدد الطلبة الراسبين",null,null,{"$f":"COUNTA(B109:E134)","v":5},null,"عدد الطلبة الراسبين",null,null,5]
[null,"النسبة المئوية للطلبة الراسبين",null,null,{"$f":" \" % \" & IF(E215=0,\"\",ROUND((E217/E215)*100,0))","v":" % 12"},null,"النسبة المئوية للطلبة الراسبين",null,null," % 12"]

{"sheet":"certificatnew","index":3,"n_rows":71,"n_cols":93,"rows_kept":71,"cut":false,"hidden":true,"merged":[[24,32,27,32],[34,34,34,35],[15,35,16,35],[31,33,32,33],[24,33,25,33],[24,34,25,34],[24,35,25,35],[31,34,32,34],[15,32,23,32],[28,32,30,32],[15,34,16,34],[18,33,23,33],[6,1,7,5],[8,1,9,5],[10,9,11,9],[10,8,11,8],[14,6,15,6],[14,9,15,9],[4,1,5,5],[10,1,11,5],[12,1,13,5],[8,7,9,7],[4,6,4,8],[8,8,9,8],[4,9,4,11],[6,6,7,6],[6,8,7,8],[12,11,13,11],[10,7,11,7],[12,7,13,7],[12,8,13,8],[8,11,9,11],[8,9,9,9],[12,9,13,9],[6,7,7,7],[6,9,7,9],[19,23,22,23],[16,22,22,22],[10,6,11,6],[12,6,13,6],[8,6,9,6],[11,14,11,15],[14,14,14,15],[13,18,13,19],[6,10,7,10],[10,11,11,11],[6,11,7,11],[10,10,11,10],[8,10,9,10],[35,1,35,2],[33,10,33,11],[34,10,34,11],[34,5,34,6],[32,13,32,18],[30,13,30,18],[35,13,35,18],[33,13,33,18],[34,13,34,18],[33,1,33,2],[34,1,34,2],[35,3,35,6],[33,5,33,6],[37,34,37,35],[12,32,14,32],[16,24,17,24],[16,25,17,25],[23,23,24,23],[34,24,36,25],[19,24,21,25],[13,23,15,23],[31,25,32,25],[31,24,32,24],[26,23,30,23],[23,25,24,25],[23,24,24,24],[26,24,28,25],[34,23,37,23],[31,23,32,23],[16,23,17,23],[35,32,37,32],[15,33,16,33],[27,34,27,35],[18,34,20,35],[31,32,34,32],[30,34,30,35],[31,35,32,35],[7,23,9,23],[4,25,5,25],[10,24,11,24],[13,24,15,25],[1,33,1,35],[2,30,3,30],[1,27,1,30],[2,29,3,29],[2,28,3,28],[14,34,14,35],[7,24,9,25],[7,33,11,33],[2,27,3,27],[12,14,12,15],[15,14,15,15],[13,14,13,15],[1,37,1,40],[2,37,3,37],[2,38,3,38],[2,39,3,39],[2,40,3,40],[1,36,3,36],[4,32,11,32],[7,34,9,35],[4,34,5,34],[4,33,5,33],[4,35,5,35],[10,25,11,25],[1,13,2,19],[1,22,3,22],[1,26,3,26],[4,24,5,24],[1,32,3,32],[4,23,5,23],[4,22,9,22],[1,23,1,25],[5,16,5,17],[7,13,8,19],[9,13,9,15],[9,17,9,19],[3,13,6,14],[3,15,3,17],[4,15,4,17],[4,18,4,19],[5,18,5,19],[10,23,11,23],[14,18,14,19],[36,13,36,18],[35,10,35,11],[24,17,24,18],[25,18,25,19],[24,13,25,15],[28,8,28,11],[31,13,31,18],[29,13,29,18],[23,22,30,22],[31,22,37,22],[23,13,23,19],[17,18,17,19],[12,10,13,10],[28,13,28,15],[27,13,27,15],[10,22,15,22],[12,18,12,19],[10,14,10,15],[14,8,15,8],[11,18,11,19],[10,18,10,19],[20,11,21,11],[16,9,17,9],[19,13,19,15],[14,10,15,10],[21,17,21,19],[20,17,20,19],[15,18,15,19],[16,18,16,19],[20,14,20,15],[17,14,17,15],[16,11,17,11],[18,8,19,8],[18,10,19,10],[16,14,16,15],[16,1,17,5],[19,17,19,19],[14,11,15,11],[16,7,17,7],[18,6,19,6],[18,7,19,7],[16,6,17,6],[16,10,17,10],[18,9,19,9],[14,7,15,7],[14,1,15,5],[23,1,23,2],[26,6,26,7],[24,1,25,11],[21,14,21,15],[18,11,19,11],[16,8,17,8],[20,10,21,10],[20,8,21,8],[26,2,26,5],[20,1,21,5],[20,7,21,7],[26,8,26,11],[18,1,19,5],[20,9,21,9],[20,6,21,6]]}
[null,null,null,null,null,null,null,null,null,null,null,null,null,null,null,null,null,null,null,null,null,null,null,null,null,null,null,null,null,null,null,null,null,null,null,null,null,null,null,null,null,null,null,null,null,null,null,null,null,null,null,null,null,null,null,null,null,null,null,null,null,null,null,null,null,null,null,null,null,null,null,null,null,null,null,null,null,null,null,null,null,null,null,null,null,null,null,null,null,null,null,null," "]
[null,null,null,null,null,null,null,null,null,null,null,null,null,"بسم الله الرحمن الرحيم",null,null,null,null,null,null,null,null,"المبحث","العلامة المستحقة",null,null,"مهارات التعلم الاساسية","الدرجــــة",null,null,null,null,"المبحث","العلامة المستحقة",null,null,"مهارات التعلم الاساسية","الدرجــــة"]
[null,null,null,null,null,null,null,null,null,null,null,null,null,null,null,null,null,null,null,null,null,null,null,"الفصل الاول","الفصل الثاني","المعـدل",null,"متقدم","جيد","مرض","بحاجة الى مساعدة",null,null,"الفصل الاول","الفصل الثاني","المعـدل",null,"متقدم","جيد","مرض","بحاجة الى مساعدة",null,null,null,null,null,null,null,null,null,null,null,null,null,null,null,null,null,null,null,null,null,null,null,null,null,null,null,null,null,null,null,null,null,null,null,null,null,null,null,null,"اول","ثاني","ثالث","رابع","خامس","سادس","سابع","ثامن","تاسع","عاشر"]
[null,"الكفايات العامة :",null,null,null,null,null,null,null,null,null,null,null,null,null,"تقرير تقويم الطالب",null,null,null,null,null,null,null,"رقماً","رقماً","رقما",null,null,null,null,null,null,null,"رقماً","رقماً","رقما"]
[null,"الكفاية",null,null,null,null,"الفصل الاول",null,null,"الفصل الثاني",null,null,null,null,null,{"$f":"\" للصف  \" & Value!$F$6 & \"  الأساسي  \"","v":" للصف  الثامن  الأساسي  "},null,null,"وكالة الغوث الدولية",null,null,null,{"$f":"Table!$H$6","v":"التربية الاسلامية"},null,null,null,null,{"$f":"IF(AA5=\"\",\"\",IF(((Z5/Z7)*100)>=95,\"X\",\"\"))","v":""},{"$f":"IF(AA5=\"\",\"\",IF((Z5/Z7)*100>=95,\"\",IF((Z5/Z7)*100>=80,\"X\",)))","v":""},{"$f":"IF(AA5=\"\",\"\",IF((Z5/Z7)*100>=80,\"\",IF((Z5/Z7)*100>=65,\"X\",)))","v":""},{"$f":"IF(Z5=0,\"\",IF(AA5=\"\",\"\",IF(Z5=\"\",\"\",IF((Z5/Z7)*100<65,\"X\",\"\"))))","v":""},null,{"$f":"Table!$W$6","v":"العلـــوم"},null,null,null,null,{"$f":"IF(AK5=\"\",\"\",IF(((AJ5/AJ7)*100)>=95,\"X\",\"\"))","v":""},{"$f":"IF(AK5=\"\",\"\",IF((AJ5/AJ7)*100>=95,\"\",IF((AJ5/AJ7)*100>=80,\"X\",)))","v":""},{"$f":"IF(AK5=\"\",\"\",IF((AJ5/AJ7)*100>=80,\"\",IF((AJ5/AJ7)*100>=65,\"X\",)))","v":""},{"$f":"IF(AJ5=0,\"\",IF(AK5=\"\",\"\",IF(AJ5=\"\",\"\",IF((AJ5/AJ7)*100<65,\"X\",\"\"))))","v":""},null,null,null,null,null,null,null,null,null,null,null,null,null,null,null,null,null,null,null,null,null,null,null,null,null,null,null,null,null,null,null,null,null,null,null,null,null,null,null,{"$f":"IF(Value!$F$6=\"الأول\",\"1\",IF(Value!$F$6=\"الثاني\",\"2\",IF(Value!$F$6=\"الثالث\",\"3\",IF(Value!$F$6=\"الرابع\",\"4\",IF(Value!$F$6=\"الخامس\",\"5\",IF(Value!$F$6=\"السادس\",\"6\",IF(Value!$F$6=\"السابع\",\"7\",IF(Value!$F$6=\"الثامن\",\"8\",))))))))&(IF(Value!$F$6=\"التاسع\",\"9\",IF(Value!$F$6=\"العاشر\",\"10\",)))","v":"8"},"تلاوة السور الكريمة مثل ( الفاتحة,العصر, ... ) تلاوة سليمة غيبا","تلاوة ايات كريمة مثل ( التوبة,الرحمن,الضحى,الشرح,, ... ) تلاوة سليمة غيبا","تلاوة  آيات كريمة من سور ( البقرة,الأعلى,الشمس,...) تلاوة سليمة غيبا","تلاوة  آيات كريمة من سور ( البقرة,الكهف,النبأ,البروج,...) تلاوة سليمة غيبا","تلاوة  ايات كريمة من سور (يونس,التوبة,نور,الملك) غيبا مراعيا احكام الغنة والنون الساكنة والتنوين","تلاوة  ايات كريمة من سور (مريم,الفتح) غيبا مراعيا احكام الميم الساكنة والميم والنون المشددة والقلقلة","تلاوة ايات كريمة من سور (الانفال,النحل,الصف,...) غيبا مراعيا احكام الادغام والإظهار","تلاوة ايات كريمة من سورة الاسراء غيبا مراعيا احكام المد والهمزات والهاءات","تلاوة ايات كريمة من سور (الانفال,الحجرات,ق) غيبا مراعيا احكام التفخيم والترقيم","تلاوة ايات كريمة من سور (ال عمران,المؤمنون,الاحقاف,المدثر) غيبا مراعيا احكام الوقف والسكت والابتداء"]
[null,null,null,null,null,null,"غالبا","احيانا","نادرا","غالبا","احيانا","نادرا",null,null,null,"العام الدراسي",{"$f":"Value!$F$10","v":"2020/2019"},null," دائرة التربية والتعليم",null,null,null,null,null,null,null,null,{"$f":"IF(AA6=\"\",\"\",IF((Z5/Z7)*100>=85,\"X\",\"\"))","v":""},{"$f":"IF(AA6=\"\",\"\",IF((Z5/Z7)*100>=85,\"\",IF((Z5/Z7)*100>=70,\"X\",)))","v":""},{"$f":"IF(AA6=\"\",\"\",IF((Z5/Z7)*100>=70,\"\",IF((Z5/Z7)*100>=55,\"X\",)))","v":""},{"$f":"IF(Z5=0,\"\",IF(AA6=\"\",\"\",IF(Z5=\"\",\"\",IF((Z5/Z7)*100<55,\"X\",\"\"))))","v":""},null,null,null,null,null,null,{"$f":"IF(AK6=\"\",\"\",IF((AJ5/AJ7)*100>=85,\"X\",\"\"))","v":""},{"$f":"IF(AK6=\"\",\"\",IF((AJ5/AJ7)*100>=85,\"\",IF((AJ5/AJ7)*100>=70,\"X\",)))","v":""},{"$f":"IF(AK6=\"\",\"\",IF((AJ5/AJ7)*100>=70,\"\",IF((AJ5/AJ7)*100>=55,\"X\",)))","v":""},{"$f":"IF(AJ5=0,\"\",IF(AK6=\"\",\"\",IF(AJ5=\"\",\"\",IF((AJ5/AJ7)*100<55,\"X\",\"\"))))","v":""},null,null,null,null,null,null,null,null,null,null,null,null,null,null,null,null,null,null,null,null,null,null,null,null,null,null,null,null,null,null,null,null,null,null,null,null,null,null,null,null,"قراءة الأحاديث الشريفة مثل ( اركان الاسلام,اداب الطعام والشراب, ... ) قراءة صحيحة غيبا","قراءة الأحاديث الشريفة مثل ( من توضأ فأحسن,خيركم من تعلم القرآن,, ... ) قراءة صحيحة غيبا ","قراءة الأحاديث الشريفة مثل ( من قرأ حرفا,الصدق يهدي, ... )  قراءة صحيحة غيبا ","قراءة الأحاديث الشريفة مثل ( المؤمن القوي,حق المسلم,, ... )  قراءة صحيحة غيبا ","قراءة الأحاديث الشريفة مثل (اي الاعمال افضل,لا يدخل الجنة, ... )  قراءة صحيحة غيبا","قراءة الأحاديث الشريفة مثل (يا غلام,اية المنافق ...) قراءة صحيحة غيبا","قراءة الأحاديث الشريفة مثل (انما الاعمال بالنيات,من رأى منكم منكرا ...) قراءة صحيحة غيبا","قراءة الأحاديث الشريفة مثل (من عاد لي وليا,من نفس عن مؤمن, ...) قراءة صحيحة غيبا","قراءة الأحاديث الشريفة مثل (القائم على حدود,رغم انف رجل, ...) قراءة صحيحة غيبا","قراءة الأحاديث الشريفة مثل (افضل الاعمل الى الله,تحمل المسؤولية في الاسلام ...) قراءة صحيحة غيبا"]
[null,"يحترم النظام ويتقيد بالتعليمات",null,null,null,null,{"$f":"IF($AR11=\"ممتاز\",\"X\",)","v":0},{"$f":"IF($AR11=\"جيد جدا\",\"X\",IF($AR11=\"جيد\",\"X\",))","v":0},{"$f":"IF($AR11=\"مقبول\",\"X\",)","v":0},{"$f":"IF(Value!$F$33=\"1\",\"\",IF($AR11=\"ممتاز\",\"X\",))","v":0},{"$f":"IF(Value!$F$33=\"1\",\"\",IF($AR11=\"جيد جدا\",\"X\",IF($AR11=\"جيد\",\"X\",)))","v":0},{"$f":"IF(Value!$F$33=\"1\",\"\",IF($AR11=\"مقبول\",\"X\",))","v":0},null,null,null,null,null,null,null,null,null,null,null,{"$f":"Table!$H$10","v":200},{"$f":"Table!$I$10","v":200},{"$f":"Table!$J$10","v":200},null,{"$f":"IF(AA7=\"\",\"\",IF((Z5/Z7)*100>=90,\"X\",\"\"))","v":""},{"$f":"IF(AA7=\"\",\"\",IF((Z5/Z7)*100>=90,\"\",IF((Z5/Z7)*100>=75,\"X\",)))","v":""},{"$f":"IF(AA7=\"\",\"\",IF((Z5/Z7)*100>=75,\"\",IF((Z5/Z7)*100>=60,\"X\",)))","v":""},{"$f":"IF(Z5=0,\"\",IF(AA7=\"\",\"\",IF(Z5=\"\",\"\",IF((Z5/Z7)*100<60,\"X\",\"\"))))","v":""},null,null,{"$f":"Table!$W$10","v":200},{"$f":"Table!$X$10","v":200},{"$f":"Table!$Y$10","v":200},null,{"$f":"IF(AK7=\"\",\"\",IF((AJ5/AJ7)*100>=90,\"X\",\"\"))","v":""},{"$f":"IF(AK7=\"\",\"\",IF((AJ5/AJ7)*100>=90,\"\",IF((AJ5/AJ7)*100>=75,\"X\",)))","v":""},{"$f":"IF(AK7=\"\",\"\",IF((AJ5/AJ7)*100>=75,\"\",IF((AJ5/AJ7)*100>=60,\"X\",)))","v":""},{"$f":"IF(AJ5=0,\"\",IF(AK7=\"\",\"\",IF(AJ5=\"\",\"\",IF((AJ5/AJ7)*100<60,\"X\",\"\"))))","v":""},null,null,null,null,null,null,null,null,null,null,null,null,null,null,null,null,null,null,null,null,null,null,null,null,null,null,null,null,null,null,null,null,null,null,null,null,null,null,null,"دين","اعطاء معاني المفردات في السور والاحاديث مثل ( الفاتحة ,العصر,اركان الاسلام,...)","اعطاء معاني المفردات في السور والاحاديث مثل ( الضحى, من توضأ فأحسن, ... )","اعطاء معاني المفردات في السور والاحاديث مثل ( الاعلى, الشمس,من قرأحرفا, ... )","اعطاء معاني المفردات في السور والاحاديث مثل ( النبأ, البروج,المؤمن القوي, ... )","تفسير وشرح النصوص الشرعية بصورة اجمالية مثل ( يونس,التوبة,اي الاعمال افضل, ... )","تفسير وشرح النصوص الشرعية بصورة اجمالية من مثل ( مريم,الفتح,يا غلام,آية المنافق,...)","تفسير وشرح النصوص الشرعية بصورة اجمالية من مثل (الانفال,إنما الاعمال بالنيات,...)","تفسير وشرح النصوص الشرعية بصورة اجمالية من مثل ( الإسراء,من عادى لي وليا,...)","تفسير وشرح النصوص الشرعية بصورة اجمالية من مثل (الانفال والحجرات,القائم على حدود, ...)","تفسير وشرح النصوص الشرعية بصورة اجمالية مثل الايات من سور ( آل عمران,والمؤمنون,...,وأفضل الاعمال عند الله,...)"]
[null,null,null,null,null,null,null,null,null,null,null,null,null,"النتائج المدرسية",null,null,null,null,null,null,null,null,null,"المعدل بالحروف",{"$f":"SpellNumberA(IF(Value!$F$33=\"1\",X5,Z5),0,\"علامة\",\"علامتان\",\"علامات\")","v":""},null,null,{"$f":"IF(AA8=\"\",\"\",IF((Z5/Z7)*100>=80,\"X\",\"\"))","v":""},{"$f":"IF(AA8=\"\",\"\",IF((Z5/Z7)*100>=80,\"\",IF((Z5/Z7)*100>=70,\"X\",)))","v":""},{"$f":"IF(AA8=\"\",\"\",IF((Z5/Z7)*100>=70,\"\",IF((Z5/Z7)*100>=60,\"X\",)))","v":""},{"$f":"IF(Z5=0,\"\",IF(AA8=\"\",\"\",IF(Z5=\"\",\"\",IF((Z5/Z7)*100<60,\"X\",\"\"))))","v":""},null,null,"المعدل بالحروف",{"$f":"SpellNumberA(IF(Value!$F$33=\"1\",AH5,AJ5),0,\"علامة\",\"علامتان\",\"علامات\")","v":""},null,null,{"$f":"IF(AK8=\"\",\"\",IF((AJ5/AJ7)*100>=80,\"X\",\"\"))","v":""},{"$f":"IF(AK8=\"\",\"\",IF((AJ5/AJ7)*100>=80,\"\",IF((AJ5/AJ7)*100>=70,\"X\",)))","v":""},{"$f":"IF(AK8=\"\",\"\",IF((AJ5/AJ7)*100>=70,\"\",IF((AJ5/AJ7)*100>=60,\"X\",)))","v":""},{"$f":"IF(AJ5=0,\"\",IF(AK8=\"\",\"\",IF(AJ5=\"\",\"\",IF((AJ5/AJ7)*100<60,\"X\",\"\"))))","v":""},null,null,null,null,null,null,null,null,null,null,null,null,null,null,null,null,null,null,null,null,null,null,null,null,null,null,null,null,null,null,null,null,null,null,null,null,null,null,null,null,"ترتيب اعمال العبادات والاداب الاسلامية كالوضوء والصلاة واداب الطعام , ... ","اداء العبادات والآداب الاسلامية كالوضوء والصلاة واآداب زيارة الجيران, ...","التمييز بين اركان الصلاة وسننها","معرفة بعض الاحكام المتعلقة : بالصوم من حيث وقته وآدبه وأهميته والبيع والهدية والهبة ","معرفة المصطلحات الايمانية مثل ( الوحي,الرسل,المعجزة,الدعاء ...) ","معرفة مشاهد اليوم الآخر","المقارنة بين بعض المفاهيم العقائدية من مثل ( الاسلام, الايمان,الكفر,الشرك, ...) ","معرفة المفاهيم العقائدية كالتوحيد , التقوى , السحر , الشعوذة , ...","معرفة المفاهيم العقائدية مثل (القضاء,القدر,الشفاعة, ...)","معرفة خصائص العقيدة الاسلامية مثل الربانية والوسطية والايجابية ..."]
[null,"يحافظ على البيئة والممتلكات العامة",null,null,null,null,{"$f":"IF($AR11=\"جيد جدا\",\"X\",IF($AR11=\"ممتاز\",\"X\",))","v":0},{"$f":"IF($AR11=\"جيد\",\"X\",)","v":0},{"$f":"IF($AR11=\"مقبول\",\"X\",)","v":0},{"$f":"IF(Value!$F$33=\"1\",\"\",IF($AR11=\"جيد جدا\",\"X\",IF($AR11=\"ممتاز\",\"X\",)))","v":0},{"$f":"IF(Value!$F$33=\"1\",\"\",IF($AR11=\"جيد\",\"X\",))","v":0},{"$f":"IF(Value!$F$33=\"1\",\"\",IF($AR11=\"مقبول\",\"X\",))","v":0},null,null,null,null,null,null,null,null,null,null,null,null,null,null,null,{"$f":"IF(AA9=\"\",\"\",IF((Z5/Z7)*100>=90,\"X\",\"\"))","v":""},{"$f":"IF(AA9=\"\",\"\",IF((Z5/Z7)*100>=90,\"\",IF((Z5/Z7)*100>=70,\"X\",)))","v":""},{"$f":"IF(AA9=\"\",\"\",IF((Z5/Z7)*100>=70,\"\",IF((Z5/Z7)*100>=55,\"X\",)))","v":""},{"$f":"IF(Z5=0,\"\",IF(AA9=\"\",\"\",IF(Z5=\"\",\"\",IF((Z5/Z7)*100<55,\"X\",\"\"))))","v":""},null,null,null,null,null,null,{"$f":"IF(AK9=\"\",\"\",IF((AJ5/AJ7)*100>=90,\"X\",\"\"))","v":""},{"$f":"IF(AK9=\"\",\"\",IF((AJ5/AJ7)*100>=90,\"\",IF((AJ5/AJ7)*100>=70,\"X\",)))","v":""},{"$f":"IF(AK9=\"\",\"\",IF((AJ5/AJ7)*100>=70,\"\",IF((AJ5/AJ7)*100>=55,\"X\",)))","v":""},{"$f":"IF(AJ5=0,\"\",IF(AK9=\"\",\"\",IF(AJ5=\"\",\"\",IF((AJ5/AJ7)*100<55,\"X\",\"\"))))","v":""},null,null,null,null,null,null,null,null,null,null,null,null,null,null,null,null,null,null,null,null,null,null,null,null,null,null,null,null,null,null,null,null,null,null,null,null,null,null,null,null,"معرفة اركان الايمان","التمييز بين اركان الاسلام واركان الايمان","معرفة الاداب الاسلامية كأداب الحديث,وآداب زيارة المريض, ....","معرفة الاداب الاسلامية كآداب طالب العلم, ....","معرفة الاحكام الشرعية المتعلقة بالصوم من حيث مبطلاته والاعذار المبيحة للإفطار والتيمم وصلاة الوتر ....","معرفة الاحكام المتعلقة ب ( صلاة الضحى,صلاة العيدين, ... )","معرفة الاحكام المتعلقة بالمعاملات كالوكالة,الاجارة, ...","معرفة الاحكام المتعلقة بالعبادات والمعاملات كالغسل , الحج , الرهن, ...","معرفة الاحكام المتعلقة بالعبادات والمعاملات كالربا,الصرف,الذبائح, ...","معرفة الاحكام المتعلقة بالعبادات والمعاملات مثل(التسعير,الاحتكار,الايمان,النذر, ...)"]
[null,null,null,null,null,null,null,null,null,null,null,null,null,"بيانات خاصة بالطالب",null,null,null,"بيانات خاصة بالمدرسة",null,null,null,null,null,null,null,null,null,{"$f":"IF(AA10=\"\",\"\",IF((Z5/Z7)*100>=95,\"X\",\"\"))","v":""},{"$f":"IF(AA10=\"\",\"\",IF((Z5/Z7)*100>=95,\"\",IF((Z5/Z7)*100>=75,\"X\",)))","v":""},{"$f":"IF(AA10=\"\",\"\",IF((Z5/Z7)*100>=75,\"\",IF((Z5/Z7)*100>=65,\"X\",)))","v":""},{"$f":"IF(Z5=0,\"\",IF(AA10=\"\",\"\",IF(Z5=\"\",\"\",IF((Z5/Z7)*100<65,\"X\",\"\"))))","v":""},null,null,null,null,null,null,{"$f":"IF(AK10=\"\",\"\",IF((AJ5/AJ7)*100>=95,\"X\",\"\"))","v":""},{"$f":"IF(AK10=\"\",\"\",IF((AJ5/AJ7)*100>=95,\"\",IF((AJ5/AJ7)*100>=75,\"X\",)))","v":""},{"$f":"IF(AK10=\"\",\"\",IF((AJ5/AJ7)*100>=75,\"\",IF((AJ5/AJ7)*100>=65,\"X\",)))","v":""},{"$f":"IF(AJ5=0,\"\",IF(AK10=\"\",\"\",IF(AJ5=\"\",\"\",IF((AJ5/AJ7)*100<65,\"X\",\"\"))))","v":""},null,null,null,null,null,null,null,null,null,null,null,null,null,null,null,null,null,null,null,null,null,null,null,null,null,null,null,null,null,null,null,null,null,null,null,null,null,null,null,null,"التعريف بسيدنا محمد صلى الله عليه وسلم من حيث نسبه ومولده ونشأته",null,null,null,"معرفة الاداب والأخلاق الاسلامية كآداب الاستئذان , والشجاعة, والتواضع","معرفة الاداب والأخلاق الاسلامية كالعدل , التكافل الاجتماعي","معرفة الاداب والأخلاق الاسلامية كالوفاء,الاخلاص,...","معرفة الاداب والأخلاق الاسلامية كالعزة , التقوى , آداب طلب العلم , ....","معرفة الاداب والأخلاق الاسلامية كالقناعة,الحلم, ....","معرفة الاداب والأخلاق الاسلامية مثل (العفة,التضحية, ....)"]
[null,"يتقبل الاخرين ويحترم ثقافاتهم",null,null,null,null,{"$f":"IF($AR11=\"جيد جدا\",\"X\",IF($AR11=\"ممتاز\",\"X\",))","v":0},{"$f":"IF($AR11=\"جيد\",\"X\",)","v":0},{"$f":"IF($AR11=\"مقبول\",\"X\",)","v":0},{"$f":"IF(Value!$F$33=\"1\",\"\",IF($AR11=\"جيد جدا\",\"X\",IF($AR11=\"ممتاز\",\"X\",)))","v":0},{"$f":"IF(Value!$F$33=\"1\",\"\",IF($AR11=\"جيد\",\"X\",))","v":0},{"$f":"IF(Value!$F$33=\"1\",\"\",IF($AR11=\"مقبول\",\"X\",))","v":0},null,"الإســــــــم",null,null,null,"الإســــــــم",{"$f":"Value!$F$5","v":"ذكور البقعة الاعدادية الرابعة"},null,null,null,{"$f":"Table!$K$6","v":"اللغة العربية"},null,null,null,null,{"$f":"IF(AA11=\"\",\"\",IF(((Z11/Z13)*100)>=95,\"X\",\"\"))","v":""},{"$f":"IF(AA11=\"\",\"\",IF((Z11/Z13)*100>=95,\"\",IF((Z11/Z13)*100>=80,\"X\",)))","v":""},{"$f":"IF(AA11=\"\",\"\",IF((Z11/Z13)*100>=80,\"\",IF((Z11/Z13)*100>=65,\"X\",)))","v":""},{"$f":"IF(Z11=0,\"\",IF(AA11=\"\",\"\",IF(Z11=\"\",\"\",IF((Z11/Z13)*100<65,\"X\",\"\"))))","v":""},null,null,null,null,null,null,{"$f":"IF(AK11=\"\",\"\",IF((AJ5/AJ7)*100>=90,\"X\",\"\"))","v":""},{"$f":"IF(AK11=\"\",\"\",IF((AJ5/AJ7)*100>=90,\"\",IF((AJ5/AJ7)*100>=75,\"X\",)))","v":""},{"$f":"IF(AK11=\"\",\"\",IF((AJ5/AJ7)*100>=75,\"\",IF((AJ5/AJ7)*100>=60,\"X\",)))","v":""},{"$f":"IF(AJ5=0,\"\",IF(AK11=\"\",\"\",IF(AJ5=\"\",\"\",IF((AJ5/AJ7)*100<60,\"X\",\"\"))))","v":""},null,null,null,null,null,null,null,null,null,null,null,null,null,null,null,null,null,null,null,null,null,null,null,null,null,null,null,null,null,null,null,null,null,null,null,null,null,null,null,"عربي","قراءة الكلمات والجمل المكونة من فعل وفاعل أو مبتدأ وخبر والمقررة في الكتاب وفهم معانيها","قراءة نص مضبوط عدد كلماته حوالي (50) كلمة مراعيا علامات الوقف والانفعال, وفهم معاني مفرداته وتراكيبه","قراءة نص عدد كلماته حوالي 100 كلمة قراءة سليمة مراعيا علامات الترقيم وفهم معاني مفرداته وتراكيبه و دلالالتها","قراءة النصوص التي يقل عدد كلماتها عن (150) كلمة وفهم معاني مفرداتها وتراكيبها و دلالالتها ","قراءة النصوص التي عدد كلماتها (200) كلمة وفهم معاني مفرداتها وتراكيبها وتوضيح دلالالتها وافكارها الرئيسة","التعبير عن حاجات وآرائه تعبيرا شفويا بحدود 4 جمل وكتابيا بحدود (4-5)فقرات","قراءة النصوص التي عدد كلماتها (300) كلمة مراعيا علامات الترقيم وفهم معاني مفرداتها وتراكيبها وتوضيح دلالالتها وافكارها","قراءة النصوص الأدبية  التي عدد كلماتها (400) وفهم معاني مفرداتها وتراكيبها وضبط بعض كلماتها وتحليلها","قراءة النصوص الأدبية  التي عدد كلماتها (450) كلمة قراءة نافذة وفهم معاني مفرداتها وتراكيبها وتحليلها وضبط بعض كلماتها","قراءة النصوص اللغوية (قرآن,شعر,نثر) التي تزيد عدد كلماتها عن (500) كلمة قراءة ناقدة وفهم معاني مفرداتها وتحليلها والافادة من المعاجم المتخصصة"]
[null,null,null,null,null,null,null,null,null,null,null,null,null,"مكان وتاريخ الولاده",null,null,null,"الرقم الوطني للمدرسة",{"$f":"Value!$F$36","v":160184},null,null,null,null,null,null,null,null,{"$f":"IF(AA12=\"\",\"\",IF((Z11/Z13)*100>=85,\"X\",\"\"))","v":""},{"$f":"IF(AA12=\"\",\"\",IF((Z11/Z13)*100>=85,\"\",IF((Z11/Z13)*100>=70,\"X\",)))","v":""},{"$f":"IF(AA12=\"\",\"\",IF((Z11/Z13)*100>=70,\"\",IF((Z11/Z13)*100>=55,\"X\",)))","v":""},{"$f":"IF(Z11=0,\"\",IF(AA12=\"\",\"\",IF(Z11=\"\",\"\",IF((Z11/Z13)*100<55,\"X\",\"\"))))","v":""},null,null,null,null,null,null,{"$f":"IF(AK12=\"\",\"\",IF((AJ5/AJ7)*100>=80,\"X\",\"\"))","v":""},{"$f":"IF(AK12=\"\",\"\",IF((AJ5/AJ7)*100>=80,\"\",IF((AJ5/AJ7)*100>=70,\"X\",)))","v":""},{"$f":"IF(AK12=\"\",\"\",IF((AJ5/AJ7)*100>=70,\"\",IF((AJ5/AJ7)*100>=60,\"X\",)))","v":""},{"$f":"IF(AJ5=0,\"\",IF(AK12=\"\",\"\",IF(AJ5=\"\",\"\",IF((AJ5/AJ7)*100<60,\"X\",\"\"))))","v":""},null,null,null,null,null,null,null,null,null,null,null,null,null,null,null,null,null,null,null,null,null,null,null,null,null,null,null,null,null,null,null,null,null,null,null,null,null,null,null,null,"تجريد الحروف الهجائية بأشكالها","التمييز شفويا عن حاجاته ومشاعره بحدود جملة او جملتين, ووفق مستوى صفه","كتابة القضايا الاملائية المقررة, ال القمرية والشمسية والهمزة المتوسطة والتاء المبسوطة والتاء المربوطة","صياغة جمل و التعبير عن اراء تتناسب وخبرات طالب في الصف الرابع","كتابة القضايا الاملائية المقررة(التاء المربوطة والمبسوطة,الهمزة في بداية الكلمة,وكلمة ابن,والف تنوين النصب ....) كتابة صحيحة","قراءة النصوص التي عدد كلماتها (250) كلمة مراعيا علامات الترقيم وفهم معاني مفرداتها وتراكيبها ودلالالتها وافكارها","التعبير عن حاجاته ومشاعره وارائه شفويا بلغة سليمة بحدود اربع جمل, وكتابيا بحدود ست فقرات","كتابة القضايا الاملائية المقررة (همزة الوصل وهمزة القطع والكلمات التي تتبعها ألف التفريق وكتابة الألف اللينة في الاسماء والافعال وكلمة ابن) كتابة صحيحة","كتابة القضايا الاملائية المقررة في الصف التاسع(الهمزة المتوسطةعلى واو وعلى الف وعلى نبرة وكتابة الهمزة المتطرفة) كتابة صحيحة","تعرف المفاهيم والمصطلحات النحوية والصرفية المقررة (الميزان الصرفي,لابنية الافعال,المصادر,اسم الفاعل,اسم المفعول,صيغة المبالغة,الصفة المشبهة,اسم الزمان,المفاعيل,الحال,...) وتمييزها"]
[null,"يراعي قواعد الامن والسلامة",null,null,null,null,{"$f":"IF($AR11=\"ممتاز\",\"X\",)","v":0},{"$f":"IF($AR11=\"جيد جدا\",\"X\",)","v":0},{"$f":"IF($AR11=\"مقبول\",\"X\",IF($AR11=\"جيد\",\"X\",))","v":0},{"$f":"IF(Value!$F$33=\"1\",\"\",IF($AR11=\"ممتاز\",\"X\",))","v":0},{"$f":"IF(Value!$F$33=\"1\",\"\",IF($AR11=\"جيد جدا\",\"X\",))","v":0},{"$f":"IF(Value!$F$33=\"1\",\"\",IF($AR11=\"مقبول\",\"X\",IF($AR11=\"جيد\",\"X\",)))","v":0},null,"الصف والشعبـــة",{"$f":"Value!$F$6 & \" (  \" & Value!$F$7 &\"  )  \"","v":"الثامن (  ج  )  "},null,null,"رقـــــم الهاتف",{"$f":"Value!$F$37","v":4725453},null,null,null,null,{"$f":"Table!$K$10","v":300},{"$f":"Table!$L$10","v":300},{"$f":"Table!$M$10","v":300},null,{"$f":"IF(AA13=\"\",\"\",IF((Z11/Z13)*100>=90,\"X\",\"\"))","v":""},{"$f":"IF(AA13=\"\",\"\",IF((Z11/Z13)*100>=90,\"\",IF((Z11/Z13)*100>=75,\"X\",)))","v":""},{"$f":"IF(AA13=\"\",\"\",IF((Z11/Z13)*100>=75,\"\",IF((Z11/Z13)*100>=60,\"X\",)))","v":""},{"$f":"IF(Z11=0,\"\",IF(AA13=\"\",\"\",IF(Z11=\"\",\"\",IF((Z11/Z13)*100<60,\"X\",\"\"))))","v":""},null,{"$f":"Table!$Z$6","v":"التربية الفنية"},null,null,null,null,{"$f":"IF(AK13=\"\",\"\",IF(((AJ13/AJ14)*100)>=95,\"X\",\"\"))","v":""},{"$f":"IF(AK13=\"\",\"\",IF((AJ13/AJ14)*100>=95,\"\",IF((AJ13/AJ14)*100>=80,\"X\",)))","v":""},{"$f":"IF(AK13=\"\",\"\",IF((AJ13/AJ14)*100>=80,\"\",IF((AJ13/AJ14)*100>=65,\"X\",)))","v":""},{"$f":"IF(AJ13=0,\"\",IF(AK13=\"\",\"\",IF(AJ13=\"\",\"\",IF((AJ13/AJ14)*100<65,\"X\",\"\"))))","v":""},null,null,null,null,null,null,null,null,null,null,null,null,null,null,null,null,null,null,null,null,null,null,null,null,null,null,null,null,null,null,null,null,null,null,null,null,null,null,null,null,"كتابة حروف ومقاطع من دروس القراءة بحيث يترك مسافات بين الكلمات والحروف ويكتب في خطوط مستقيمة","كتابة جمل وفقرات من دروس القراءة المقررة (إملاء منقولا أو منظورا )","محاكاة الاساليب والانماط اللغوية المقررة في كتابه","تعرف الانماط اللغوية المقررة في الصف الرابع (اسماء الاشارة,الافعال,الجملة ومحاكتها )","التعبير عن مشاعره ومشاهداته وارائه تعبيرا شفويا بحدود 4 جمل","قراءة المفاهيم والمصطلحات النحوية والصرفية (المثنى,جمع المذكر السالم,جمع المؤنث السالم,والمجرد والمزيد) وتمييزها","قراءة المفاهيم والمصطلحات النحوية والصرفية المقررة (المثنى,جمع المذكر السالم,جمع المؤنث السالم,والمجرد والمزيد) وتمييزها","قراءة المفاهيم والمصطلحات النحوية والصرفية والبلاغية الواردة في الصف الثامن (الاسم,الفعل,الحرف,الضمير,المعرب المبني) وتمييزها","تعرف المفاهيم والمصطلحات النحوية والصرفية (المضارع,المعتل الآخر,الاسماء الخمسة,المثنى,جمع المذكر السالم,...) وتمييزها","تطبيق القواعد النحوية والصرفية المقررة في (المصادر,المشتقات,الميزان الصرفي,المفاعيل,الحال ... ) وتوظيفها في ما يقرأ ويكتب"]
[null,null,null,null,null,null,null,null,null,null,null,null,null,"الجنسيـــــــة",null,null,null,"العنـــــــوان",{"$f":"Value!$F$4","v":"البقعة"},null,null,null,null,"المعدل بالحروف",{"$f":"SpellNumberA(IF(Value!$F$33=\"1\",X11,Z11),0,\"علامة\",\"علامتان\",\"علامات\")","v":""},null,null,{"$f":"IF(AA14=\"\",\"\",IF((Z11/Z13)*100>=80,\"X\",\"\"))","v":""},{"$f":"IF(AA14=\"\",\"\",IF((Z11/Z13)*100>=80,\"\",IF((Z11/Z13)*100>=70,\"X\",)))","v":""},{"$f":"IF(AA14=\"\",\"\",IF((Z11/Z13)*100>=70,\"\",IF((Z11/Z13)*100>=60,\"X\",)))","v":""},{"$f":"IF(Z11=0,\"\",IF(AA14=\"\",\"\",IF(Z11=\"\",\"\",IF((Z11/Z13)*100<60,\"X\",\"\"))))","v":""},null,null,{"$f":"Table!$Z$10","v":100},{"$f":"Table!$AA$10","v":100},{"$f":"Table!$AB$10","v":100},null,{"$f":"IF(AK14=\"\",\"\",IF((AJ13/AJ14)*100>=85,\"X\",\"\"))","v":""},{"$f":"IF(AK14=\"\",\"\",IF((AJ13/AJ14)*100>=85,\"\",IF((AJ13/AJ14)*100>=70,\"X\",)))","v":""},{"$f":"IF(AK14=\"\",\"\",IF((AJ13/AJ14)*100>=70,\"\",IF((AJ13/AJ14)*100>=55,\"X\",)))","v":""},{"$f":"IF(AJ13=0,\"\",IF(AK14=\"\",\"\",IF(AJ13=\"\",\"\",IF((AJ13/AJ14)*100<55,\"X\",\"\"))))","v":""},null,null,null,null,null,null,null,null,null,null,null,null,null,null,null,null,null,null,null,null,null,null,null,null,null,null,null,null,null,null,null,null,null,null,null,null,null,null,null,null,"تسمية الاشياء التي يراها في مدرسته وبيته بمسمياتها","إعادة رواية قصة استمع اليها تتكون من فقرة الى فقرتين بلغته الخاصة","التعبير عن مشاعره ومشاهداته شفويا وكتابيا بحدود ثلاث جمل","كتابة القضايا الاملائية المقررة مثل : علامة الاستفهام والنقطتين الرأسيتين والهمزة بأشكالها والتاء المربوطة والهاء في اخر الكلمة والكلمات التي تلفظ ألفا ولا تكتب","كتابة موضوع يتناسب وخبرات الطالب في الصف الخامس بحدود (3-5) فقرات بلغة سليمة","تطبيق القواعد النحوية والصرفية المقررة في ( المصادر,المبني للمجهول,المبني للمعلوم,اللازم والمتعدي, ... ) وتوظيفها في ما يقرأ ويكتب","تطبيق القواعد النحوية والصرفية المقررة في ( المصادر,المبني للمجهول,اللازم والمتعدي,المثنى ... ) وتوظيفها في ما يقرأ ويكتب","تطبيق القواعد اللغوية المقررة في (الاسم والفعل والفعل المعرب ... ) وتوظيفها في ما يقرأ ويكتب","تطبيق القواعد النحوية والصرفية المقررة في (الفعل المضارع,المعتل الاخر,جمع المذكر السالم,الممنوع من الصرف,... ) وتوظيفها في ما يقرأ ويكتب","التعبير عن رأيه ومشاهداته شفويا بحدود (8) جمل وكتابتها بحدود (8) فقرات"]
[null,"يظهر المبادرة ويتعاون مع الاخرين",null,null,null,null,{"$f":"IF($AR11=\"ممتاز\",\"X\",)","v":0},{"$f":"IF($AR11=\"جيد جدا\",\"X\",IF($AR11=\"جيد\",\"X\",))","v":0},{"$f":"IF($AR11=\"مقبول\",\"X\",)","v":0},{"$f":"IF(Value!$F$33=\"1\",\"\",IF($AR11=\"ممتاز\",\"X\",))","v":0},{"$f":"IF(Value!$F$33=\"1\",\"\",IF($AR11=\"جيد جدا\",\"X\",IF($AR11=\"جيد\",\"X\",)))","v":0},{"$f":"IF(Value!$F$33=\"1\",\"\",IF($AR11=\"مقبول\",\"X\",))","v":0},null,"الرقــــم الوطني",null,null,null,"المنطقــة التعليمية ",{"$f":"Value!$F$3","v":"شمال عمان"},null,null,null,null,null,null,null,null,{"$f":"IF(AA15=\"\",\"\",IF((Z11/Z13)*100>=90,\"X\",\"\"))","v":""},{"$f":"IF(AA15=\"\",\"\",IF((Z11/Z13)*100>=90,\"\",IF((Z11/Z13)*100>=70,\"X\",)))","v":""},{"$f":"IF(AA15=\"\",\"\",IF((Z11/Z13)*100>=70,\"\",IF((Z11/Z13)*100>=55,\"X\",)))","v":""},{"$f":"IF(Z11=0,\"\",IF(AA15=\"\",\"\",IF(Z11=\"\",\"\",IF((Z11/Z13)*100<55,\"X\",\"\"))))","v":""},null,null,"المعدل بالحروف",{"$f":"SpellNumberA(IF(Value!$F$33=\"1\",AH13,AJ13),0,\"علامة\",\"علامتان\",\"علامات\")","v":""},null,null,{"$f":"IF(AK15=\"\",\"\",IF((AJ13/AJ14)*100>=90,\"X\",\"\"))","v":""},{"$f":"IF(AK15=\"\",\"\",IF((AJ13/AJ14)*100>=90,\"\",IF((AJ13/AJ14)*100>=75,\"X\",)))","v":""},{"$f":"IF(AK15=\"\",\"\",IF((AJ13/AJ14)*100>=75,\"\",IF((AJ13/AJ14)*100>=60,\"X\",)))","v":""},{"$f":"IF(AJ13=0,\"\",IF(AK15=\"\",\"\",IF(AJ13=\"\",\"\",IF((AJ13/AJ14)*100<60,\"X\",\"\"))))","v":""},null,null,null,null,null,null,null,null,null,null,null,null,null,null,null,null,null,null,null,null,null,null,null,null,null,null,null,null,null,null,null,null,null,null,null,null,null,null,null,null,null,null,"اعادة رواية قصة قصيرة استمع اليها وبحدود ثلاث فقرات بلغة سليمة",null,"قراءة المفاهيم والمصطلحات النحوية المقررة (اقسام الفعل,الفاعل,المفعول به,المبتدأ,الخبر,كان واخواتها,...)وتمييزها","كتابة القضايا الاملائية المقررة (همزة القطع في مواضيعها المتنوعة,الف التفريق,...) كتابة صحيحة","كتابة عبارة او نص مراعيا قواعد كل من خط النسخ وخط الرقعة","التعبير عن المشاعر والاحاسيس والاراء شفويا وكتابيا بلغة سليمة وبحدود ست جمل وكتابيا بحدود سبع فقرات","التعبير عن رأيه ومشاهداته شفويا وكتابيا بلغة سليمة وبحدود سبع جمل وكتابيا بحدود ثماني فقرات"]
[null,null,null,null,null,null,null,null,null,null,null,null,null,"العنـــــــوان",null,null,null,"رمــز المديريــة",{"$f":"Value!$F$39","v":45},null,null,null,null,null,null,null,null,{"$f":"IF(AA16=\"\",\"\",IF((Z11/Z13)*100>=95,\"X\",\"\"))","v":""},{"$f":"IF(AA16=\"\",\"\",IF((Z11/Z13)*100>=95,\"\",IF((Z11/Z13)*100>=75,\"X\",)))","v":""},{"$f":"IF(AA16=\"\",\"\",IF((Z11/Z13)*100>=75,\"\",IF((Z11/Z13)*100>=65,\"X\",)))","v":""},{"$f":"IF(Z11=0,\"\",IF(AA16=\"\",\"\",IF(Z11=\"\",\"\",IF((Z11/Z13)*100<65,\"X\",\"\"))))","v":""},null,{"$f":"Table!$AC$6","v":"التربية الرياضية"},null,null,null,null,{"$f":"IF(AK16=\"\",\"\",IF(((AJ16/AJ18)*100)>=95,\"X\",\"\"))","v":""},{"$f":"IF(AK16=\"\",\"\",IF((AJ16/AJ18)*100>=95,\"\",IF((AJ16/AJ18)*100>=80,\"X\",)))","v":""},{"$f":"IF(AK16=\"\",\"\",IF((AJ16/AJ18)*100>=80,\"\",IF((AJ16/AJ18)*100>=65,\"X\",)))","v":""},{"$f":"IF(AJ16=0,\"\",IF(AK16=\"\",\"\",IF(AJ16=\"\",\"\",IF((AJ16/AJ18)*100<65,\"X\",\"\"))))","v":""},null,null,null,null,null,null,null,null,null,null,null,null,null,null,null,null,null,null,null,null,null,null,null,null,null,null,null,null,null,null,null,null,null,null,null,null,null,null,null,null,null,null,null,null,null,"كتابة عبارة أو نص مراعيا قواعد كل من خط النسخ وخط الرقعة"]
[null,"يحرص على خدمة المجتمع المحلي",null,null,null,null,{"$f":"IF($AR11=\"جيد جدا\",\"X\",IF($AR11=\"ممتاز\",\"X\",))","v":0},{"$f":"IF($AR11=\"جيد\",\"X\",)","v":0},{"$f":"IF($AR11=\"مقبول\",\"X\",)","v":0},{"$f":"IF(Value!$F$33=\"1\",\"\",IF($AR11=\"جيد جدا\",\"X\",IF($AR11=\"ممتاز\",\"X\",)))","v":0},{"$f":"IF(Value!$F$33=\"1\",\"\",IF($AR11=\"جيد\",\"X\",))","v":0},{"$f":"IF(Value!$F$33=\"1\",\"\",IF($AR11=\"مقبول\",\"X\",))","v":0},null,"البريد الالكتروني",null,null,null,"الموقع الالكتروني",{"$f":"Value!$F$40","v":"unrwa54786@unrwa.org"},null,null,null,{"$f":"Table!$N$6","v":"اللغة الانجليزية"},null,null,null,null,{"$f":"IF(AA17=\"\",\"\",IF(((Z17/Z19)*100)>=95,\"X\",\"\"))","v":""},{"$f":"IF(AA17=\"\",\"\",IF((Z17/Z19)*100>=95,\"\",IF((Z17/Z19)*100>=80,\"X\",)))","v":""},{"$f":"IF(AA17=\"\",\"\",IF((Z17/Z19)*100>=80,\"\",IF((Z17/Z19)*100>=65,\"X\",)))","v":""},{"$f":"IF(Z17=0,\"\",IF(AA17=\"\",\"\",IF(Z17=\"\",\"\",IF((Z17/Z19)*100<65,\"X\",\"\"))))","v":""},null,null,null,null,null,null,{"$f":"IF(AK17=\"\",\"\",IF((AJ16/AJ18)*100>=85,\"X\",\"\"))","v":""},{"$f":"IF(AK17=\"\",\"\",IF((AJ16/AJ18)*100>=85,\"\",IF((AJ16/AJ18)*100>=70,\"X\",)))","v":""},{"$f":"IF(AK17=\"\",\"\",IF((AJ16/AJ18)*100>=70,\"\",IF((AJ16/AJ18)*100>=55,\"X\",)))","v":""},{"$f":"IF(AJ16=0,\"\",IF(AK17=\"\",\"\",IF(AJ16=\"\",\"\",IF((AJ16/AJ18)*100<55,\"X\",\"\"))))","v":""},null,null,null,null,null,null,null,null,null,null,null,null,null,null,null,null,null,null,null,null,null,null,null,null,null,null,null,null,null,null,null,null,null,null,null,null,null,null,null,null,"تمييز الحروف و الكلمات الواردة في الكتاب المقرر - استماعا","تمييز الحروف و الكلمات وأشباه الجمل  الواردة في الكتاب المقرر - استماعا","تمييز المقاطع (احرف علة) والكلمات وأشباه الجمل - الواردة في الكتاب المقرر- استماعا","تمييز المقاطع (احرف صحيحة ) استماعا وقراءة ونطقا ","تمييز المقاطع ( ذات الالفاظ المختلفة ) استماعا وقراءة ونطقا سليما","الاستماع لمادة مسجلة تتناسب مع مستوى الصف لتنفيذ مهمة مثل ملء فراغات في جمل","تطوير استراتيجيات : استماع لفهم المسموع","استخدام استراتيجيات استماع لفهم المسموع","استخدام استراتيجيات استماع لفهم المسموع","استخدام استراتيجيات استماع لفهم المسموع"]
[null,null,null,null,null,null,null,null,null,null,null,null,null,"الديانــــــــة","الاسلام",null,null,"السلطة التعليمية المشرفة","وكالة الغوث الدولية",null,null,null,null,null,null,null,null,{"$f":"IF(AA18=\"\",\"\",IF((Z17/Z19)*100>=85,\"X\",\"\"))","v":""},{"$f":"IF(AA18=\"\",\"\",IF((Z17/Z19)*100>=85,\"\",IF((Z17/Z19)*100>=70,\"X\",)))","v":""},{"$f":"IF(AA18=\"\",\"\",IF((Z17/Z19)*100>=70,\"\",IF((Z17/Z19)*100>=55,\"X\",)))","v":""},{"$f":"IF(Z17=0,\"\",IF(AA18=\"\",\"\",IF(Z17=\"\",\"\",IF((Z17/Z19)*100<55,\"X\",\"\"))))","v":""},null,null,{"$f":"Table!$AC$10","v":100},{"$f":"Table!$AD$10","v":100},{"$f":"Table!$AE$10","v":100},null,{"$f":"IF(AK18=\"\",\"\",IF((AJ16/AJ18)*100>=90,\"X\",\"\"))","v":""},{"$f":"IF(AK18=\"\",\"\",IF((AJ16/AJ18)*100>=90,\"\",IF((AJ16/AJ18)*100>=75,\"X\",)))","v":""},{"$f":"IF(AK18=\"\",\"\",IF((AJ16/AJ18)*100>=75,\"\",IF((AJ16/AJ18)*100>=60,\"X\",)))","v":""},{"$f":"IF(AJ16=0,\"\",IF(AK18=\"\",\"\",IF(AJ16=\"\",\"\",IF((AJ16/AJ18)*100<60,\"X\",\"\"))))","v":""},null,null,null,null,null,null,null,null,null,null,null,null,null,null,null,null,null,null,null,null,null,null,null,null,null,null,null,null,null,null,null,null,null,null,null,null,null,null,null,"E","تمييز الحروف و الكلمات الواردة في الكتاب المقرر -  قراءة","تمييز الحروف و الكلمات وأشباه الجمل الواردة في الكتاب المقرر -  قراءة","تمييز المقاطع (احرف علة) والكلمات وأشباه الجمل - الواردة في الكتاب المقرر- قراءة","الاستماع لمادة مسجلة تتناسب مع مستوى الصف لتنفيذ مهمة مثل ترقيم صور","الاستماع لمادة مسجلة تتناسب مع مستوى الصف لتنفيذ مهمة مثل اعادة ترتيب جمل","المشاركة في العروض التقديمية والمحادثة الصفية","تطوير استراتيجيات قراءة لفهم المقروء","استخدام استراتيجيات قراءة لفهم المقروء","استخدام استراتيجيات قراءة لفهم المقروء","استخدام استراتيجيات قراءة لفهم المقروء"]
[null,"يشارك في اللجان والانشطة المدرسية",null,null,null,null,{"$f":"IF($AR11=\"ممتاز\",\"X\",)","v":0},{"$f":"IF($AR11=\"جيد جدا\",\"X\",)","v":0},{"$f":"IF($AR11=\"مقبول\",\"X\",IF($AR11=\"جيد\",\"X\",))","v":0},{"$f":"IF(Value!$F$33=\"1\",\"\",IF($AR11=\"ممتاز\",\"X\",))","v":0},{"$f":"IF(Value!$F$33=\"1\",\"\",IF($AR11=\"جيد جدا\",\"X\",))","v":0},{"$f":"IF(Value!$F$33=\"1\",\"\",IF($AR11=\"مقبول\",\"X\",IF($AR11=\"جيد\",\"X\",)))","v":0},null,null,null,null," ",null,null,null,null,null,null,{"$f":"Table!$N$10","v":200},{"$f":"Table!$O$10","v":200},{"$f":"Table!$P$10","v":200},null,{"$f":"IF(AA19=\"\",\"\",IF((Z17/Z19)*100>=90,\"X\",\"\"))","v":""},{"$f":"IF(AA19=\"\",\"\",IF((Z17/Z19)*100>=90,\"\",IF((Z17/Z19)*100>=75,\"X\",)))","v":""},{"$f":"IF(AA19=\"\",\"\",IF((Z17/Z19)*100>=75,\"\",IF((Z17/Z19)*100>=60,\"X\",)))","v":""},{"$f":"IF(Z17=0,\"\",IF(AA19=\"\",\"\",IF(Z17=\"\",\"\",IF((Z17/Z19)*100<60,\"X\",\"\"))))","v":""},null,null,"المعدل بالحروف",{"$f":"SpellNumberA(IF(Value!$F$33=\"1\",AH16,AJ16),0,\"علامة\",\"علامتان\",\"علامات\")","v":""},null,null,{"$f":"IF(AK19=\"\",\"\",IF((AJ16/AJ18)*100>=80,\"X\",\"\"))","v":""},{"$f":"IF(AK19=\"\",\"\",IF((AJ16/AJ18)*100>=80,\"\",IF((AJ16/AJ18)*100>=70,\"X\",)))","v":""},{"$f":"IF(AK19=\"\",\"\",IF((AJ16/AJ18)*100>=70,\"\",IF((AJ16/AJ18)*100>=60,\"X\",)))","v":""},{"$f":"IF(AJ16=0,\"\",IF(AK19=\"\",\"\",IF(AJ16=\"\",\"\",IF((AJ16/AJ18)*100<60,\"X\",\"\"))))","v":""},null,null,null,null,null,null,null,null,null,null,null,null,null,null,null,null,null,null,null,null,null,null,null,null,null,null,null,null,null,null,null,null,null,null,null,null,null,null,null,null,"نطق الحروف والكلمات ( مقطع واحد ) نطقا سليما","نطق الحروف والكلمات ( من مقطعين  ) نطقا سليما","نطق المقاطع والكلمات ( من مقطعين ) نطقا سليما","المشاركة في العروض التقديمية والمحادثات الصفية","المشاركة في العروض التقديمية والمحادثة الصفية","قراءة نصوص اخبارية وأدبية مبسطة وفهمها - 70 كلمة","المشاركة في المحادثة الصفية والعروض التقديمية","المشاركة في المحادثة الصفية والعروض التقديمية","المشاركة في المحادثة الصفية والعروض التقديمية","المشاركة في المحادثة الصفية والعروض التقديمية"]
[null,null,null,null,null,null,null,null,null,null,null,null,null,"عدد أيام الدوام الرسمي",null,null,null,"عدد أيام الغياب",null,null,null,null,null,"المعدل بالحروف",{"$f":"SpellNumberA(IF(Value!$F$33=\"1\",X17,Z17),0,\"علامة\",\"علامتان\",\"علامات\")","v":""},null,null,{"$f":"IF(AA20=\"\",\"\",IF((Z17/Z19)*100>=80,\"X\",\"\"))","v":""},{"$f":"IF(AA20=\"\",\"\",IF((Z17/Z19)*100>=80,\"\",IF((Z17/Z19)*100>=70,\"X\",)))","v":""},{"$f":"IF(AA20=\"\",\"\",IF((Z17/Z19)*100>=70,\"\",IF((Z17/Z19)*100>=60,\"X\",)))","v":""},{"$f":"IF(Z17=0,\"\",IF(AA20=\"\",\"\",IF(Z17=\"\",\"\",IF((Z17/Z19)*100<60,\"X\",\"\"))))","v":""},null,null,null,null,null,null,{"$f":"IF(AK20=\"\",\"\",IF((AJ16/AJ18)*100>=90,\"X\",\"\"))","v":""},{"$f":"IF(AK20=\"\",\"\",IF((AJ16/AJ18)*100>=90,\"\",IF((AJ16/AJ18)*100>=70,\"X\",)))","v":""},{"$f":"IF(AK20=\"\",\"\",IF((AJ16/AJ18)*100>=70,\"\",IF((AJ16/AJ18)*100>=55,\"X\",)))","v":""},{"$f":"IF(AJ16=0,\"\",IF(AK20=\"\",\"\",IF(AJ16=\"\",\"\",IF((AJ16/AJ18)*100<55,\"X\",\"\"))))","v":""},null,null,null,null,null,null,null,null,null,null,null,null,null,null,null,null,null,null,null,null,null,null,null,null,null,null,null,null,null,null,null,null,null,null,null,null,null,null,null,null,"كتابة الحروف والكلمات الواردة في الكتاب المقرر واستخدامها في التعبير الكتابي","كتابة الحروف والارقام  والكلمات واشباه الجمل الواردة في الكتاب المقرر واستخدامها في التعبير الكتابي","كتابة الجمل - الواردة في الكتاب المقرر - واستخدامها في التعبير الكتابي","قراءة نصوص مبسطة - 50 كلمة - وفهمها","قراءة نصوص مبسطة - 60 كلمة - وفهمها","كتابة نص قصير - 40 كلمة - (مثل سجل سير التعلم,والقصة القصيرة الموجهة)مع مراعاة تطبيق احكام الغة","قراءة نصوص ادبية ومعلوماتية وفهمها - 80 كلمة ","قراءة نصوص ادبية ومعلوماتية وفهمها - 90 كلمة ","قراءة نصوص ادبية ومعلوماتية وفهمها - 100 كلمة ","قراءة نصوص ادبية ومعلوماتية وفهمها - 120 كلمة "]
[null,"يحرص على التعلم الذاتي والمستمر",null,null,null,null,{"$f":"IF(T25>=80,\"X\",\"\")","v":""},{"$f":"IF(T25>=80,\"\",IF(T25>=55,\"X\",))","v":0},{"$f":"IF(T25=\"\",\"\",IF(T25<55,\"X\",\"\"))","v":""},{"$f":"IF(T25>=90,\"X\",\"\")","v":""},{"$f":"IF(T25>=90,\"\",IF(T25>=65,\"X\",))","v":0},{"$f":"IF(T25=\"\",\"\",IF(T25<65,\"X\",\"\"))","v":""},null,"الفصل الاول",{"$f":"Value!$F$38","v":97},null,null,null,null,null,null,null,null,null,null,null,null,{"$f":"IF(AA21=\"\",\"\",IF((Z17/Z19)*100>=90,\"X\",\"\"))","v":""},{"$f":"IF(AA21=\"\",\"\",IF((Z17/Z19)*100>=90,\"\",IF((Z17/Z19)*100>=70,\"X\",)))","v":""},{"$f":"IF(AA21=\"\",\"\",IF((Z17/Z19)*100>=70,\"\",IF((Z17/Z19)*100>=55,\"X\",)))","v":""},{"$f":"IF(Z17=0,\"\",IF(AA21=\"\",\"\",IF(Z17=\"\",\"\",IF((Z17/Z19)*100<55,\"X\",\"\"))))","v":""},null,null,null,null,null,null,{"$f":"IF(AK21=\"\",\"\",IF((AJ16/AJ18)*100>=95,\"X\",\"\"))","v":""},{"$f":"IF(AK21=\"\",\"\",IF((AJ16/AJ18)*100>=95,\"\",IF((AJ16/AJ18)*100>=75,\"X\",)))","v":""},{"$f":"IF(AK21=\"\",\"\",IF((AJ16/AJ18)*100>=75,\"\",IF((AJ16/AJ18)*100>=65,\"X\",)))","v":""},{"$f":"IF(AJ16=0,\"\",IF(AK21=\"\",\"\",IF(AJ16=\"\",\"\",IF((AJ16/AJ18)*100<65,\"X\",\"\"))))","v":""},null,null,null,null,null,null,null,null,null,null,null,null,null,null,null,null,null,null,null,null,null,null,null,null,null,null,null,null,null,null,null,null,null,null,null,null,null,null,null,null,"المشاركة في الاناشيد ومبادلة عبارات التحية","المشاركة في الحوار والعروض التقديمية و الاناشيد ","المشاركة في العروض التقديمية والمحادثة الصفية","كتابة نص قصير - 20 كلمة - ( مثل الرسالة ) مع مراعاة تطبيق احكام اللغة","كتابة نص قصير - 30 كلمة - (مثل الحوار والوصف)مع مراعاة تطبيق احكام الغة",null,"استخدام مصادرالمعرفة وجمع المعلومات وتنظيمه للكتابة","استخدام مصادرالمعرفة وجمع المعلومات وتنظيمه للكتابة","استخدام مصادرالمعرفة وجمع المعلومات وتنظيمه للكتابة ","استخدام مصادرالمعرفة وجمع المعلومات وتنظيمه للكتابة"]
[null,null,null,null,null,null,null,null,null,null,null,null,null,"الفصل الثاني",{"$f":"IF(Value!$F$33=\"1\",\"\",Value!$F$11-Value!$F$38)","v":102},null,null,null,null,null,null,null,null,null,null,null,null,{"$f":"IF(AA22=\"\",\"\",IF((Z17/Z19)*100>=95,\"X\",\"\"))","v":""},{"$f":"IF(AA22=\"\",\"\",IF((Z17/Z19)*100>=95,\"\",IF((Z17/Z19)*100>=75,\"X\",)))","v":""},{"$f":"IF(AA22=\"\",\"\",IF((Z17/Z19)*100>=75,\"\",IF((Z17/Z19)*100>=65,\"X\",)))","v":""},{"$f":"IF(Z17=0,\"\",IF(AA22=\"\",\"\",IF(Z17=\"\",\"\",IF((Z17/Z19)*100<65,\"X\",\"\"))))","v":""},null,null,null,null,null,null,{"$f":"IF(AK22=\"\",\"\",IF((AJ16/AJ18)*100>=90,\"X\",\"\"))","v":""},{"$f":"IF(AK22=\"\",\"\",IF((AJ16/AJ18)*100>=90,\"\",IF((AJ16/AJ18)*100>=75,\"X\",)))","v":""},{"$f":"IF(AK22=\"\",\"\",IF((AJ16/AJ18)*100>=75,\"\",IF((AJ16/AJ18)*100>=60,\"X\",)))","v":""},{"$f":"IF(AJ16=0,\"\",IF(AK22=\"\",\"\",IF(AJ16=\"\",\"\",IF((AJ16/AJ18)*100<60,\"X\",\"\"))))","v":""},null,null,null,null,null,null,null,null,null,null,null,null,null,null,null,null,null,null,null,null,null,null,null,null,null,null,null,null,null,null,null,null,null,null,null,null,null,null,null,null,null,null,null,null,null,null,"ترجمة كلمات من العربية الى الانجليزية وبالعكس","ترجمة جمل بسيطة من العربية الى الانجليزية وبالعكس","ترجمة جمل مركبة من العربية الى الانجليزية وبالعكس","ترجمة جمل بسيطة من العربية الى الانجليزية وبالعكس"]
[null,null,null,null,null,null,null,null,null,null,null,null,null,null,null,null,null,null,null,null,null,null,null,null,null,null,null,{"$f":"IF(AA23=\"\",\"\",IF((Z17/Z19)*100>=90,\"X\",\"\"))","v":""},{"$f":"IF(AA23=\"\",\"\",IF((Z17/Z19)*100>=90,\"\",IF((Z17/Z19)*100>=75,\"X\",)))","v":""},{"$f":"IF(AA23=\"\",\"\",IF((Z17/Z19)*100>=75,\"\",IF((Z17/Z19)*100>=60,\"X\",)))","v":""},{"$f":"IF(Z17=0,\"\",IF(AA23=\"\",\"\",IF(Z17=\"\",\"\",IF((Z17/Z19)*100<60,\"X\",\"\"))))","v":""},null,null,null,null,null,null,{"$f":"IF(AK23=\"\",\"\",IF((AJ16/AJ18)*100>=80,\"X\",\"\"))","v":""},{"$f":"IF(AK23=\"\",\"\",IF((AJ16/AJ18)*100>=80,\"\",IF((AJ16/AJ18)*100>=70,\"X\",)))","v":""},{"$f":"IF(AK23=\"\",\"\",IF((AJ16/AJ18)*100>=70,\"\",IF((AJ16/AJ18)*100>=60,\"X\",)))","v":""},{"$f":"IF(AJ16=0,\"\",IF(AK23=\"\",\"\",IF(AJ16=\"\",\"\",IF((AJ16/AJ18)*100<60,\"X\",\"\"))))","v":""},null,null,null,null,null,null,null,null,null,null,null,null,null,null,null,null,null,null,null,null,null,null,null,null,null,null,null,null,null,null,null,null,null,null,null,null,null,null,null,null,null,null,null,null,null,null,"كتابة نص من 50 كلمة مثل التقرير او الرسالة مع مراعاة احكام اللغة","كتابة نص من 60 كلمة مثل التقرير او البحث أو الرسالة مع مراعاة احكام اللغة","كتابة نص من 70 كلمة مثل التقرير او البحث او الرسالة مع مراعاة احكام اللغة","كتابة نص من 80 كلمة مثل التقرير او البحث او الرسالة مع مراعاة احكام اللغة"]
[null,"        ملحوظات معلم الصف :",null,null,null,null,null,null,null,null,null,null,null,"الـنـتـيـجـة",null,null,null,null,null,null,null,null,{"$f":"Table!$Q$6","v":"الرياضيات"},null,null,null,null,{"$f":"IF(AA24=\"\",\"\",IF(((Z24/Z26)*100)>=95,\"X\",\"\"))","v":""},{"$f":"IF(AA24=\"\",\"\",IF((Z24/Z26)*100>=95,\"\",IF((Z24/Z26)*100>=80,\"X\",)))","v":""},{"$f":"IF(AA24=\"\",\"\",IF((Z24/Z26)*100>=80,\"\",IF((Z24/Z26)*100>=65,\"X\",)))","v":""},{"$f":"IF(Z24=0,\"\",IF(AA24=\"\",\"\",IF(Z24=\"\",\"\",IF((Z24/Z26)*100<65,\"X\",\"\"))))","v":""},null,null,null,null,null,null,{"$f":"IF(AK24=\"\",\"\",IF((AJ16/AJ18)*100>=90,\"X\",\"\"))","v":""},{"$f":"IF(AK24=\"\",\"\",IF((AJ16/AJ18)*100>=90,\"\",IF((AJ16/AJ18)*100>=70,\"X\",)))","v":""},{"$f":"IF(AK24=\"\",\"\",IF((AJ16/AJ18)*100>=70,\"\",IF((AJ16/AJ18)*100>=55,\"X\",)))","v":""},{"$f":"IF(AJ16=0,\"\",IF(AK24=\"\",\"\",IF(AJ16=\"\",\"\",IF((AJ16/AJ18)*100<55,\"X\",\"\"))))","v":""},null,null,null,null,null,null,null,null,null,null,null,null,null,null,null,null,null,null,null,null,null,null,null,null,null,null,null,null,null,null,null,null,null,null,null,null,null,null,null,null,"قراءة الاعداد ضمن ( 99 ) وكتابتها","قراءة الاعداد ضمن ( 9999 ) وكتابتها","قراءة الاعداد ضمن 6 منازل وكتابتها","قراءة الاعداد ضمن 9 منازل وكتابتها","ايجاد ناتج جمع وطرح كسريين احدهما من مضاعفات الاخر","ايجاد مربع ومكعب الاعداد الصحيحة والجذر التربيعي لمربع كامل والجذر التكعيبي لمكعب كامل","تحليل الاعداد الصحيحة الى العوامل الاولية وكتابتها على شكل اسس ","اجراء العمليات الحسابية على الاسس للآعداد الصحيحة","تحليل المقادير الجبرية من الدرجة الثانية والثالثة(فرق ومجموع مكعبين)","قراءة الرسوم البيانية والاشكال والجداول الاحصائية"]
[null,null,null,null,null,null,null,null,null,null,null,null,null,null,null,null,null,"المعدل المئوي بالأرقام  :",null,null,null,null,null,null,null,null,null,{"$f":"IF(AA25=\"\",\"\",IF((Z24/Z26)*100>=85,\"X\",\"\"))","v":""},{"$f":"IF(AA25=\"\",\"\",IF((Z24/Z26)*100>=85,\"\",IF((Z24/Z26)*100>=70,\"X\",)))","v":""},{"$f":"IF(AA25=\"\",\"\",IF((Z24/Z26)*100>=70,\"\",IF((Z24/Z26)*100>=55,\"X\",)))","v":""},{"$f":"IF(Z24=0,\"\",IF(AA25=\"\",\"\",IF(Z24=\"\",\"\",IF((Z24/Z26)*100<55,\"X\",\"\"))))","v":""},null,{"$f":"Table!$AF$6","v":"الموسيقا والاناشيد"},null,null,null,null,{"$f":"IF(AK25=\"\",\"\",IF(((AJ25/AJ27)*100)>=95,\"X\",\"\"))","v":""},{"$f":"IF(AK25=\"\",\"\",IF((AJ25/AJ27)*100>=95,\"\",IF((AJ25/AJ27)*100>=80,\"X\",)))","v":""},{"$f":"IF(AK25=\"\",\"\",IF((AJ25/AJ27)*100>=80,\"\",IF((AJ25/AJ27)*100>=65,\"X\",)))","v":""},{"$f":"IF(AJ25=0,\"\",IF(AK25=\"\",\"\",IF(AJ25=\"\",\"\",IF((AJ25/AJ27)*100<65,\"X\",\"\"))))","v":""},null,null,null,null,null,null,null,null,null,null,null,null,null,null,null,null,null,null,null,null,null,null,null,null,null,null,null,null,null,null,null,null,null,null,null,null,null,null,null,"رياضيات","ايجاد ناتج جمع عددين ضمن ( 99 ) بحمل وبدون حمل","ايجاد ناتج جمع عددين ضمن 4 منازل","ايجاد القيمة المنزلية لرقم معطى ضمن عدد ( كتابة الاعداد بالطريقة التحليلية )","قراءة الكسور العادية والعشرية وكتابتها","تعرف مفهوم العدد السالب","تمييز الكسر العادي والعشري والتحويل بينهما","معرفة مفهوم المقدار الجبري والمعادلة الخطية بمتغير واحد وحلها","تمثيل المتباينات من الدرجة الاولى وايجاد مجموعة حلها ","اجراء العمليات على المقادير الكسرية","اجراء العمليات الحسابية والعمليات على المصفوفات"]
[null,null,null,null,null,null,null,null,null,null,null,null,null,null,null,null,null,"بالحروف :",{"$f":"IF(T25<>\"-\",SpellNumberA(T25,0,\"علامة\",\"علامتان\",\"علامات\"),\"\")","v":""},null,null,null,null,{"$f":"Table!$Q$10","v":200},{"$f":"Table!$R$10","v":200},{"$f":"Table!$S$10","v":200},null,{"$f":"IF(AA26=\"\",\"\",IF((Z24/Z26)*100>=90,\"X\",\"\"))","v":""},{"$f":"IF(AA26=\"\",\"\",IF((Z24/Z26)*100>=90,\"\",IF((Z24/Z26)*100>=75,\"X\",)))","v":""},{"$f":"IF(AA26=\"\",\"\",IF((Z24/Z26)*100>=75,\"\",IF((Z24/Z26)*100>=60,\"X\",)))","v":""},{"$f":"IF(Z24=0,\"\",IF(AA26=\"\",\"\",IF(Z24=\"\",\"\",IF((Z24/Z26)*100<60,\"X\",\"\"))))","v":""},null,null,null,null,null,null,{"$f":"IF(AK26=\"\",\"\",IF((AJ25/AJ27)*100>=85,\"X\",\"\"))","v":""},{"$f":"IF(AK26=\"\",\"\",IF((AJ25/AJ27)*100>=85,\"\",IF((AJ25/AJ27)*100>=70,\"X\",)))","v":""},{"$f":"IF(AK26=\"\",\"\",IF((AJ25/AJ27)*100>=70,\"\",IF((AJ25/AJ27)*100>=55,\"X\",)))","v":""},{"$f":"IF(AJ25=0,\"\",IF(AK26=\"\",\"\",IF(AJ25=\"\",\"\",IF((AJ25/AJ27)*100<55,\"X\",\"\"))))","v":""},null,null,null,null,null,null,null,null,null,null,null,null,null,null,null,null,null,null,null,null,null,null,null,null,null,null,null,null,null,null,null,null,null,null,null,null,null,null,null,null,"ايجاد ناتج طرح عددين ضمن ( 99 ) باستلاف وبدون استلاف","ايجاد ناتج طرح عددين ضمن 4 منازل","تعريف مفهوم الضرب ( جمع متكرر ) وايجاد ناتج ضرب عددين ضمن جداول الضرب من (1-5)","المقارنة بين الاعداد والكسور","التميز بين الطول والمساحة والحجم ووحداتها","اجراء العمليات الحسابية الاربعة على الكسور واستخدام خواص النسبة","التعرف الى العلاقات بين الزوايا وتشابه الاشكال الهندسية واستخدامها","تمييز العلاقات والاقترانات وتمثيلها بيانيا","تمثيل الاقتران التربيعي بيانيا وحل المعادلات التربيعة","حل معادلات من الدرجتين الاولى والثانية وبثلاث متغيرات كحد اقصى"]
[null,"    اسم معلم الصف  : ",{"$f":" Value!$F$8","v":"احمد طه اسماعيل"},null,null,null,"توقيعه :",null,null,null,null,null,null,null,null,null,null,null,null,null,null,null,null,"المعدل بالحروف",{"$f":"SpellNumberA(IF(Value!$F$33=\"1\",X24,Z24),0,\"علامة\",\"علامتان\",\"علامات\")","v":""},null,null,{"$f":"IF(AA27=\"\",\"\",IF((Z24/Z26)*100>=80,\"X\",\"\"))","v":""},{"$f":"IF(AA27=\"\",\"\",IF((Z24/Z26)*100>=80,\"\",IF((Z24/Z26)*100>=70,\"X\",)))","v":""},{"$f":"IF(AA27=\"\",\"\",IF((Z24/Z26)*100>=70,\"\",IF((Z24/Z26)*100>=60,\"X\",)))","v":""},{"$f":"IF(Z24=0,\"\",IF(AA27=\"\",\"\",IF(Z24=\"\",\"\",IF((Z24/Z26)*100<60,\"X\",\"\"))))","v":""},null,null,{"$f":"Table!$AF$10","v":100},{"$f":"Table!$AG$10","v":100},{"$f":"Table!$AH$10","v":100},null,{"$f":"IF(AK27=\"\",\"\",IF((AJ25/AJ27)*100>=90,\"X\",\"\"))","v":""},{"$f":"IF(AK27=\"\",\"\",IF((AJ25/AJ27)*100>=90,\"\",IF((AJ25/AJ27)*100>=75,\"X\",)))","v":""},{"$f":"IF(AK27=\"\",\"\",IF((AJ25/AJ27)*100>=75,\"\",IF((AJ25/AJ27)*100>=60,\"X\",)))","v":""},{"$f":"IF(AJ25=0,\"\",IF(AK27=\"\",\"\",IF(AJ25=\"\",\"\",IF((AJ25/AJ27)*100<60,\"X\",\"\"))))","v":""},null,null,null,null,null,null,null,null,null,null,null,null,null,null,null,null,null,null,null,null,null,null,null,null,null,null,null,null,null,null,null,null,null,null,null,null,null,null,null,null,"المقارنة بين الرسوم والأشكال ( أطول , أقصر , أكبر , أصغر )","تصنيف الاشكال الهندسية ( دائرة,مستطيل,مربع ,مثلث)","تعرف مفهوم القسمة وعلاقته بالطرح","اجراء العمليات الحسابيية الاربع على الاعداد المكونة من 9 منازل على الاكثر","تدوير الاعداد وتقدير نواتج العمليات الحسابية","استخدام الادوات الهندسية في الانشاء الهندسي وايجاد مساحات الاشكال الهندسية الرباعية","التعرف الى مفهوم المجموعات والعمليات عليها وحساب احتمال الحوادث البسيطة","استخدام تشابه المثلثات وخواص الاشكال الهندسية في حل المسألة","التعرف الى مفهوم التطابق والتشابه واستخدامها","ايجاد احتمالات الحوادث البسيطة والمشروطة"]
[null,null,null,null,null,null,null,null,null,null,null,null,null,null,null,null,null,null,null,null,null,null,null,null,null,null,null,{"$f":"IF(AA28=\"\",\"\",IF((Z24/Z26)*100>=90,\"X\",\"\"))","v":""},{"$f":"IF(AA28=\"\",\"\",IF((Z24/Z26)*100>=90,\"\",IF((Z24/Z26)*100>=70,\"X\",)))","v":""},{"$f":"IF(AA28=\"\",\"\",IF((Z24/Z26)*100>=70,\"\",IF((Z24/Z26)*100>=55,\"X\",)))","v":""},{"$f":"IF(Z24=0,\"\",IF(AA28=\"\",\"\",IF(Z24=\"\",\"\",IF((Z24/Z26)*100<55,\"X\",\"\"))))","v":""},null,null,"المعدل بالحروف",{"$f":"SpellNumberA(IF(Value!$F$33=\"1\",AH25,AJ25),0,\"علامة\",\"علامتان\",\"علامات\")","v":""},null,null,{"$f":"IF(AK28=\"\",\"\",IF((AJ25/AJ27)*100>=80,\"X\",\"\"))","v":""},{"$f":"IF(AK28=\"\",\"\",IF((AJ25/AJ27)*100>=80,\"\",IF((AJ25/AJ27)*100>=70,\"X\",)))","v":""},{"$f":"IF(AK28=\"\",\"\",IF((AJ25/AJ27)*100>=70,\"\",IF((AJ25/AJ27)*100>=60,\"X\",)))","v":""},{"$f":"IF(AJ25=0,\"\",IF(AK28=\"\",\"\",IF(AJ25=\"\",\"\",IF((AJ25/AJ27)*100<60,\"X\",\"\"))))","v":""},null,null,null,null,null,null,null,null,null,null,null,null,null,null,null,null,null,null,null,null,null,null,null,null,null,null,null,null,null,null,null,null,null,null,null,null,null,null,null,null,null,"تعرف بعض الانماط العددية والصورية البسيطة ( العد خمسات,عشرات,الوان متتابعة,اشكال متتابعة)","توظيف المعرفة الرياضية (الجمع والطرح والضرب والقسمة ) في حل مسائل تتضمن مواقف حياتية بسيطة","تمييز الوحدات القياسية ل ( الطول , الوقت , ... )","التحويل بين وحدات الزمن ووحدات النقد","حل مسائل تطبيقية على القياس (حساب العمر,قياس الزمن, ... )","ايجاد مساحات وحجوم الاشكال الهندسية الاساسية","تحليل وتركيب المقادير الجبرية حتى الدرجة الثانية","التعرف الى اساسيات الهندسة التحليلة (المستوى الديكارتي,الزوج المرتب,معادلة التقسيم)","ايجاد النسب المثلثية للزوايا الدائرية"]
[null,"   التاريخ :",{"$f":"IF(Value!$F$33=\"2\",Value!$F$14,Value!$F$25)","v":"2019/6/2"},"اسم مدير المدرسة وتوقيعه :",null,null,null,null,{"$f":"Value!$F$9","v":"فتحي محمد ابو فضة"},null,null,null,null,"مؤشرات الاداء ومستوياتها:",null,null,null,null,null,null,null,null,null,null,null,null,null,{"$f":"IF(AA29=\"\",\"\",IF((Z24/Z26)*100>=95,\"X\",\"\"))","v":""},{"$f":"IF(AA29=\"\",\"\",IF((Z24/Z26)*100>=95,\"\",IF((Z24/Z26)*100>=75,\"X\",)))","v":""},{"$f":"IF(AA29=\"\",\"\",IF((Z24/Z26)*100>=75,\"\",IF((Z24/Z26)*100>=65,\"X\",)))","v":""},{"$f":"IF(Z24=0,\"\",IF(AA29=\"\",\"\",IF(Z24=\"\",\"\",IF((Z24/Z26)*100<65,\"X\",\"\"))))","v":""},null,{"$f":"Table!$AI$6","v":"التربية المهنية"},null,null,null,null,{"$f":"IF(AK29=\"\",\"\",IF(((AJ29/AJ30)*100)>=95,\"X\",\"\"))","v":""},{"$f":"IF(AK29=\"\",\"\",IF((AJ29/AJ30)*100>=95,\"\",IF((AJ29/AJ30)*100>=80,\"X\",)))","v":""},{"$f":"IF(AK29=\"\",\"\",IF((AJ29/AJ30)*100>=80,\"\",IF((AJ29/AJ30)*100>=65,\"X\",)))","v":""},{"$f":"IF(AJ29=0,\"\",IF(AK29=\"\",\"\",IF(AJ29=\"\",\"\",IF((AJ29/AJ30)*100<65,\"X\",\"\"))))","v":""},null,null,null,null,null,null,null,null,null,null,null,null,null,null,null,null,null,null,null,null,null,null,null,null,null,null,null,null,null,null,null,null,null,null,null,null,null,null,null,null,null,null,null,"تعرف الاشكال الهندسية المستوية الرئيسة ( مستقيم ,زاوية , مربع, مستطيل,دائرة)",null,null,"تمثيل البيانات الاحصائية (بالاعمدة والقطاعات)وايجاد الوسط الحسابي","توظيف العمليات الحسابية الاساسية في حل مسائل حياتية","التعرف الى مفاهيم النسب المثلثية الاساسية واستخدامها في حل المثلث القائم الزاوية","ايجاد المقاييس الاحصائية الاساسية ( وسط,وسيط,منوال,انحراف معياري ,مدى) ومعرفة تأثير التحويلات الخطية عليها"]
[null,null,null,null,null,null,null,null,null,null,null,null,null,null,null,null,null,null,null,null,null,null,null,null,null,null,null,{"$f":"IF(AA30=\"\",\"\",IF((Z24/Z26)*100>=90,\"X\",\"\"))","v":""},{"$f":"IF(AA30=\"\",\"\",IF((Z24/Z26)*100>=90,\"\",IF((Z24/Z26)*100>=75,\"X\",)))","v":""},{"$f":"IF(AA30=\"\",\"\",IF((Z24/Z26)*100>=75,\"\",IF((Z24/Z26)*100>=60,\"X\",)))","v":""},{"$f":"IF(Z24=0,\"\",IF(AA30=\"\",\"\",IF(Z24=\"\",\"\",IF((Z24/Z26)*100<60,\"X\",\"\"))))","v":""},null,null,{"$f":"Table!$AI$10","v":100},{"$f":"Table!$AJ$10","v":100},{"$f":"Table!$AK$10","v":100},null,{"$f":"IF(AK30=\"\",\"\",IF((AJ29/AJ30)*100>=85,\"X\",\"\"))","v":""},{"$f":"IF(AK30=\"\",\"\",IF((AJ29/AJ30)*100>=85,\"\",IF((AJ29/AJ30)*100>=70,\"X\",)))","v":""},{"$f":"IF(AK30=\"\",\"\",IF((AJ29/AJ30)*100>=70,\"\",IF((AJ29/AJ30)*100>=55,\"X\",)))","v":""},{"$f":"IF(AJ29=0,\"\",IF(AK30=\"\",\"\",IF(AJ29=\"\",\"\",IF((AJ29/AJ30)*100<55,\"X\",\"\"))))","v":""},null,null,null,null,null,null,null,null,null,null,null,null,null,null,null,null,null,null,null,null,null,null,null,null,null,null,null,null,null,null,null,null,null,null,null,null,null,null,null,null,null,null,null,null,null,null,null,null,"ايجاد مقاييس النزعة المركزية","استخدام القوانين الاساسية في الهندسة التحليلية (طول قطعة مستقيمة,الميل,بعد نقطة عن مستقيم), "]
[null,null,null,null,null,null,null,null,null," ",null,null,null,"مؤشرات الاداء",null,null,null,null,null,"المستوى%",null,null,null,null,null,null,null,{"$f":"IF(AA31=\"\",\"\",IF((Z24/Z26)*100>=80,\"X\",\"\"))","v":""},{"$f":"IF(AA31=\"\",\"\",IF((Z24/Z26)*100>=80,\"\",IF((Z24/Z26)*100>=70,\"X\",)))","v":""},{"$f":"IF(AA31=\"\",\"\",IF((Z24/Z26)*100>=70,\"\",IF((Z24/Z26)*100>=60,\"X\",)))","v":""},{"$f":"IF(Z24=0,\"\",IF(AA31=\"\",\"\",IF(Z24=\"\",\"\",IF((Z24/Z26)*100<60,\"X\",\"\"))))","v":""},null,null,"المعدل بالحروف",{"$f":"SpellNumberA(IF(Value!$F$33=\"1\",AH29,AJ29),0,\"علامة\",\"علامتان\",\"علامات\")","v":""},null,null,{"$f":"IF(AK31=\"\",\"\",IF((AJ29/AJ30)*100>=90,\"X\",\"\"))","v":""},{"$f":"IF(AK31=\"\",\"\",IF((AJ29/AJ30)*100>=90,\"\",IF((AJ29/AJ30)*100>=75,\"X\",)))","v":""},{"$f":"IF(AK31=\"\",\"\",IF((AJ29/AJ30)*100>=75,\"\",IF((AJ29/AJ30)*100>=60,\"X\",)))","v":""},{"$f":"IF(AJ29=0,\"\",IF(AK31=\"\",\"\",IF(AJ29=\"\",\"\",IF((AJ29/AJ30)*100<60,\"X\",\"\"))))","v":""},null,null,null,null,null,null,null,null,null,null,null,null,null,null,null,null,null,null,null,null,null,null,null,null,null,null,null,null,null,null,null,null,null,null,null,null,null,null,null,null,null,null,null,null,null,null,null,null,null,"ايجاد قياسات الزوايا والاضلاع في الاشكال الرباعية الدائرية,"]
[null,"ملحوظات :",null,null,null,null,null,null,null,null,null,null,null,"يظهر امتلاكه للمعارف والمهارات المطلوبة,ويحقق النتاجات التعليمية بشكل يفوق معايير المستوى التعليمي المحدد",null,null,null,null,null,"90-100",null,null,{"$f":"Table!$T$6","v":"التربية الاجتماعية والوطنية"},null,null,null,null,{"$f":"IF(AA32=\"\",\"\",IF(((Z32/Z34)*100)>=95,\"X\",\"\"))","v":""},{"$f":"IF(AA32=\"\",\"\",IF((Z32/Z34)*100>=95,\"\",IF((Z32/Z34)*100>=80,\"X\",)))","v":""},{"$f":"IF(AA32=\"\",\"\",IF((Z32/Z34)*100>=80,\"\",IF((Z32/Z34)*100>=65,\"X\",)))","v":""},{"$f":"IF(Z32=0,\"\",IF(AA32=\"\",\"\",IF(Z32=\"\",\"\",IF((Z32/Z34)*100<65,\"X\",\"\"))))","v":""},null,{"$f":"Table!$AL$6","v":"الحاسوب"},null,null,null,null,{"$f":"IF(AK32=\"\",\"\",IF(((AJ32/AJ34)*100)>=95,\"X\",\"\"))","v":""},{"$f":"IF(AK32=\"\",\"\",IF((AJ32/AJ34)*100>=95,\"\",IF((AJ32/AJ34)*100>=80,\"X\",)))","v":""},{"$f":"IF(AK32=\"\",\"\",IF((AJ32/AJ34)*100>=80,\"\",IF((AJ32/AJ34)*100>=65,\"X\",)))","v":""},{"$f":"IF(AJ32=0,\"\",IF(AK32=\"\",\"\",IF(AJ32=\"\",\"\",IF((AJ32/AJ34)*100<65,\"X\",\"\"))))","v":""},null,null,null,null,null,null,null,null,null,null,null,null,null,null,null,null,null,null,null,null,null,null,null,null,null,null,null,null,null,null,null,null,null,null,null,null,null,null,null,"اجتماعيات","استخدام المفاهيم الكتابية لوصف الموقع والتنظيم المكاني ( مثل الرموز ,المدرسة,البيت)","استخدام الادوات الجغرافية في معرفة المفاهيم المكانية للموقع(مثل مجسم الكرة الارضية,الرموز,لتمثيل معالم سطح الارض)","فهم المقصود بالموارد ودورها في الحياة اليومية","فهم العلاقة بين النظام الطبيعي والبيئي","فهم اهمية الموقع الحضاري للأردن وابرز معالمه الحضارية","فهم انماط التوزيع المكاني على سطح الارض (مثل الخرائط والرسوم والاشكال التوضيحية)","فهم تاريخ ونشوء الحضارات القديمة","فهم النظم الطبيعية والعلاقات المتبادلة فيها","فهم تطور نظام الحكم والادارة والاقتصاد والحياة الاجتماعية في الدول الاسلامية","تعرف العلاقة بين النظام البشري والنظام الطبيعي"]
[null,null,null,null,null,null,null,null,null,null,null,null,null,"يظهر امتلاكه للمعارف والمهارات المطلوبة,ويحقق النتاجات التعليمية لمعايير المستوى التعليمي المحدد",null,null,null,null,null,"80-89",null,null,null,null,null,null,null,{"$f":"IF(AA33=\"\",\"\",IF((Z32/Z34)*100>=85,\"X\",\"\"))","v":""},{"$f":"IF(AA33=\"\",\"\",IF((Z32/Z34)*100>=85,\"\",IF((Z32/Z34)*100>=70,\"X\",)))","v":""},{"$f":"IF(AA33=\"\",\"\",IF((Z32/Z34)*100>=70,\"\",IF((Z32/Z34)*100>=55,\"X\",)))","v":""},{"$f":"IF(Z32=0,\"\",IF(AA33=\"\",\"\",IF(Z32=\"\",\"\",IF((Z32/Z34)*100<55,\"X\",\"\"))))","v":""},null,null,null,null,null,null,{"$f":"IF(AK33=\"\",\"\",IF((AJ32/AJ34)*100>=85,\"X\",\"\"))","v":""},{"$f":"IF(AK33=\"\",\"\",IF((AJ32/AJ34)*100>=85,\"\",IF((AJ32/AJ34)*100>=70,\"X\",)))","v":""},{"$f":"IF(AK33=\"\",\"\",IF((AJ32/AJ34)*100>=70,\"\",IF((AJ32/AJ34)*100>=55,\"X\",)))","v":""},{"$f":"IF(AJ32=0,\"\",IF(AK33=\"\",\"\",IF(AJ32=\"\",\"\",IF((AJ32/AJ34)*100<55,\"X\",\"\"))))","v":""},null,null,null,null,null,null,null,null,null,null,null,null,null,null,null,null,null,null,null,null,null,null,null,null,null,null,null,null,null,null,null,null,null,null,null,null,null,null,null,null,"فهم النظام الطبيعي على سطح الأرض","فهم مكونات النظام الطبيعي","استخدام الادوات الجغرافية في فهم المفاهيم المكانية للموقع ( عناصر الخريطة,الاتجاهات,البوصلة)","فهم دور الانسان في البيئة","فهم دور الدولة وعناصرها واشكالها ووظائفها ","فهم الظواهر والعمليات الطبيعية","فهم الغزو الخارجي للعالم الاسلامي","فهم العلاقة بين السكان والموقع ","فهم الانجازات الحضارية والفكرية في الدولة الاسلامية","ادراك التغيرات البيئية الطبيعية والبشرية واقتراح حلول لها , وتحديد العلاقة بين السكان واستغلال الموارد"]
["1)"," تعقد اختبارات الإكمال في المدرسة وتعتمد نتائجها من يوم",null,{"$f":"IF(Value!$F$33=\"1\",\"\",DATE(YEAR(Value!$F$22),MONTH(Value!$F$22),DAY(Value!$F$22)))","v":"2019-06-12"},"الموافق",{"$f":"IF(Value!$F$33=\"2\",Value!$F$22,\"\")","v":"2019/6/12"},null,"الى يوم",{"$f":"IF(Value!$F$33=\"1\",\"\",DATE(YEAR(Value!$F$41),MONTH(Value!$F$41),DAY(Value!$F$41)))","v":"2019-06-14"},"الموافق",{"$f":"IF(Value!$F$33=\"2\",Value!$F$41,\"\")","v":"2019/6/14"},null,null,"يظهر امتلاكه لمعظم المعارف والمهارات المطلوبة,ويحقق النتاجات التعليمية لمعايير المستوى التعليمي المحدد",null,null,null,null,null,"70-79",null,null,null,{"$f":"Table!$T$10","v":200},{"$f":"Table!$U$10","v":200},{"$f":"Table!$V$10","v":200},null,{"$f":"IF(AA34=\"\",\"\",IF((Z32/Z34)*100>=90,\"X\",\"\"))","v":""},{"$f":"IF(AA34=\"\",\"\",IF((Z32/Z34)*100>=90,\"\",IF((Z32/Z34)*100>=75,\"X\",)))","v":""},{"$f":"IF(AA34=\"\",\"\",IF((Z32/Z34)*100>=75,\"\",IF((Z32/Z34)*100>=60,\"X\",)))","v":""},{"$f":"IF(Z32=0,\"\",IF(AA34=\"\",\"\",IF(Z32=\"\",\"\",IF((Z32/Z34)*100<60,\"X\",\"\"))))","v":""},null,null,{"$f":"Table!$AL$10","v":100},{"$f":"Table!$AM$10","v":100},{"$f":"Table!$AN$10","v":100},null,{"$f":"IF(AK34=\"\",\"\",IF((AJ32/AJ34)*100>=90,\"X\",\"\"))","v":""},{"$f":"IF(AK34=\"\",\"\",IF((AJ32/AJ34)*100>=90,\"\",IF((AJ32/AJ34)*100>=75,\"X\",)))","v":""},{"$f":"IF(AK34=\"\",\"\",IF((AJ32/AJ34)*100>=75,\"\",IF((AJ32/AJ34)*100>=60,\"X\",)))","v":""},{"$f":"IF(AJ32=0,\"\",IF(AK34=\"\",\"\",IF(AJ32=\"\",\"\",IF((AJ32/AJ34)*100<60,\"X\",\"\"))))","v":""},null,null,null,null,null,null,null,null,null,null,null,null,null,null,null,null,null,null,null,null,null,null,null,null,null,null,null,null,null,null,null,null,null,null,null,null,null,null,null,null,"فهم مظاهر حياة السكان اليومية","فهم العمران البشري","فهم العلاقة بين النظام الطبيعي والبيئي","فهم اسباب الهجرة البشرية ونتائجها ","إدراك أهمية مشاركة الاردن في قوات حفظ السلام","فهم دور الانسان في الحفاظ على البيئة","فهم العمليات الطبيعية في النظام الطبيعي و البيئي","فهم توزيع الموارد والاستثمار الامثل لها","فهم مشكلات الموقع والقدرة على تحليلها","توظيف الادوات الجغرافية ووسائل التكنولوجيا في فهم الظواهر الجغرافية(نظم المعلومات.الخرائط والاشكال التوضيحية,وسائل الاتصال والتكنولوجيا)"]
["2)","تسلم الكتب المدرسية للطلبة ويسجل المنقولون منهم يوم ",null,{"$f":"IF(Value!$F$33=\"1\",\"\",DATE(YEAR(Value!$F$42),MONTH(Value!$F$42),DAY(Value!$F$42)))","v":"2019-09-01"},"الموافق",{"$f":"IF(Value!$F$33=\"2\",Value!$F$42,\"\")","v":"2019/9/1"},null,"الى يوم",{"$f":"IF(Value!$F$33=\"1\",\"\",DATE(YEAR(Value!$F$43),MONTH(Value!$F$43),DAY(Value!$F$43)))","v":"2019-09-03"},"الموافق",{"$f":"IF(Value!$F$33=\"2\",Value!$F$43,\"\")","v":"2019/9/3"},null,null,"يظهر امتلاكه لبعض المعارف والمهارات المطلوبة,ويقترب من تحقيق  النتاجات التعليمية لمعايير المستوى التعليمي المحدد",null,null,null,null,null,"60-69",null,null,null,"المعدل بالحروف",{"$f":"SpellNumberA(IF(Value!$F$33=\"1\",X32,Z32),0,\"علامة\",\"علامتان\",\"علامات\")","v":""},null,null,{"$f":"IF(AA35=\"\",\"\",IF((Z32/Z34)*100>=80,\"X\",\"\"))","v":""},{"$f":"IF(AA35=\"\",\"\",IF((Z32/Z34)*100>=80,\"\",IF((Z32/Z34)*100>=70,\"X\",)))","v":""},{"$f":"IF(AA35=\"\",\"\",IF((Z32/Z34)*100>=70,\"\",IF((Z32/Z34)*100>=60,\"X\",)))","v":""},{"$f":"IF(Z32=0,\"\",IF(AA35=\"\",\"\",IF(Z32=\"\",\"\",IF((Z32/Z34)*100<60,\"X\",\"\"))))","v":""},null,null,"المعدل بالحروف",{"$f":"SpellNumberA(IF(Value!$F$33=\"1\",AH32,AJ32),0,\"علامة\",\"علامتان\",\"علامات\")","v":""},null,null,{"$f":"IF(AK35=\"\",\"\",IF((AJ32/AJ34)*100>=80,\"X\",\"\"))","v":""},{"$f":"IF(AK35=\"\",\"\",IF((AJ32/AJ34)*100>=80,\"\",IF((AJ32/AJ34)*100>=70,\"X\",)))","v":""},{"$f":"IF(AK35=\"\",\"\",IF((AJ32/AJ34)*100>=70,\"\",IF((AJ32/AJ34)*100>=60,\"X\",)))","v":""},{"$f":"IF(AJ32=0,\"\",IF(AK35=\"\",\"\",IF(AJ32=\"\",\"\",IF((AJ32/AJ34)*100<60,\"X\",\"\"))))","v":""},null,null,null,null,null,null,null,null,null,null,null,null,null,null,null,null,null,null,null,null,null,null,null,null,null,null,null,null,null,null,null,null,null,null,null,null,null,null,null,null,"فهم الأمن الشخصي وأهميته","فهم طبيعة نظام الحكم في الاردن","تعرف محافظته و المعالم البارزة فيها","فهم اهداف الادوات الجغرافية وخصائصها مقياس الرسم,الصور الجوية , الخرائط","تعرف التفكير واستراتيجياته","فهم ديمغرافية السكان وعلاقتها بالمكان","استخدام الادوات الجغرافية والتكنولوجية في جمع وتحليل البيانات الجغرافية(خرائط, صور جوية, مقاييس الرسم ,المسافة الجغرافية)","استخدام الادوات الجغرافية والتكنولوجية في جمع وتحليل البيانات الجغرافية(خرائط, صور جوية, الرسوم,نظم المعلومات الجغرافية)","فهم العلاقة بين النظام البشري والنظام الطبيعي","معرفة التاريخ العربي والحديث وقضاياه المعاصرة"]
["3)","يبدأ التدريس في الفصل الدراسي الأول  للعام الدراسي ",null,{"$f":"IF(Value!$F$33=\"2\",Value!$F$26,\"\")","v":"2022/2021"},null,null,null,"يوم",{"$f":"IF(Value!$F$33=\"1\",\"\",DATE(YEAR($K$36),MONTH($K$36),DAY($K$36)))","v":"2019-09-01"},"الموافق",{"$f":"IF(Value!$F$33=\"2\",Value!$F$23,\"\")","v":"2019/9/1"},null,null,"يظهر امتلاكه لبعض المعارف والمهارات المطلوبة بشكل محدد,ويحقيق الحد الادنى المطلوب من النتاجات التعليمية لمعايير المستوى التعليمي المحدد",null,null,null,null,null,"50-59",null,null,null,null,null,null,null,{"$f":"IF(AA36=\"\",\"\",IF((Z32/Z34)*100>=90,\"X\",\"\"))","v":""},{"$f":"IF(AA36=\"\",\"\",IF((Z32/Z34)*100>=90,\"\",IF((Z32/Z34)*100>=70,\"X\",)))","v":""},{"$f":"IF(AA36=\"\",\"\",IF((Z32/Z34)*100>=70,\"\",IF((Z32/Z34)*100>=55,\"X\",)))","v":""},{"$f":"IF(Z32=0,\"\",IF(AA36=\"\",\"\",IF(Z32=\"\",\"\",IF((Z32/Z34)*100<55,\"X\",\"\"))))","v":""},null,{"$f":"Table!$AO$6","v":"الثقافة المالية"},null,null,null,null,{"$f":"IF(AK36=\"\",\"\",IF(((AJ36/AJ37)*100)>=95,\"X\",\"\"))","v":""},{"$f":"IF(AK36=\"\",\"\",IF((AJ36/AJ37)*100>=95,\"\",IF((AJ36/AJ37)*100>=80,\"X\",)))","v":""},{"$f":"IF(AK36=\"\",\"\",IF((AJ36/AJ37)*100>=80,\"\",IF((AJ36/AJ37)*100>=65,\"X\",)))","v":""},{"$f":"IF(AJ36=0,\"\",IF(AK36=\"\",\"\",IF(AJ36=\"\",\"\",IF((AJ36/AJ37)*100<65,\"X\",\"\"))))","v":""},null,null,null,null,null,null,null,null,null,null,null,null,null,null,null,null,null,null,null,null,null,null,null,null,null,null,null,null,null,null,null,null,null,null,null,null,null,null,null,null,"فهم التنظيم الاداري في بلدته","فهم الامن الوطني واهميته","فهم ظروف قيام الدولة الاسلامية في المدينة المنورة","فهم موطنه الاردن وعلاقته بالدول المجاورة ","استخدام الادوات الجغرافية في تحديد مواقع الظواهر الجغرافية(الكرة الارضية,الخرائط,الرموز,الصور الجوية)","فهم التاريخ العربي والاسلامي والغزو الخارجي لدار الاسلام","فهم الاخطار الطبيعية والبشرية التي تهدد البيئة","فهم الدور الاجتماعي والتربوي والاقتصادي للأسرة","استخدام الادوات الجغرافية في تحليل الاحداث العالمية والظواهر الجغرافية واقتراح الحلول لها باستخدام نظم المعلومات الجغرافية. الخرائط.","فهم اهمية المواطنة الفاعلة في المجتمع والدولة"]
[null,null,null,null,null,null,null,null,null,null,null,null,null,"لم يظهر امتلاكه للحد الادنى المطلوب من المعارف والمهارات المطلوبة,ويتطلب خطة علاجية لإعادة توجيه تعلمه في المسار الصحيح",null,null,null,null,null,"49 فما دون",null,null,null,null,null,null,null,{"$f":"IF(AA37=\"\",\"\",IF((Z32/Z34)*100>=95,\"X\",\"\"))","v":""},{"$f":"IF(AA37=\"\",\"\",IF((Z32/Z34)*100>=95,\"\",IF((Z32/Z34)*100>=75,\"X\",)))","v":""},{"$f":"IF(AA37=\"\",\"\",IF((Z32/Z34)*100>=75,\"\",IF((Z32/Z34)*100>=65,\"X\",)))","v":""},{"$f":"IF(Z32=0,\"\",IF(AA37=\"\",\"\",IF(Z32=\"\",\"\",IF((Z32/Z34)*100<65,\"X\",\"\"))))","v":""},null,null,{"$f":"Table!$AO$10","v":100},{"$f":"Table!$AP$10","v":100},{"$f":"Table!$AQ$10","v":100},null,{"$f":"IF(AK37=\"\",\"\",IF((AJ36/AJ37)*100>=85,\"X\",\"\"))","v":""},{"$f":"IF(AK37=\"\",\"\",IF((AJ36/AJ37)*100>=85,\"\",IF((AJ36/AJ37)*100>=70,\"X\",)))","v":""},{"$f":"IF(AK37=\"\",\"\",IF((AJ36/AJ37)*100>=70,\"\",IF((AJ36/AJ37)*100>=55,\"X\",)))","v":""},{"$f":"IF(AJ36=0,\"\",IF(AK37=\"\",\"\",IF(AJ36=\"\",\"\",IF((AJ36/AJ37)*100<55,\"X\",\"\"))))","v":""},null,null,null,null,null,null,null,null,null,null,null,null,null,null,null,null,null,null,null,null,null,null,null,null,null,null,null,null,null,null,null,null,null,null,null,null,null,null,null,null,null,"فهم المرافق العامة في محافظته وحسن استخدامها","فهم المرافق العامة في محافظته وحسن استخدامها","فهم دور المؤسسات الحكومية في المجتمع","فهم العلاقات المتبادلة بين البيئة والنشاطات البشرية",null,"فهم العلاقة بين السكان والموقع","فهم مشكلات الموقع والتعرف على طرق حلها","توظيف الاستقصاء في حل المشكلات","استيعاب اهمية الديمقراطية والحقوق والواجبات الدستورية"]
[null,null,null,null,null,null,null,null,null,null,null,null,null,null,null,null,null,null,null,null,null,null,null,null,null,null,null,{"$f":"IF(AA38=\"\",\"\",IF((Z32/Z34)*100>=90,\"X\",\"\"))","v":""},{"$f":"IF(AA38=\"\",\"\",IF((Z32/Z34)*100>=90,\"\",IF((Z32/Z34)*100>=75,\"X\",)))","v":""},{"$f":"IF(AA38=\"\",\"\",IF((Z32/Z34)*100>=75,\"\",IF((Z32/Z34)*100>=60,\"X\",)))","v":""},{"$f":"IF(Z32=0,\"\",IF(AA38=\"\",\"\",IF(Z32=\"\",\"\",IF((Z32/Z34)*100<60,\"X\",\"\"))))","v":""},null,null,"المعدل بالحروف",{"$f":"SpellNumberA(IF(Value!$F$33=\"1\",AH36,AJ36),0,\"علامة\",\"علامتان\",\"علامات\")","v":""},null,null,{"$f":"IF(AK38=\"\",\"\",IF((AJ36/AJ37)*100>=90,\"X\",\"\"))","v":""},{"$f":"IF(AK38=\"\",\"\",IF((AJ36/AJ37)*100>=90,\"\",IF((AJ36/AJ37)*100>=75,\"X\",)))","v":""},{"$f":"IF(AK38=\"\",\"\",IF((AJ36/AJ37)*100>=75,\"\",IF((AJ36/AJ37)*100>=60,\"X\",)))","v":""},{"$f":"IF(AJ36=0,\"\",IF(AK38=\"\",\"\",IF(AJ36=\"\",\"\",IF((AJ36/AJ37)*100<60,\"X\",\"\"))))","v":""},null,null,null,null,null,null,null,null,null,null,null,null,null,null,null,null,null,null,null,null,null,null,null,null,null,null,null,null,null,null,null,null,null,null,null,null,null,null,null,null,null,null,null,"فهم اهمية الحرية وتطبيق مبادئها في حياة المجتمعات",null,null,null,"فهم دور القيادة الهاشمية في الحرص على السلام العالمي",null,"تحديد دور الاحزاب,والجيش في تحقيق الامن الوطني والسلام العالمي"]
[null,null,null,null,null,null,null,null,null,null,null,null,null,null,null,null,null,null,null,null,null,null,null,null,null,null,null,null,null,null,null,null,null,null,null,null,null,null,null,null,null,null,null,null,null,null,null,null,null,null,null,null,null,null,null,null,null,null,null,null,null,null,null,null,null,null,null,null,null,null,null,null,null,null,null,null,null,null,null,null,null,"تصنيف الأشياء وفق كونها (حية أو غير حية) والمواد وفق ذائبيتها في الماء الحيوانات وفق (حجمها,شكلها,غطاءالرأس) والنباتات وفق كونها (تؤكل أو لا تؤكل) ","تصنيف المواد حسب حالاتها(صلبة,سائلة,غازية)والاجسام حسب نافذيتها للضوء(شفافة وغير شفافة, ...)","تصنيف المواد وفق خصائصها الفيزيائية (لونها,ملمسها,حجمها) والحيوانات وفق تركيبها الداخلي (فقارية ولا فقارية) والنباتات وفق نوع البذور (فلقة,فلقتين)","تصنيف المخاليط والصخور حسب انواعها,والمواد حسب توصيلها للكهرباء,والعدسات حسب شكلها,والكائنات حسب حصولها على الغداء (منتجات,مستهلكات,...)","تمييز اشكال الطاقة ومصادرها وتحولاتها ( كهربائية الى حركية ... ) ومصادر الطاقة المتجددة وغير المتجددة","وصف عمليات حيوية في النباتات ( بناء ضوئي, ... ) ومراحل دورة حياة الخلية ( الانقسام,... )","وصف اثر الحرارة على حالة المادة وكيفية انتقالها","كتابة معادلات كيميائية بالرموز لتفاعلات بعض العناصر (المغنيسيوم,الصوديوم)مع الاكسجين","توظيف الاستقصاء في التوصل الى العوامل التي ساهمت في تشكيل المظاهر الطبوغرافية لسطح الارض (الاودية,التشكيلات الصحراوية,...)","توظيف الاستقصاء في التوصل الى الية وراثة صفة واحدة عند الانسان,والعوامل المؤثرة في نمو البكتيريا, ودور النبات في الحفاظ على التوازن البيئي"]
[null,null,null,null,null,null,null,null,null,null,null,null,null,null,null,null,null,null,null,null,null,null,null,null,null,null,null,null,null,null,null,null,null,null,null,null,null,null,null,null,null,null,null,null,null,null,null,null,null,null,null,null,null,null,null,null,null,null,null,null,null,null,null,null,null,null,null,null,null,null,null,null,null,null,null,null,null,null,null,null,"علوم","توظيف الاستقصاء في التوصل الى اهمية كل من الهواء والماء والغذاء للإنسان والحركة في الحياة اليومية ومعرفة اجزاء الجسم الرئيسة والحواس ووظائفها","توظيف الاستقصاء في التوصل الى اهمية الصوت وكيفية تشكله وانتقاله عبر الاجسام المختلفة واهمية الضوء ومصادره والظواهر المتعلقة به,واهمية الحرارة ومصادرها وانتقالها في الاجسام","توظيف الاستقصاء في التوصل الى انماط التكيف عند الحيوانات والنباتات (هجرة الطيور,تساقط اوراق النبات, ... ) وحالات المادة وتغيراتها وطرق الشحن الكهربائي","توظيف الاستقصاء عمليا في التوصل الى خصائص العدسات وطرق توليد الكهرباءالساكنة,واستجابة الحيوانات للمنبهات المختلفة,واهمية الضوء للكائنات الحية","استخدام الادوات المناسبة لقياس بعض الخصائص الفيزيائية للأشياء(حجم,كتلة,وزن,...)","استخدام المجهر في ملاحظة اجزاء الخلية الرئيسة ودراسة مراحل الانقسام المتساوي","كتابة معادلات لفظية تمثل تفاعل بعض العناصر مع الاوكسجين","وصف بعض التراكيب الجيولوجية (الصدوع , الطيات) وانواعها ونشأتها","بناء نماذج ل (دورة الصخور الطبيعية,ساعة شمسية,...)","توظيف العلاقات الرياضية في حل مسائل حول(المرايا,العدسات,مقومة الموصل,قانون سنل)"]
[null,null,null,null,null,null,null,null,null,null,null,null,null,null,null,null,null,null,null,null,null,null,null,null,null,null,null,null,null,null,null,null,null,null,null,null,null,null,null,null,null,null,null,null,null,null,null,null,null,null,null,null,null,null,null,null,null,null,null,null,null,null,null,null,null,null,null,null,null,null,null,null,null,null,null,null,null,null,null,null,null,"وصف بعض الظواهر الطبيعية مثل عناصر الطقس اليومية والفصلية (درجة الحرارة , الامطار,الغيوم ,.. ) (وخصائص المغناطيس , قوة الجذب ... )","وصف بعض الظواهر الفلكية الناتجة عن حركة الارض حول نفسها وحول الشمس وبعض العمليات الجيولوجية من زلازل وبراكين وأثرها على الانسان","وصف شكل الارض وبنيتها, ودورة المياه الطبيعية , وتغيرات المادة الكيمائية والفيزيائية (الانصهار, صدأ الحديد, ... )","تصميم نماذج(قرص نيوتن...)","تصنيف بعض المواد الى عناصر ومركبات ومخاليط","تصميم و تركيب دارات كهربائية متنوعة (دارة دفة الحركة, ... )","تصنيف الحيوانات (فقارية ولا فقارية) والنباتات (وعائية ولا وعائية) والمواد (ذائبة وغير ذائبة)","رسم مسارات اشعة ضوئية ساقطة على مرايا وعدسات","كتابة معادلات ايونية موزونة لتفاعلات بسيطة بين الحمض والقاعدة","توظيف الاستقصاء في التوصل للخصائص الفيزيائية والكيميائية لبعض الفلزات وظاهرة شذوذ الماء"]
[null,null,null,null,null,null,null,null,null,null,null,null,null,null,null,null,null,null,null,null,null,null,null,null,null,null,null,null,null,null,null,null,null,null,null,null,null,null,null,null,null,null,null,null,null,null,null,null,null,null,null,null,null,null,null,null,null,null,null,null,null,null,null,null,null,null,null,null,null,null,null,null,null,null,null,null,null,null,null,null,null,null,"تتبع دورات حياة بعض الحيوانات (الدجاجة,البقرة,...)وبعض النباتات الزهرية(الفول,...) والربط بين الكائنات وابائها من حيث الشكل الخارجي(البقرة والعجل,..,نبات الفول الام والنبات الجديد,...)","تركيب دارة كهربائية بسيطة , وتصميم رافعة","رسم مسار الاشعة عند سقوطها على سطح املس, ورسم خطوط المجال المغناطيسي","توظيف العلاقات الرياضية في حل مسائل عددية بسيطة حول (السرعة,المسافة)","تسمية بعض العناصر (الفلزية واللافلزية ) باستخدام الرموز","وصف تركيب الغلاف الجوي وعناصر الطقس","توظيف العلاقات الرياضية في حل مسائل عددية بسيطة على المقاومة المكافئة, وبعد الجسم باستخدام ظاهرتي الصدى والتردد","توظيف العلاقات الرياضية في حل مسائل بسيطة (حركة الجسم بخط مستقيم وبتسارع ثابت,الطاقة الميكانيكية,المخاليط الحرارية,...)","كتابة صيغ اولية وجزئية وبنائية ومعادلات كيميائية موزونة ورموز لويس لبعض الذرات وبنى لويس لبعض الجزيئات ..."]
[null,null,null,null,null,null,null,null,null,null,null,null,null,null,null,null,null,null,null,null,null,null,null,null,null,null,null,null,null,null,null,null,null,null,null,null,null,null,null,null,null,null,null,null,null,null,null,null,null,null,null,null,null,null,null,null,null,null,null,null,null,null,null,null,null,null,null,null,null,null,null,null,null,null,null,null,null,null,null,null,null,null,null,"توظيف الاستقصاء في التوصل الى اثر القوة على الاجسام المتحركة او الساكنة","استخدام ادوات القياس المناسبة لقياس بعض الخصائص الفيزيائية(الكتلة,الحجم,...)","وصف تأثير انشطة الانسان في اتزان النظام البيئي وبعض طرائق المحافظة على المصادر الطبيعية ","وصف مستويات التنظيم الوظيفي في جسم الانسان, وتركيب بعض اجهزة جسم الانسان (الهضمي,التنفسي,البولي, ... )","توظيف الاستقصاء في التوصل عمليا لمفهوم الكثافة, ولقاعدة ارخميدس وقاعدة باسكال ومبدأ برنولي وقياس عناصر الطقس","تصنيف الكائنات الحية وفق وظائفها (منتجات, مستهلكات, محللات )","قراءة الاشكال والرسوم البيانية المتعلقة ب (القوة,السرعة,كمية الحرارة,درجة الحرارة,قوانين الغازات,...)","قراءة الاشكال والرسومات المتعلقة ب ( خرائط الطقس,الجدول الدوري, ...)"]
[null,null,null,null,null,null,null,null,null,null,null,null,null,null,null,null,null,null,null,null,null,null,null,null,null,null,null,null,null,null,null,null,null,null,null,null,null,null,null,null,null,null,null,null,null,null,null,null,null,null,null,null,null,null,null,null,null,null,null,null,null,null,null,null,null,null,null,null,null,null,null,null,null,null,null,null,null,null,null,null,null,null,null,null,"تتبع دورة حياة بعض الكائنات الحية ( النباتات معراة الجذور , .... )"," تصميم نماذج لوصف بعض العمليات الجيولوجية ( بركان , طيات صدع , ... )","وصف سلوك الضوء وتفاعله مع المواد (انعكاس,انكسار,امتصاص) والتطبيقات العملية المتعلقة به","استنتاج مفهومي العدد الذري والعدد الكلي باستخدام الجدول الدوري","قراءة الاشكال والرسوم البيانية والجداول واستخلاص المعلومات منها (السرعة,الزمن,التيار,فرق الجهد,...)","استخدام المجهر في دراسة مكونات الخلية وتحضير شرائح مبللة وانسجة ورسم ما يشاهد","تصميم نماذج (السيزموميتر, نماذج فراغية للهيدوكربونات, مقراب فلكي, محرك كهربائي)"]
[null,null,null,null,null,null,null,null,null,null,null,null,null,null,null,null,null,null,null,null,null,null,null,null,null,null,null,null,null,null,null,null,null,null,null,null,null,null,null,null,null,null,null,null,null,null,null,null,null,null,null,null,null,null,null,null,null,null,null,null,null,null,null,null,null,null,null,null,null,null,null,null,null,null,null,null,null,null,null,null,null,null,null,null,null,null,"توظيف الاستقصاء في الكشف عن وجود الشحنة الكهربائية ونوعها",null,"تركيب دارات كهربائية متنوعة ( توالي و توازي ) واجراء قياسات عليها"]
[null,null,null,null,null,null,null,null,null,null,null,null,null,null,null,null,null,null,null,null,null,null,null,null,null,null,null,null,null,null,null,null,null,null,null,null,null,null,null,null,null,null,null,null,null,null,null,null,null,null,null,null,null,null,null,null,null,null,null,null,null,null,null,null,null,null,null,null,null,null,null,null,null,null,null,null,null,null,null,null,null,null,null,null,null,null,"توظيف الاستقصاء في التنبؤ ببعض الخواص الفيزيائية للفلزات واللافلزات"]
[null,null,null,null,null,null,null,null,null,null,null,null,null,null,null,null,null,null,null,null,null,null,null,null,null,null,null,null,null,null,null,null,null,null,null,null,null,null,null,null,null,null,null,null,null,null,null,null,null,null,null,null,null,null,null,null,null,null,null,null,null,null,null,null,null,null,null,null,null,null,null,null,null,null,null,null,null,null,null,null,null,"تمييز انواع الخطوط","تعرف تصنيف الخطوط وحركتها واتجاهاتها في الطبيعة","استخدام الخطوط في رسم نماذج زخرفية بسيطة","رسم تعبيرات حرة مستوحاة من الطبيعة وتلوينها","التعبير بالرسم عن موضوعات حرة مستوحاة من الطبيعة والخيال وتلوينها","تعرف صفات الالوان الدافئة والباردة والمحايدة ودلالاتها","التعرف الى دور الخط في الكتابة العربية والزخرفة الاسلامية وامكاناته في الفنون التعبيرية","توظيف الانسجام والتباين في تنفيذ اعمال فنية","ادراك القيمة اللونية وعلاقتها بالضوء عن طريق تنفيذ الاعمال الفنية","توظيف عناصر الزخرفة الاسلامية في تنفيذ اعمال فنية مبتكرة"]
[null,null,null,null,null,null,null,null,null,null,null,null,null,null,null,null,null,null,null,null,null,null,null,null,null,null,null,null,null,null,null,null,null,null,null,null,null,null,null,null,null,null,null,null,null,null,null,null,null,null,null,null,null,null,null,null,null,null,null,null,null,null,null,null,null,null,null,null,null,null,null,null,null,null,null,null,null,null,null,null,"فن","تعرف الالوان المحيطة به في البيئة المحلية","ادراك اهمية الالوان والملامس وعلاقتها بالطبيعة","استخدام اللون في التعبير بحرية تامة عن اشكال وموضوعات مختلفة","استخدام الالوان والخطوط لاحداث ملامس مختلفة","التوصل الى تنوع الملامس والمقارنة بينها","توظيف الخط في تحديد معالم الاشكال","التعرف الى الوان الطيف المرئي وتوظيفها في انتاج اعمال فنية","تعرف قواعد المنظور الخطي وتطبيقها عمليا","التعبير بحرية عن موضوعات من التراث العربي والاسلامي ومن القضايا التي تحيط به","توظيف قواعد المنظور اللوني في موضوعاته الفنية"]
[null,null,null,null,null,null,null,null,null,null,null,null,null,null,null,null,null,null,null,null,null,null,null,null,null,null,null,null,null,null,null,null,null,null,null,null,null,null,null,null,null,null,null,null,null,null,null,null,null,null,null,null,null,null,null,null,null,null,null,null,null,null,null,null,null,null,null,null,null,null,null,null,null,null,null,null,null,null,null,null,null,"التعبير عن الاشكال الواقعية والخيالية بما يتناسب وقدراته الخاصة","رسم تكوينات وتلوينها بما يتناسب وقدراته الجسمية والعقلية","ادراك معنى اللون الحقيقي وعلاقته بالبيئة الخارجية","تدريج اللون من الغامق الى الفاتح","تعرف عناصر الزخارف(نباتية,هندسية,كائنات حية,كتابية)","استخدام خامات متنوعة للحصول على ملامس حقيقية مختلفة","الموازنة بين الاشكال والمساحات في العمل الفني الواحد","البحث والاطلاع على كل ما هو جديد ونافع في الانتاج الفني","تطبيق قواعد المنظور الهندسي عمليا","تعرف بعض خصائص الالوان ( الشفافية والكثافة اللونية ) وتطبيقها عمليا"]
[null,null,null,null,null,null,null,null,null,null,null,null,null,null,null,null,null,null,null,null,null,null,null,null,null,null,null,null,null,null,null,null,null,null,null,null,null,null,null,null,null,null,null,null,null,null,null,null,null,null,null,null,null,null,null,null,null,null,null,null,null,null,null,null,null,null,null,null,null,null,null,null,null,null,null,null,null,null,null,null,null,"ممارسة العاب رياضية وعادات صحية تحقق له جسما سليما","ممارسة  عادات صحية وحركات سليمة تحقق له جسم سليم","تعرف الطرق الصحية لحمل الاشياء ورفعها للمحافظة على سلامة العمود الفقري","ادراك معنى الروح الرياضية والتحلي بالاخلاق الرياضية في حالات الفوز والخسارة","اداء تمرينات بدنية حرة والعاب صغيرة ومحلية بأدوات وبدون أدوات","اداء تمرينات بدنية حرة والعاب صغيرة ومحلية تنمي صفات التحمل والقوة والسرعة ","اداء تمرينات لتطوير صفات المرونة والقوة والتحمل والتوازن والسرعة والرشاقة بأدوات وبدون أدوات","تنمية القدرات البدنية والمهارية من خلال اداء حركات ارضية وعلى الاجهزة","تحقيق المستوى المطلوب في عناصر اللياقة البدنية (القوة,السرعة,التحمل,المرونة)","معرفة اعراض بعض الاصابات وخطوات اسعافها"]
[null,null,null,null,null,null,null,null,null,null,null,null,null,null,null,null,null,null,null,null,null,null,null,null,null,null,null,null,null,null,null,null,null,null,null,null,null,null,null,null,null,null,null,null,null,null,null,null,null,null,null,null,null,null,null,null,null,null,null,null,null,null,null,null,null,null,null,null,null,null,null,null,null,null,null,null,null,null,null,null,null,"ممارسة أدوار تمثيلية وتمرينات على شكل العاب بأدوات وبدون ادوات","اداء حركات انتقالية وغير انتقالية بأدوات وبدون ادوات","ممارسة تمرينات والعاب بأدوات وبدون أدوات لتنمية عناصر اللياقة البدنية","ممارة تمرينات بدنية وألعاب صغيرة لتنمية عناصر اللياقة البدنية المختلفة","اداء حركات الدحرجة الامامية والخلفية والميزان في رياضة الجمباز","اداء حركات الدحرجة  والميزان والقفز من فوق المهر","اداء مهارات الوقوف على اليدين والقفز فتحا من فوق المهر في رياضة الجمباز","تحقيق مستوى مناسب من الاداء المهاري في مسابقات الميدان والمضمار المقررة","تنمية القدرات البدنية والمهارية من خلال اداء حركات ارضية وعلى الاجهزة","اداء تمرينات بدنية وجمل حركية بأدوات وبدون أدوات تنمي عناصر اللياقة البدنية"]
[null,null,null,null,null,null,null,null,null,null,null,null,null,null,null,null,null,null,null,null,null,null,null,null,null,null,null,null,null,null,null,null,null,null,null,null,null,null,null,null,null,null,null,null,null,null,null,null,null,null,null,null,null,null,null,null,null,null,null,null,null,null,null,null,null,null,null,null,null,null,null,null,null,null,null,null,null,null,null,null,"رياضه","ممارسة الحركات الانتقالية وغير الانتقالية أثناء ممارسة الألعاب الصفيرة","ممارسة مجموعة الالعاب الصغيرة والمحلية لخدمة بعض المهارات الاساسية في المباحث الرياضية","ممارسة بعض الحركات باستخدام الادوات والأجهزة الخاصة بجمباز الالعاب والمواقع","اكتساب عناصر اللياقة البدنية من خلال اداء حركات ارضية متسلسلة","اداء المهارات الاساسية لألعاب القوى في مسابقات المضمار والميدان","تطبيق الخطوات الاساسية لمسابقات العاب القوى المقررة","اداء مهارات العدو لمسافات قصيرة, ومهارات الوثب والرمي في رياضة العاب القوى","اداء الارسال القصير بظهر المضرب وضربات التخليص الامامية والخلفية في لعبة ريشة الطائرة","اداء مسابقات المسافات المتوسطة والوثب الطويل والعالي والتتابع ورمي الرمح في لعبة العاب القوى","تنمية القدرات البدنية والمهارية من خلال اداء حركات ارضية وعلى الاجهزة"]
[null,null,null,null,null,null,null,null,null,null,null,null,null,null,null,null,null,null,null,null,null,null,null,null,null,null,null,null,null,null,null,null,null,null,null,null,null,null,null,null,null,null,null,null,null,null,null,null,null,null,null,null,null,null,null,null,null,null,null,null,null,null,null,null,null,null,null,null,null,null,null,null,null,null,null,null,null,null,null,null,null,"اداء حركات الوثب والدحرجة والزحف على الفرشات","تطبيق بعض حركات الجمباز باستخدام الادوات والاجهزة","تحقيق مستوى مناسب لعنصري الرشاقة والمرونة","ممارسة بعض مهارات الوثب والعدو والرمي","ممارسة مهارات الاستعداد والارسال الامامي وضرب الريشة بوجهي المضرب","تطبيق الضربات المدفوعة الامامية والخلفية والتحرك بشكل صحيح لضرب الريشة واستقبالها","ممارسة ضربات الصد والدفع الامامية والخلفية والارسال بوجه المضرب في لعبة الريشة الطائرة","اداء مهارات الامتصاص والتمويه والخداع والتصويب بالكرة في لعبة كرة القدم","اداء الارسال الفردي المرتفع والضربات المسقطة الامامية في لعبة ريشة الطائرة","ممارسة مسابقات العاب القوى وفق الشروط الفنية والقانونية للمسابقات"]
[null,null,null,null,null,null,null,null,null,null,null,null,null,null,null,null,null,null,null,null,null,null,null,null,null,null,null,null,null,null,null,null,null,null,null,null,null,null,null,null,null,null,null,null,null,null,null,null,null,null,null,null,null,null,null,null,null,null,null,null,null,null,null,null,null,null,null,null,null,null,null,null,null,null,null,null,null,null,null,null,null,null,null,null,"مسك مضرب الريشة الطائرة بشكل صحيح وتداول الريشة في الهواء من اوضاع مختلفة","ممارسة مهارات الركل والسيطرة والتصويب بالكرة في لعبة كرة القدم","أداء مهارة استقبال الكرة والجري بها والتصويب بالرأس في لعبة كرة القدم","تطبيق مهارات المراوغة والتمويه,وضرب الكرة بالرأس,والجري بالكرة وتصويبها في مواقف لعب مختلفة في لعبة كرة القدم","اداء مهارات المحاورة بالكرة والتمريرة المرتدة في لعبة كرة اليد","ممارسة مهارات المراوغة والخداع والتمويه والربط بين مهارات المراوغة والتصويب في لعبة كرة القدم","الالمام بالنواحي الفنية للضربات الساحقة والمقوسة والارسال في لعبة الريشة الطائرة"]
[null,null,null,null,null,null,null,null,null,null,null,null,null,null,null,null,null,null,null,null,null,null,null,null,null,null,null,null,null,null,null,null,null,null,null,null,null,null,null,null,null,null,null,null,null,null,null,null,null,null,null,null,null,null,null,null,null,null,null,null,null,null,null,null,null,null,null,null,null,null,null,null,null,null,null,null,null,null,null,null,null,null,null,null,"أداء مهارات الاحساس وركل الكرة بالقدم والسيطرة عليها في لعبة كرة القدم","تطبيق مهارات التمرير والاستلام والتنطيط بشكل سليم وفق قواعد اللعبة في كرة اليد","تنفيذ مهارات استلام الكرة وتنطيطها باتجاهات مختلفة في لعبة كرة اليد","ممارسة مهارات التمرير والاستلام والتصويب والتنطيط والربط بينهما في لعبة كرة اليد","تطبيق مهارات التصويب والتمرير والخداع في لعبة كرة السلة","ممارسة المهارات الاساسية وتوظيفها في مواقف لعب حقيقية في لعبة كرة اليد","أداء مهارات المهاجمة وحارس المرمى في مواقف لعب مختلفة في لعبة كرة القدم"]
[null,null,null,null,null,null,null,null,null,null,null,null,null,null,null,null,null,null,null,null,null,null,null,null,null,null,null,null,null,null,null,null,null,null,null,null,null,null,null,null,null,null,null,null,null,null,null,null,null,null,null,null,null,null,null,null,null,null,null,null,null,null,null,null,null,null,null,null,null,null,null,null,null,null,null,null,null,null,null,null,null,null,null,null,"تطبيق مهارات مسك الكرة وتنطيطها واستلامها وتمريرها في لعبتي كرة اليد والسلة","تطبيق مهارات مسك الكرة وتنطيطها واستلامها والتمرير وحركات القدمين في لعبة كرة السلة","تطبيق مهارات التنطيط والتمرير والاستلام وحركات القدمين في لعبة كرة السلة","تطبيق مهارات التصويب والتمرير وحركات القدمين والربط بينهما في لعبة كرة السلة","اداء مهارات الدفاع عن الملعب والارسال ضمن الفريق في لعبة كرة الطائرة","أداء مهارات التمرير والارسال والضربة الساحقة زحائط الصد في لعبة كرة الطائرة","أداء مهارات التصويب بالسقوط الامامي والتصويبة الحرة المباشرة في لعبة كرة اليد"]
[null,null,null,null,null,null,null,null,null,null,null,null,null,null,null,null,null,null,null,null,null,null,null,null,null,null,null,null,null,null,null,null,null,null,null,null,null,null,null,null,null,null,null,null,null,null,null,null,null,null,null,null,null,null,null,null,null,null,null,null,null,null,null,null,null,null,null,null,null,null,null,null,null,null,null,null,null,null,null,null,null,null,null,null,"اداء مهارات الاحساس والارسال والمرير ووقفة الاستعداد في لعبة كرة الطائرة","تطبيق مهارات الاستقبال والتمرير والارسال وفق قانون اللعبة في لعبة كرة الطائرة","أداء مهارات التمرير والارسال في لعبة كرة الطائرة","أداء مهارات الاستقبال والارسال والربط بينهما في لعبة كرة الطائرة",null,"تطبيق مهارات الاستلام والتمرير والخداع في مواقف لعب مختلفة في لعبة كرة السلة","تطبيق مهارات التمرير والمتابعة والتصويب من خلال منافسات في لعبة كرة السلة"]
[null,null,null,null,null,null,null,null,null,null,null,null,null,null,null,null,null,null,null,null,null,null,null,null,null,null,null,null,null,null,null,null,null,null,null,null,null,null,null,null,null,null,null,null,null,null,null,null,null,null,null,null,null,null,null,null,null,null,null,null,null,null,null,null,null,null,null,null,null,null,null,null,null,null,null,null,null,null,null,null,null,null,null,null,null,null,null,null,null,null,"أداء مهارات الارسال والتمرير وحائط الصد ضمن طرق اللعب في لعبة كرة الطائرة"]
[null,null,null,null,null,null,null,null,null,null,null,null,null,null,null,null,null,null,null,null,null,null,null,null,null,null,null,null,null,null,null,null,null,null,null,null,null,null,null,null,null,null,null,null,null,null,null,null,null,null,null,null,null,null,null,null,null,null,null,null,null,null,null,null,null,null,null,null,null,null,null,null,null,null,null,null,null,null,null,null,null,"استخدام الاصوات بالحركات الجسدية المناسبة","مراعات مهارات الانشاد و ترديد النشيد بصوت منغم ","مراعاة مهارات الانشاد و ترديد النشيد بصوت منغم","اتقان القراءة الموسيقية","اتقان القراءة الموسيقية","اتقان القراءة الموسيقية","اتقان القراءة الموسيقية","اتقان القراءة الموسيقية","اتقان القراءة الموسيقية","اتقان القراءة الموسيقية"]
[null,null,null,null,null,null,null,null,null,null,null,null,null,null,null,null,null,null,null,null,null,null,null,null,null,null,null,null,null,null,null,null,null,null,null,null,null,null,null,null,null,null,null,null,null,null,null,null,null,null,null,null,null,null,null,null,null,null,null,null,null,null,null,null,null,null,null,null,null,null,null,null,null,null,null,null,null,null,null,null,"موسيقا","تمييز الاصوات","ربط الاصوات بالحركات الجسدية المناسبة","ربط الاصوات بالحركات الجسدية المناسبة","الانشاد بإتقان","الانشاد بإتقان","الانشاد بإتقان","الانشاد بإتقان","الانشاد بإتقان","الانشاد بإتقان","الانشاد بإتقان"]
[null,null,null,null,null,null,null,null,null,null,null,null,null,null,null,null,null,null,null,null,null,null,null,null,null,null,null,null,null,null,null,null,null,null,null,null,null,null,null,null,null,null,null,null,null,null,null,null,null,null,null,null,null,null,null,null,null,null,null,null,null,null,null,null,null,null,null,null,null,null,null,null,null,null,null,null,null,null,null,null,null,"الانشاد بمصاحبة الايقاع","التوفيق بين أدائه والمجوعة","التوفيق بين أدائه وأداء المجوعة","العزف بإتقان","العزف بإتقان","العزف بإتقان","العزف بإتقان","العزف بإتقان","العزف بإتقان","العزف بإتقان"]
[null,null,null,null,null,null,null,null,null,null,null,null,null,null,null,null,null,null,null,null,null,null,null,null,null,null,null,null,null,null,null,null,null,null,null,null,null,null,null,null,null,null,null,null,null,null,null,null,null,null,null,null,null,null,null,null,null,null,null,null,null,null,null,null,null,null,null,null,null,null,null,null,null,null,null,null,null,null,null,null,null,null,"تعرف النوتات الموسيقية","تعرف النوتات الموسيقية"]
[null,null,null,null,null,null,null,null,null,null,null,null,null,null,null,null,null,null,null,null,null,null,null,null,null,null,null,null,null,null,null,null,null,null,null,null,null,null,null,null,null,null,null,null,null,null,null,null,null,null,null,null,null,null,null,null,null,null,null,null,null,null,null,null,null,null,null,null,null,null,null,null,null,null,null,null,null,null,null,null,null,null,null,null,"تطبيق مبادئ الصحة والسلامة العامة والتوعية المرورية","استخدام الاجهزة والأدوات بشكل مناسب في مجالات مهنية خمسةهي (الزراعة,الصناعة,التجارة,العلوم المنزلية,الصحة العامة)","استخدام الاجهزة والأدوات بشكل مناسب في مجالات مهنية خمسةهي (الزراعة,الصناعة,التجارة,العلوم المنزلية,الصحة العامة)","استخدام الاجهزة والأدوات بشكل مناسب في مجالات مهنية خمسةهي (الزراعة,الصناعة,التجارة,العلوم المنزلية,الصحة العامة)","استخدام الاجهزة والأدوات بشكل مناسب حسب الوحدات التدريبية الواردة في المنهاج وعددها سبعون وحدة تدريبية","استخدام الاجهزة والأدوات بشكل مناسب حسب الوحدات التدريبية الواردة في المنهاج وعددها سبعون وحدة تدريبية","استخدام الاجهزة والأدوات بشكل مناسب حسب الوحدات التدريبية الواردة في المنهاج وعددها سبعون وحدة تدريبية"]
[null,null,null,null,null,null,null,null,null,null,null,null,null,null,null,null,null,null,null,null,null,null,null,null,null,null,null,null,null,null,null,null,null,null,null,null,null,null,null,null,null,null,null,null,null,null,null,null,null,null,null,null,null,null,null,null,null,null,null,null,null,null,null,null,null,null,null,null,null,null,null,null,null,null,null,null,null,null,null,null,"مهني",null,null,null,"اعداد منتجات بسيطة متنوعة والقيام بأنشطة تطبيقية وتجريبية","اعداد منتجات حسب المواصفات المطلوبة","اعداد منتجات حسب المواصفات المطلوبة","اعداد منتجات حسب المواصفات المطلوبة","اعداد منتجات حسب المواصفات المطلوبة","اعداد منتجات حسب المواصفات المطلوبة","اعداد منتجات حسب المواصفات المطلوبة"]
[null,null,null,null,null,null,null,null,null,null,null,null,null,null,null,null,null,null,null,null,null,null,null,null,null,null,null,null,null,null,null,null,null,null,null,null,null,null,null,null,null,null,null,null,null,null,null,null,null,null,null,null,null,null,null,null,null,null,null,null,null,null,null,null,null,null,null,null,null,null,null,null,null,null,null,null,null,null,null,null,null,null,null,null,"تطبيق مهارات حياتية تكون حسا مهنيا لدى الطالب","الالتزام بقواعد الامن والسلامة العامة","الالتزام بقواعد الامن والسلامة العامة","الالتزام بقواعد الامن والسلامة العامة","الالتزام بقواعد الامن والسلامة العامة في كل مجال من المجالات المهنية الخمس(الزراعة والصناعة والادارة المعلوماتية والعلوم المنزلية والصحة والسلامة المهنية)","الالتزام بقواعد الامن والسلامة العامة في كل مجال من المجالات المهنية الخمس(الزراعة والصناعة والادارة المعلوماتية والعلوم المنزلية والصحة والسلامة المهنية)","الالتزام بقواعد الامن والسلامة العامة في كل مجال من المجالات المهنية الخمس(الزراعة والصناعة والادارة المعلوماتية والعلوم المنزلية والصحة والسلامة المهنية)"]
[null,null,null,null,null,null,null,null,null,null,null,null,null,null,null,null,null,null,null,null,null,null,null,null,null,null,null,null,null,null,null,null,null,null,null,null,null,null,null,null,null,null,null,null,null,null,null,null,null,null,null,null,null,null,null,null,null,null,null,null,null,null,null,null,null,null,null,null,null,null,null,null,null,null,null,null,null,null,null,null,null,null,null,null,null,null,null,"التعامل مع الملفات والمجلدات المختلفة","توضيح طبيعة عمل الاجزاء الداخلية للحاسوب","تمييز العوامل الاساسية التي تؤثر في اداء جهاز الحاسوب","وعي دور الذكاء الاصطناعي في المجالات المختلفة"]
[null,null,null,null,null,null,null,null,null,null,null,null,null,null,null,null,null,null,null,null,null,null,null,null,null,null,null,null,null,null,null,null,null,null,null,null,null,null,null,null,null,null,null,null,null,null,null,null,null,null,null,null,null,null,null,null,null,null,null,null,null,null,null,null,null,null,null,null,null,null,null,null,null,null,null,null,null,null,null,null,null,null,null,null,null,null,null,"تحرير وثيقة نص وتنسيقها","اجراء العمليات الحسابية البسيطة على Excle","التعامل مع البيانات","انشاء قاعدة بيانات"]
[null,null,null,null,null,null,null,null,null,null,null,null,null,null,null,null,null,null,null,null,null,null,null,null,null,null,null,null,null,null,null,null,null,null,null,null,null,null,null,null,null,null,null,null,null,null,null,null,null,null,null,null,null,null,null,null,null,null,null,null,null,null,null," ",null,null,null,null,null,null,null,null,null,null,null,null,null,null,null,null,null,null,null,null,null,null,null,"استعراض مواقع الانترنت المختلفة","عرض مواقع الكتروني باستخدام برمجية الناشر","استخدام محركات البحث","تصميم موقع الكتروني"]
[null,null,null,null,null,null,null,null,null,null,null,null,null,null,null,null,null,null,null,null,null,null,null,null,null,null,null,null,null,null,null,null,null,null,null,null,null,null,null,null,null,null,null,null,null,null,null,null,null,null,null,null,null,null,null,null,null,null,null,null,null,null,null,null,null,null,null,null,null,null,null,null,null,null,null,null,null,null,null,null,"حاسوب",null,null,null,null,null,null,null,null,null,"كتابة برامج"]
[]
[null,null,null,null,null,null,null,null,null,null,null,null,null,null,null,null,null,null,null,null,null,null,null,null,null,null,null,null,null,null,null,null,null,null,null,null,null,null,null,null,null,null,null,null,null,null,null,null,null,null,null,null,null,null,null,null,null,null,null,null,null,null,null,null,null,null,null,null,null,null,null,null,null,null,null,null,null,null,null,null,"مالية"]

{"sheet":"Sheet1","index":4,"n_rows":106,"n_cols":63,"rows_kept":106,"cut":false,"hidden":true,"merged":[]}
[]
[]
[]
[]
[null,null,null,null,null,null,null,null,null,null,null,null,"جدول العلامات المدرسية  للعام الدراسي   2020-2021    \n   المنطقة التعليمية :    شمال عمان                           المدرسة  :  ذكور البقعة الاعدادية الرابعة                  الصف  :   (  الصف الثامن )                 الشعبة :    ( 3 )"]
[]
[]
[null,"تعبأ المعلومات المطلوبة الواردة في هذه الحقول في نهاية العام الدراسي",null,null,null,null,null,null,null,null,null,null,null,"الصفوف التي اعادها الطالب","عدد ايام الغياب  من 200","احترام النظام","الثقافة المالية",null,null,"حاسوب",null,null,"التربية المهنية",null,null,"موسيقى واناشيد",null,null,"التربية الرياضية",null,null,null,null,"التربية الفنية",null,null,"العلوم",null,null,"التربية الاجتماعية والوطنية",null,null,"الرياضيات",null,null,"اللغة الإنجليزية",null,null,"اللغة العربية",null,null,"التربية الإسلامية",null,null,null,"سنة الولادة","شهر الولادة","يوم الولادة","مكان الولادة","الجنسية","اسم الطــالب\n\nمن أربع مقاطع\n\nحسب شهادة الميلاد",null,"الرقم المتسلسل"]
[null,"النتيجة السنوية",null,"المعدل العام المئوي","المجموع العام",null,"النتيجة بعد تأدية اختبارات الاكمال",null,null,null,null,null,null,null,null,null,"النتيجة النهائية","نتيجة الفصل الثاني","نتيجة الفصل الأول","النتيجة النهائية","نتيجة الفصل الثاني","نتيجة الفصل الأول","النتيجة النهائية","نتيجة الفصل الثاني","نتيجة الفصل الأول","النتيجة النهائية","نتيجة الفصل الثاني","نتيجة الفصل الأول","النتيجة النهائية",null,"نتيجة الفصل الثاني","نتيجة الفصل الأول",null,"النتيجة النهائية","نتيجة الفصل الثاني","نتيجة الفصل الأول","النتيجة النهائية","نتيجة الفصل الثاني","نتيجة الفصل الأول","النتيجة النهائية","نتيجة الفصل الثاني","نتيجة الفصل الأول","النتيجة النهائية","نتيجة الفصل الثاني","نتيجة الفصل الأول","النتيجة النهائية","نتيجة الفصل الثاني","نتيجة الفصل الأول","النتيجة النهائية","نتيجة الفصل الثاني","نتيجة الفصل الأول","النتيجة النهائية","نتيجة الفصل الثاني","نتيجة الفصل الأول"]
[null,null,null,null,null,null,"العلامة","المادة الدراسية","العلامة","المادة الدراسية","العلامة","المادة الدراسية"]
[null,null,null,null,null,null,null,null,null,null,null,null,null,null,null,null,100,100,100,100,100,100,100,100,100,100,100,100,100,null,100,100,null,100,100,100,200,200,200,200,200,200,200,200,200,200,200,200,300,300,300,200,200,200]
[null,"ناجح و يرفع  لـ الصف التاسع",null,57.310001373291016,917,null,null,null,null,null,null,null,null,null,0,"ممتاز","66","55","76","58","64","51","65","55","75","-","-","-","86",null,"87","85",null,"81","84","77","108","107","108","133","144","122","100","110","90","113","121","105","160","196","124","114","115","112",null,2007,4,8,"السلط","الأردنية"," احمد سيف الدين ابراهيم ابو عجور",null,1]
[null,"ناجح و يرفع  لـ الصف التاسع",null,55.689998626708984,891,null,null,null,null,null,null,null,null,"الرابع",0,"ممتاز","71","70","72","56","61","51","72","70","73","-","-","-","88",null,"89","87",null,"79","86","72","112","113","110","105","126","84","101","112","90","108","116","99","150","190","110","116","123","108",null,2005,11,2,"السلط","الأردنية"," احمد هاني محمد ابو سلمان"]
[null,"ناجح و يرفع  لـ الصف التاسع",null,61.880001068115234,990,null,null,null,null,null,null,null,null,null,0,"ممتاز","80","76","83","64","65","63","77","76","78","-","-","-","88",null,"87","89",null,"84","88","80","110","115","105","133","140","126","106","119","93","146","143","149","156","196","116","118","127","109",null,2007,8,18,"السلط","الأردنية"," اسامه وائل عبد الفتاح الاخرس",null,2]
[null,"ناجح و يرفع  لـ الصف التاسع",null,66.379997253417969,1062,null,null,null,null,null,null,null,null,null,0,"ممتاز","85","78","92","56","55","57","84","78","89","-","-","-","87",null,"88","85",null,"91","92","90","121","112","129","157","158","156","117","129","104","119","123","115","209","198","220","114","105","123",null,2007,1,30,"السلط","الأردنية"," البراء احمد محمد الشيش"]
[null,"ناجح و يرفع  لـ الصف التاسع",null,69.69000244140625,1115,null,null,null,null,null,null,null,null,null,0,"ممتاز","95","96","93","72","76","67","96","96","95","-","-","-","88",null,"88","88",null,"88","88","88","132","152","111","153","158","148","121","138","103","124","126","121","177","194","159","145","147","143",null,2007,9,30,"السلط","الأردنية"," انس مهنا نمر حسن",null,3]
[null,"ناجح و يرفع  لـ الصف التاسع",null,92.5,1480,null,null,null,null,null,null,null,null,null,0,"ممتاز","98","98","97","86","86","86","98","98","98","-","-","-","95",null,"94","96",null,"98","97","98","189","196","182","182","182","182","198","199","197","167","171","162","271","283","258","191","190","191",null,2007,6,9,"عمان","الفلسطينية"," ايهم احمد سليمان الزاملي"]
[null,"ناجح و يرفع  لـ الصف التاسع",null,67.44000244140625,1079,null,null,null,null,null,null,null,null,null,0,"ممتاز","86","88","83","83","82","84","85","88","82","-","-","-","87",null,"88","85",null,"85","90","80","120","119","120","152","160","144","120","139","100","113","121","105","195","185","204","125","113","136",null,2007,5,2,"السلط","الأردنية"," ايهم ايمن محمد خليل",null,4]
[null,"ناجح و يرفع  لـ الصف التاسع",null,72.879997253417969,1166,null,null,null,null,null,null,null,null,null,0,"ممتاز","90","98","81","66","70","61","92","98","85","-","-","-","87",null,"87","87",null,"84","87","81","145","135","154","181","184","178","125","144","106","113","124","101","208","226","189","146","139","153",null,2007,10,4,"عمان","الأردنية"," براء فادي ابراهيم الاسمر"]
[null,"ناجح و يرفع  لـ الصف التاسع",null,64.94000244140625,1039,null,null,null,null,null,null,null,null,null,0,"ممتاز","82","82","81","65","60","69","81","82","79","-","-","-","88",null,"89","87",null,"84","90","77","110","109","110","154","152","156","107","114","100","147","150","143","160","186","134","133","127","138",null,2007,7,31,"عمان","الأردنية"," ثائر موسى مصطفى ابو سليم",null,5]
[null,"ناجح و يرفع  لـ الصف التاسع",null,55.25,884,null,null,null,null,null,null,null,null,null,0,"ممتاز","68","55","80","50","53","47","67","55","78","-","-","-","88",null,"87","89",null,"85","87","82","109","116","101","107","134","80","101","111","90","131","135","127","150","195","105","101","107","94",null,2007,8,6,"معدي","الأردنية"," جواد احمد محمود ابو اصبع"]
[null,"ناجح و يرفع  لـ الصف التاسع",null,86.80999755859375,1389,null,null,null,null,null,null,null,null,null,0,"ممتاز","99","100","97","93","91","94","98","100","96","-","-","-","92",null,"93","91",null,"97","95","98","159","152","166","192","192","192","190","192","188","162","158","166","254","268","240","142","131","152",null,2007,4,23,"السلط","الأردنية"," حمزه محمود عبد الرحمن اسريوه",null,6]
[null,"ناجح و يرفع  لـ الصف التاسع",null,61.939998626708984,991,null,null,null,null,null,null,null,null,null,0,"ممتاز","78","72","84","50","53","47","77","72","81","-","-","-","88",null,"86","89",null,"86","90","82","129","143","114","119","118","120","114","121","107","157","157","157","150","180","120","117","113","120",null,2007,6,5,"السلط","الأردنية"," خليل بلال خليل البايض"]
[null,"ناجح و يرفع  لـ الصف التاسع",null,63.5,1016,null,null,null,null,null,null,null,null,null,0,"ممتاز","81","70","91","61","66","56","81","70","92","-","-","-","89",null,"89","89",null,"89","89","88","114","117","110","127","132","122","123","132","114","119","132","105","176","212","140","134","154","113",null,2007,6,15,"عمان","الأردنية"," رامي جميل محمد شبراوي",null,7]
[null,"ناجح و يرفع  لـ الصف التاسع",null,80.69000244140625,1291,null,null,null,null,null,null,null,null,null,0,"ممتاز","91","86","96","70","73","66","91","86","96","-","-","-","87",null,"87","86",null,"94","92","95","144","158","130","169","168","170","175","189","160","158","154","161","248","262","233","145","145","144",null,2007,1,28,"السلط","الأردنية"," زياد شادي زياد زياد"]
[null,"ناجح و يرفع  لـ الصف التاسع",null,72.30999755859375,1157,null,null,null,null,null,null,null,null,null,0,"ممتاز","94","90","97","82","85","79","95","90","99","-","-","-","87",null,"87","87",null,"93","88","97","143","150","136","171","174","168","132","131","132","130","134","125","191","194","188","119","115","122",null,2007,2,13,"السلط","الأردنية"," زيد عصام محمد مسلم",null,8]
[null,"ناجح و يرفع  لـ الصف التاسع",null,72.55999755859375,1161,null,null,null,null,null,null,null,null,null,0,"ممتاز","84","73","95","66","70","61","87","73","100","-","-","-","89",null,"89","88",null,"92","93","90","160","157","162","168","168","168","141","156","125","141","144","138","173","189","157","141","131","150",null,2007,4,13,"عمان","الأردنية"," زيد علي سعد دعاس"]
[null,"ناجح و يرفع  لـ الصف التاسع",null,53.880001068115234,862,null,null,null,null,null,null,null,null,null,0,"ممتاز","66","55","77","50","53","47","65","55","75","-","-","-","87",null,"88","85",null,"74","87","60","109","116","101","108","134","82","100","109","90","110","119","100","150","195","105","104","113","94",null,2007,6,9,"السلط","الأردنية"," زيد ماجد ربيع ابو ربيع",null,9]
[null,"ناجح و يرفع  لـ الصف التاسع",null,74.94000244140625,1199,null,null,null,null,null,null,null,null,null,0,"ممتاز","89","96","82","75","70","80","89","96","82","-","-","-","88",null,"87","89",null,"87","85","88","158","137","178","153","150","156","141","159","123","144","146","141","189","209","169","161","163","158",null,2007,5,3,"عمان","الأردنية"," زيد محمد عمر عايش"]
[null,"ناجح و يرفع  لـ الصف التاسع",null,80,1280,null,null,null,null,null,null,null,null,null,0,"ممتاز","90","84","95","89","82","95","90","84","95","-","-","-","87",null,"88","86",null,"95","93","96","159","181","136","176","176","176","172","167","177","148","147","148","206","217","194","150","140","160",null,2007,5,28,"ماركا","الأردنية"," سامي انور يوسف بنات",null,10]
[null,"ناجح و يرفع  لـ الصف التاسع",null,68.879997253417969,1102,null,null,null,null,null,null,null,null,null,0,"ممتاز","86","94","77","62","52","72","88","94","82","-","-","-","88",null,"87","88",null,"83","86","80","143","139","146","174","174","174","125","127","122","118","125","111","168","154","182","138","134","141",null,2007,12,11,"السلط","الأردنية"," سعيد عوض سلامه اسعد"]
[null,"ناجح و يرفع  لـ الصف التاسع",null,64.5,1032,null,null,null,null,null,null,null,null,null,0,"ممتاز","75","72","77","61","60","61","76","72","80","-","-","-","87",null,"88","86",null,"81","83","79","122","139","104","161","160","162","118","135","100","117","121","112","173","219","126","129","125","132",null,2007,3,26,"السلط","الأردنية"," عباده غسان سعيد بدران",null,11]
[null,"ناجح و يرفع  لـ الصف التاسع",null,79.44000244140625,1271,null,null,null,null,null,null,null,null,null,0,"ممتاز","95","94","96","79","75","83","97","94","99","-","-","-","88",null,"88","88",null,"96","93","98","157","169","144","191","192","190","179","176","182","117","121","113","177","208","146","179","183","174",null,2007,11,14,"السلط","الأردنية"," عبد الله بسام محمد رضوان"]
[null,"ناجح و يرفع  لـ الصف التاسع",null,58,928,null,null,null,null,null,null,null,null,"السابع",0,"ممتاز","79","82","76","50","53","47","83","82","84","-","-","-","89",null,"90","88",null,"86","88","84","110","115","104","120","130","110","110","120","100","113","121","104","150","175","125","113","116","109",null,2006,12,8,"السلط","الأردنية"," عبد الله خالد عبد الله العبادي",null,12]
[null,"ناجح و يرفع  لـ الصف التاسع",null,76.75,1228,null,null,null,null,null,null,null,null,null,0,"ممتاز","89","90","88","82","79","84","90","90","90","-","-","-","88",null,"88","87",null,"90","89","90","154","150","158","188","186","190","132","128","136","152","153","150","180","183","176","161","163","159",null,2007,10,31,"السلط","الأردنية"," عبد الله عبد الرحمن محمد الملع"]
[null,"ناجح و يرفع  لـ الصف التاسع",null,69,1104,null,null,null,null,null,null,null,null,null,0,"ممتاز","85","92","77","78","80","76","90","92","87","-","-","-","88",null,"88","88",null,"84","88","80","128","117","138","177","178","176","115","126","103","113","118","108","178","201","154","140","144","135",null,2007,2,10,"السلط","الأردنية"," عبد الله ناصر يونس بدران",null,13]
[null,"ناجح و يرفع  لـ الصف التاسع",null,76.69000244140625,1227,null,null,null,null,null,null,null,null,null,0,"ممتاز","87","82","91","84","80","87","88","82","94","-","-","-","87",null,"86","88",null,"93","91","94","182","179","184","183","182","184","146","148","144","113","124","101","184","200","168","160","139","180",null,2007,9,9,"السلط","الأردنية"," عدي فادي سعيد شبراوي"]
[null,"ناجح و يرفع  لـ الصف التاسع",null,75.69000244140625,1211,null,null,null,null,null,null,null,null,null,0,"ممتاز","85","84","86","82","81","83","86","84","88","-","-","-","89",null,"88","90",null,"90","91","89","159","140","178","179","182","176","153","162","143","117","122","111","211","224","197","139","134","144",null,2007,9,28,"السلط","الأردنية"," علاء وسام محمد الفيومي",null,14]
[null,"ناجح و يرفع  لـ الصف التاسع",null,86.30999755859375,1381,null,null,null,null,null,null,null,null,null,0,"ممتاز","93","90","96","92","90","93","93","90","96","-","-","-","88",null,"88","88",null,"94","93","95","165","175","154","190","190","190","162","162","161","175","173","176","260","253","267","151","140","161",null,2007,4,8,"السلط","الأردنية"," عمر احمد سليمان العمايره"]
[null,"ناجح و يرفع  لـ الصف التاسع",null,89.30999755859375,1429,null,null,null,null,null,null,null,null,null,0,"ممتاز","98","96","99","88","87","88","98","96","99","-","-","-","94",null,"94","93",null,"98","96","99","184","180","188","181","182","180","192","191","193","178","173","182","240","233","247","170","160","180",null,2007,9,29,"عمان","الأردنية"," عمر خالد محمد ابو فضه",null,15]
[null,"ناجح و يرفع  لـ الصف التاسع",null,70.75,1132,null,null,null,null,null,null,null,null,null,0,"ممتاز","79","74","84","75","72","77","78","74","82","-","-","-","89",null,"89","88",null,"87","90","84","133","127","138","169","158","180","120","124","116","163","164","162","186","197","175","129","122","136",null,2007,9,19,"السلط","الأردنية"," فارس غسان محمد رضوان"]
[null,"ناجح و يرفع  لـ الصف التاسع",null,73.44000244140625,1175,null,null,null,null,null,null,null,null,null,0,"ممتاز","88","86","89","74","73","74","90","86","93","-","-","-","88",null,"89","87",null,"91","89","92","152","140","164","187","192","182","152","153","151","111","122","99","178","170","185","143","144","142",null,2007,8,16,"عمان","الأردنية"," فراس فضل عبد الرازق سعادة",null,16]
[null,"ناجح و يرفع  لـ الصف التاسع",null,95.5,1528,null,null,null,null,null,null,null,null,null,0,"ممتاز","100","100","99","98","96","100","100","100","99","-","-","-","92",null,"91","93",null,"98","97","99","189","183","195","183","180","186","195","198","192","182","174","189","291","293","288","190","193","186",null,2007,12,3,"اربد","الأردنية"," لؤي بسام عبد الرحمن عامر"]
[null,"ناجح و يرفع  لـ الصف التاسع",null,67.44000244140625,1079,null,null,null,null,null,null,null,null,"الثالث",0,"ممتاز","89","90","87","65","69","61","87","90","84","-","-","-","88",null,"90","85",null,"88","91","85","129","139","119","169","172","166","114","128","100","111","121","101","170","198","142","145","128","162",null,2006,8,21,"السلط","الأردنية"," ليث عبد الرحيم عبد المنعم قنديل",null,17]
[null,"ناجح و يرفع  لـ الصف التاسع",null,58.380001068115234,934,null,null,null,null,null,null,null,null,"الصف السادس",0,"ممتاز","66","55","76","63","59","66","64","55","73","-","-","-","89",null,"88","89",null,"82","88","75","109","112","105","152","156","148","100","109","90","112","125","99","150","195","105","118","106","130",null,2006,10,5,"فلسطين","الفلسطينية"," محمد احمد خليل ابو صفيه"]
[null,"ناجح و يرفع  لـ الصف التاسع",null,57.060001373291016,913,null,null,null,null,null,null,null,null,null,0,"ممتاز","71","76","66","53","51","54","76","76","75","-","-","-","88",null,"89","87",null,"83","88","77","114","122","105","130","146","114","102","113","90","113","123","102","150","195","105","104","106","101",null,2007,5,13,"السلط","الأردنية"," محمد احمد محمود عشيش",null,18]
[null,"ناجح و يرفع  لـ الصف التاسع",null,77.55999755859375,1241,null,null,null,null,null,null,null,null,null,0,"ممتاز","91","90","91","69","64","73","90","90","89","-","-","-","87",null,"88","85",null,"92","91","93","145","112","177","184","190","178","160","148","172","154","149","159","191","198","183","157","155","159",null,2007,12,4,"السلط","الأردنية"," محمد اسامه حمزه ابو زعنونه"]
[null,"ناجح و يرفع  لـ الصف التاسع",null,73.80999755859375,1181,null,null,null,null,null,null,null,null,null,0,"ممتاز","87","92","82","71","66","75","91","92","89","-","-","-","86",null,"88","84",null,"88","89","86","173","176","169","141","146","136","137","143","130","156","156","156","171","181","161","154","160","148",null,2007,6,23,"السلط","الأردنية"," محمد جلال عوض عبد القادر",null,19]
[null,"ناجح و يرفع  لـ الصف التاسع",null,71.44000244140625,1143,null,null,null,null,null,null,null,null,null,0,"ممتاز","88","90","86","73","65","81","90","90","90","-","-","-","90",null,"90","89",null,"85","90","79","142","137","147","186","184","188","118","133","102","119","123","115","181","183","179","146","146","146",null,2007,10,14,"السلط","الأردنية"," محمد خالد وصفي عبد اللطيف"]
[null,"ناجح و يرفع  لـ الصف التاسع",null,58.880001068115234,942,null,null,null,null,null,null,null,null,null,0,"ممتاز","85","90","80","54","60","47","85","90","80","-","-","-","87",null,"86","88",null,"83","91","75","119","132","105","105","130","80","107","123","90","119","124","114","161","217","105","107","120","94",null,2007,9,3,"السلط","الأردنية"," محمد عمر محمد يوسف",null,20]
[null,"ناجح و يرفع  لـ الصف التاسع",null,73.629997253417969,1178,null,null,null,null,null,null,null,null,null,0,"ممتاز","86","76","96","71","72","70","85","76","93","-","-","-","89",null,"89","89",null,"91","90","92","140","134","146","181","178","184","156","154","158","114","126","102","189","206","171","156","172","140",null,2007,11,12,"عمان","الأردنية"," محمود علي محمود ابو ديه"]
[null,"ناجح و يرفع  لـ الصف التاسع",null,63.380001068115234,1014,null,null,null,null,null,null,null,null,null,0,"ممتاز","75","63","87","55","62","47","77","63","91","-","-","-","87",null,"87","86",null,"89","90","88","128","141","114","129","130","128","122","122","122","115","127","102","182","172","192","131","142","120",null,2007,4,28,"السلط","الأردنية"," مصلح عمر مصلح الجوابره",null,21]
[null,"ناجح و يرفع  لـ الصف التاسع",null,60.880001068115234,974,null,null,null,null,null,null,null,null,null,0,"ممتاز","82","84","79","54","60","47","83","84","82","-","-","-","89",null,"89","88",null,"84","91","76","137","168","105","108","134","82","114","137","90","113","124","101","167","229","105","116","138","94",null,2007,12,17,"عمان","الأردنية"," مهند ابراهيم داود الشطرات"]
[null,"ناجح و يرفع  لـ الصف التاسع",null,56.810001373291016,909,null,null,null,null,null,null,null,null,null,0,"ممتاز","75","72","77","52","49","54","78","72","84","-","-","-","88",null,"90","86",null,"83","88","77","111","116","105","108","134","82","102","113","90","113","124","101","156","207","105","114","133","94",null,2007,10,31,"السلط","الأردنية"," مهند زياد ابراهيم ابو شعيرة",null,22]
[null,"ناجح و يرفع  لـ الصف التاسع",null,69.05999755859375,1105,null,null,null,null,null,null,null,null,null,0,"ممتاز","91","94","87","71","76","66","92","94","90","-","-","-","88",null,"89","87",null,"92","92","92","142","148","136","144","148","140","122","141","102","113","127","98","171","176","166","159","159","159",null,2007,9,30,"السلط","الأردنية"," مؤمن مهنا نمر حسن"]
[null,"ناجح و يرفع  لـ الصف التاسع",null,61,976,null,null,null,null,null,null,null,null,null,0,"ممتاز","72","70","74","53","47","58","76","70","82","-","-","-","88",null,"86","89",null,"84","89","79","111","114","108","122","146","98","104","118","90","163","165","161","160","215","105","115","120","109",null,2007,6,7,"السلط","الأردنية"," ياسين يوسف عبد الخالق العايدي",null,23]
[null,"ناجح و يرفع  لـ الصف التاسع",null,84.379997253417969,1350,null,null,null,null,null,null,null,null,null,0,"ممتاز","93","92","93","92","90","94","94","92","95","-","-","-","92",null,"91","92",null,"94","92","95","165","165","164","194","194","194","157","156","157","166","167","165","229","250","207","160","163","156",null,2007,7,19,"عمان","الأردنية"," يزيد يوسف موسى بنات"]
[null,"ناجح و يرفع  لـ الصف التاسع",null,62.380001068115234,998,null,null,null,null,null,null,null,null,null,0,"ممتاز","79","82","75","57","61","52","82","82","81","-","-","-","89",null,"88","89",null,"86","89","82","124","117","130","124","144","104","122","131","112","120","132","107","170","194","146","120","111","129",null,2007,5,14,"السلط","الأردنية"," يعقوب عايد جميل ابوسمره",null,24]
[]
[null,null,null,null,null,null,null,null,null,null,null,null,null,null,null,null,null,null,null,null,null,null,null,null,null,null,null,null,null,null,null,null,null,null,null,null,null,null,null,null,null,null,null,null,null,null,null,null,null,null,null,null,null,null,null,null,null,null,null,null,null,null,25]
[]
[null,null,null,null,null,null,null,null,null,null,null,null,null,null,null,null,null,null,null,null,null,null,null,null,null,null,null,null,null,null,null,null,null,null,null,null,null,null,null,null,null,null,null,null,null,null,null,null,null,null,null,null,null,null,null,null,null,null,null,null,null,null,26]
[]
[null,null,null,null,null,null,null,null,null,null,null,null,null,null,null,null,null,null,null,null,null,null,null,null,null,null,null,null,null,null,null,null,null,null,null,null,null,null,null,null,null,null,null,null,null,null,null,null,null,null,null,null,null,null,null,null,null,null,null,null,null,null,27]
[]
[null,null,null,null,null,null,null,null,null,null,null,null,null,null,null,null,null,null,null,null,null,null,null,null,null,null,null,null,null,null,null,null,null,null,null,null,null,null,null,null,null,null,null,null,null,null,null,null,null,null,null,null,null,null,null,null,null,null,null,null,null,null,28]
[]
[null,null,null,null,null,null,null,null,null,null,null,null,null,null,null,null,null,null,null,null,null,null,null,null,null,null,null,null,null,null,null,null,null,null,null,null,null,null,null,null,null,null,null,null,null,null,null,null,null,null,null,null,null,null,null,null,null,null,null,null,null,null,29]
[]
[null,null,null,null,null,null,null,null,null,null,null,null,null,null,null,null,null,null,null,null,null,null,null,null,null,null,null,null,null,null,null,null,null,null,null,null,null,null,null,null,null,null,null,null,null,null,null,null,null,null,null,null,null,null,null,null,null,null,null,null,null,null,30]
[]
[null,null,null,null,null,null,null,null,null,null,null,null,null,null,null,null,null,null,null,null,null,null,null,null,null,null,null,null,null,null,null,null,null,null,null,null,null,null,null,null,null,null,null,null,null,null,null,null,null,null,null,null,null,null,null,null,null,null,null,null,null,null,31]
[]
[null,null,null,null,null,null,null,null,null,null,null,null,null,null,null,null,null,null,null,null,null,null,null,null,null,null,null,null,null,null,null,null,null,null,null,null,null,null,null,null,null,null,null,null,null,null,null,null,null,null,null,null,null,null,null,null,null,null,null,null,null,null,32]
[]
[null,null,null,null,null,null,null,null,null,null,null,null,null,null,null,null,null,null,null,null,null,null,null,null,null,null,null,null,null,null,null,null,null,null,null,null,null,null,null,null,null,null,null,null,null,null,null,null,null,null,null,null,null,null,null,null,null,null,null,null,null,null,33]
[]
[null,null,null,null,null,null,null,null,null,null,null,null,null,null,null,null,null,null,null,null,null,null,null,null,null,null,null,null,null,null,null,null,null,null,null,null,null,null,null,null,null,null,null,null,null,null,null,null,null,null,null,null,null,null,null,null,null,null,null,null,null,null,34]
[]
[null,null,null,null,null,null,null,null,null,null,null,null,null,null,null,null,null,null,null,null,null,null,null,null,null,null,null,null,null,null,null,null,null,null,null,null,null,null,null,null,null,null,null,null,null,null,null,null,null,null,null,null,null,null,null,null,null,null,null,null,null,null,35]
[]
[null,null,null,null,null,null,null,null,null,null,null,null,null,null,null,null,null,null,null,null,null,null,null,null,null,null,null,null,null,null,null,null,null,null,null,null,null,null,null,null,null,null,null,null,null,null,null,null,null,null,null,null,null,null,null,null,null,null,null,null,null,null,36]
[]
[null,null,null,null,null,null,null,null,null,null,null,null,null,null,null,null,null,null,null,null,null,null,null,null,null,null,null,null,null,null,null,null,null,null,null,null,null,null,null,null,null,null,null,null,null,null,null,null,null,null,null,null,null,null,null,null,null,null,null,null,null,null,37]
[]
[null,null,null,null,null,null,null,null,null,null,null,null,null,null,null,null,null,null,null,null,null,null,null,null,null,null,null,null,null,null,null,null,null,null,null,null,null,null,null,null,null,null,null,null,null,null,null,null,null,null,null,null,null,null,null,null,null,null,null,null,null,null,38]
[]
[null,null,null,null,null,null,null,null,null,null,null,null,null,null,null,null,null,null,null,null,null,null,null,null,null,null,null,null,null,null,null,null,null,null,null,null,null,null,null,null,null,null,null,null,null,null,null,null,null,null,null,null,null,null,null,null,null,null,null,null,null,null,39]
[]
[null,null,null,null,null,null,null,null,null,null,null,null,null,null,null,null,null,null,null,null,null,null,null,null,null,null,null,null,null,null,null,null,null,null,null,null,null,null,null,null,null,null,null,null,null,null,null,null,null,null,null,null,null,null,null,null,null,null,null,null,null,null,40]
[]
[null,null,null,null,null,null,null,null,null,null,null,null,null,null,null,null,null,null,null,null,null,null,null,null,null,null,null,null,null,null,null,null,null,null,null,null,null,null,null,null,null,null,null,null,null,null,null,null,null,null,null,null,null,null,null,null,null,null,null,null,null,null,41]
[]
[null,null,null,null,null,null,null,null,null,null,null,null,null,null,null,null,null,null,null,null,null,null,null,null,null,null,null,null,null,null,null,null,null,null,null,null,null,null,null,null,null,null,null,null,null,null,null,null,null,null,null,null,null,null,null,null,null,null,null,null,null,null,42]
[]
[null,null,null,null,null,null,null,null,null,null,null,null,null,null,null,null,null,null,null,null,null,null,null,null,null,null,null,null,null,null,null,null,null,null,null,null,null,null,null,null,null,null,null,null,null,null,null,null,null,null,null,null,null,null,null,null,null,null,null,null,null,null,43]
[]
[null,null,null,null,null,null,null,null,null,null,null,null,null,null,null,null,null,null,null,null,null,null,null,null,null,null,null,null,null,null,null,null,null,null,null,null,null,null,null,null,null,null,null,null,null,null,null,null,null,null,null,null,null,null,null,null,null,null,null,null,null,null,44]
[]
[null,null,null,null,null,null,null,null,null,null,null,null,null,null,null,null,null,null,null,null,null,null,null,null,null,null,null,null,null,null,null,null,null,null,null,null,null,null,null,null,null,null,null,null,null,null,null,null,null,null,null,null,null,null,null,null,null,null,null,null,null,null,45]
[]
[null,null,null,null,null,null,null,null,null,null,null,null,null,null,null,null,null,null,null,null,null,null,null,null,null,null,null,null,null,null,null,null,null,null,null,null,null,null,null,null,null,null,null,null,null,null,null,null,null,null,null,null,null,null,null,null,null,null,null,null,null,null,46]
[]
[null,null,null,null,null,null,null,null,null,null,null,null,null,null,null,null,null,null,null,null,null,null,null,null,null,null,null,null,null,null,null,null,null,null,null,null,null,null,null,null,null,null,null,null,null,null,null,null,null,null,null,null,null,null,null,null,null,null,null,null,null,null,47]
[]
[null,"\n  أسماء و تواقيع لجنة التدقيق و مقابلة\n  الجداول في المنطقة التعليمية :   ",null,null,null,null,null,null,null,null,null,null,null,null,null,null,null,null,null,null,null,null,null,null,null,null,null,null,null,null,null,null,null,null,null,null,null,null,null,null,null,null,null,null,null,null,null,null,null,null,null,null,null,null,null,"توقيع معلم المادة"]